Workbook

Sheet PROJETO
A1: ID_Projeto | B1: 17281
A2: Projeto | B2: Encuesta de Percepción de Valor, Satisfacción y Fidelidad del Cliente de Frasle Mobility y sus Marcas
A3: Data | B3: 2025-06-02

Sheet ATRIBUTOS
A1: ID_Atributo | B1: Atributo | C1: Grupo | D1: Área / Dimensão | E1: Impacto | F1: Importância
A2: 1 | B2: Frecuencia adecuada de contacto, presencia, relación: visitas y contacto por teléfono, correo electrónico y videoconferencia. | C2: Calidaded Percibida | D2: Compra | E2: 0.74
A3: 2 | B3: Eficacia de la visita del vendedor: conocimiento, asesoramiento y consultoría empresarial. | C3: Calidaded Percibida | D3: Compra | E3: 0.72
A4: 3 | B4: Flexibilidad en la negociación para satisfacer sus necesidades. | C4: Calidaded Percibida | D4: Compra | E4: 0.84
A5: 4 | B5: Servicio del equipo de soporte de ventas / back-office: cortesía, amabilidad, eficacia. | C5: Calidaded Percibida | D5: Compra | E5: 0.59
A6: 5 | B6: Entrega del pedido en el plazo acordado. | C6: Calidaded Percibida | D6: Logística | E6: 0.75
A7: 6 | B7: Entrega conforme al pedido: exactitud de los productos y cantidades. | C7: Calidaded Percibida | D7: Logística | E7: 0.65
A8: 7 | B8: Integridad del producto en el momento de la entrega: en perfecto estado, sin daños. | C8: Calidaded Percibida | D8: Logística | E8: 0.46
A9: 8 | B9: Actitud del transportista: disposición para servir, atento, facilita la información. | C9: Calidaded Percibida | D9: Logística | E9: 0.49
A10: 9 | B10: Agilidad para resolver discrepancias de entrega en relación con el pedido. | C10: Calidaded Percibida | D10: Logística | E10: 0.62
A11: 10 | B11: Cobertura de líneas de productos que responden a las necesidades del mercado. | C11: Calidaded Percibida | D11: Productos | E11: 0.8
A12: 11 | B12: Calidad de los productos de las líneas: inspiran confianza, son bien aceptados, no dan problemas. | C12: Calidaded Percibida | D12: Productos | E12: 0.68
A13: 12 | B13: Agilidad en el desarrollo de nuevas líneas de productos para satisfacer las necesidades del mercado. | C13: Calidaded Percibida | D13: Productos | E13: 0.75
A14: 13 | B14: Eficacia del servicio de atención al cliente (0800, SAC). | C14: Calidaded Percibida | D14: Post-venta | E14: 0.59
A15: 14 | B15: Eficacia del proceso de garantía: análisis, respuesta y pago. | C15: Calidaded Percibida | D15: Post-venta | E15: 0.72
A16: 15 | B16: Apoyo del equipo técnico: conocimientos, asesoramiento, presencia. | C16: Calidaded Percibida | D16: Post-venta | E16: 0.87
A17: 16 | B17: Disponibilidad para entrenamientos y charlas técnicas. | C17: Calidaded Percibida | D17: Post-venta | E17: 0.83
A18: 17 | B18: Comunicación de la marca y de los productos al mercado: publicidad, redes sociales, ferias, material promocional y técnico, vídeos, etc. | C18: Calidaded Percibida | D18: Comunicación con el Mercado | E18: 0.58
A19: 18 | B19: Acciones de apoyo a su equipo de ventas: campañas de ventas, materiales de comunicación, eventos y patrocinios. | C19: Calidaded Percibida | D19: Comunicación con el Mercado | E19: 0.78
A20: 19 | B20: Catálogo online: acceso y calidad de la información. | C20: Calidaded Percibida | D20: Comunicación con el Mercado | E20: 0.69
A21: 20 | B21: Boletín de lanzamiento de nuevos productos. | C21: Calidaded Percibida | D21: Comunicación con el Mercado | E21: 0.72
A22: 21 | B22: Recepción de los documentos de cobro a su debido tiempo. | C22: Calidaded Percibida | D22: Facturiación | E22: 0.47
A23: 22 | B23: Facilidad para resolver cualquier problema de facturación. | C23: Calidaded Percibida | D23: Facturiación | E23: 0.61
A24: 23 | B24: Marca ética: seria, honesta, correcta, imparcial. | C24: Calidaded Percibida | D24: Imagen de las Marcas | E24: 0.69
A25: 24 | B25: Marca sólida que transmite seguridad y confianza. | C25: Calidaded Percibida | D25: Imagen de las Marcas | E25: 0.68
A26: 25 | B26: Marca que sigue las tendencias y evoluciones en gestión, procesos y servicios. | C26: Calidaded Percibida | D26: Imagen de las Marcas | E26: 0.83
A27: 26 | B27: Marca que busca la excelencia en productos y servicios. | C27: Calidaded Percibida | D27: Imagen de las Marcas | E27: 0.78
A28: 27 | B28: Política comercial transparente y fiable. | C28: Condiciones Comerciales | D28: Condiciones Comerciales | E28: 0.86
A29: 28 | B29: Precio en relación con la calidad ofrecida (productos y servicios). | C29: Condiciones Comerciales | D29: Condiciones Comerciales | E29: 0.87
A30: 29 | B30: Condiciones de pago. | C30: Condiciones Comerciales | D30: Condiciones Comerciales | E30: 0.65

Sheet SEGMENTOS
A1: ID_Segmento | B1: Segmento | C1: Comparativo
A2: 2900 | B2: Mercado
A3: 17337 | B3: IAM - Brasil + Latam | C3: 2900
A4: 17338 | B4: IAM - Brasil | C4: 17337
A5: 17281 | B5: IAM - Latam | C5: 17337
A6: 17282 | B6: IAM - Aray | C6: 17281
A7: 17283 | B7: IAM - Fapan | C7: 17281
A8: 17284 | B8: IAM - SSC | C8: 17281
A9: 17285 | B9: IAM - Latam - Controil | C9: 17281
A10: 17286 | B10: IAM - Latam - Aray - Controil | C10: 17281
A11: 17287 | B11: IAM - Latam - Fapan - Controil | C11: 17281
A12: 17288 | B12: IAM - Latam - SSC - Controil | C12: 17281
A13: 17289 | B13: IAM - Latam - Fras-le | C13: 17281
A14: 17290 | B14: IAM - Latam - Aray - Fras-le | C14: 17281
A15: 17291 | B15: IAM - Latam - Fapan - Fras-le | C15: 17281
A16: 17292 | B16: IAM - Latam - SSC - Fras-le | C16: 17281
A17: 17293 | B17: IAM - Latam - Fremax | C17: 17281
A18: 17294 | B18: IAM - Latam - Aray - Fremax | C18: 17281
A19: 17295 | B19: IAM - Latam - SSC - Fremax | C19: 17281
A20: 17296 | B20: IAM - Latam - Nakata | C20: 17281
A21: 17297 | B21: IAM - Latam - Aray - Nakata | C21: 17281
A22: 17298 | B22: IAM - Latam - Fapan - Nakata | C22: 17281
A23: 17299 | B23: IAM - Latam - SSC - Nakata | C23: 17281
A24: 17300 | B24: IAM - Latam - Aray - Agustin Barrutia / Leonardo Sanguinetti | C24: 17282
A25: 17301 | B25: IAM - Latam - Aray - Alejandro Saud | C25: 17282
A26: 17302 | B26: IAM - Latam - Aray - Esteban Gammacurta | C26: 17282
A27: 17303 | B27: IAM - Latam - Aray - Franco Stagno | C27: 17282
A28: 17304 | B28: IAM - Latam - Aray - Gaston Tula | C28: 17282
A29: 17305 | B29: IAM - Latam - Aray - Mario Figola | C29: 17282
A30: 17306 | B30: IAM - Latam - Aray - Martin Piparuolo | C30: 17282
A31: 17307 | B31: IAM - Latam - Dirección | C31: 17281
A32: 17308 | B32: IAM - Latam - Gestores de Marketing | C32: 17281
A33: 17309 | B33: IAM - Latam - Gestores de Vendas | C33: 17281
A34: 17310 | B34: IAM - Latam - Gestores de Compras | C34: 17281
A35: 17311 | B35: IAM - Latam - Gestores de Logística | C35: 17281
A36: 17312 | B36: IAM - Latam - Gestores de Negócios | C36: 17281
A37: 17313 | B37: IAM - Latam - Aray - Dirección | C37: 17282
A38: 17314 | B38: IAM - Latam - Aray - Gestores de Compras | C38: 17282
A39: 17315 | B39: IAM - Latam - Aray - Gestores de Negócios | C39: 17282
A40: 17316 | B40: IAM - Latam - Fapan — Dirección | C40: 17283
A41: 17317 | B41: IAM - Latam - Fapan - Gestores de Compras | C41: 17283
A42: 17318 | B42: IAM - Latam - Fapan - Gestores de Negócios | C42: 17283
A43: 17319 | B43: IAM - Latam - SSC - Dirección | C43: 17284
A44: 17320 | B44: IAM - Latam - SSC - Gestores de Compras | C44: 17284
A45: 17321 | B45: IAM - Latam - SSC - Gestores de Negócios | C45: 17284
A46: 17322 | B46: IAM - Latam - Aray - Clientes A | C46: 17282
A47: 17323 | B47: IAM - Latam - Aray - Clientes B | C47: 17282
A48: 17324 | B48: IAM - Latam - Aray - Clientes C | C48: 17282
A49: 17325 | B49: IAM - Latam - Linea Liviana | C49: 17281
A50: 17326 | B50: IAM - Latam - Linea Pesada | C50: 17281
A51: 17327 | B51: IAM - Latam - Ambas líneas: Liviana y Pesada | C51: 17281
A52: 17328 | B52: IAM - Latam - Aray - Linea Liviana | C52: 17282
A53: 17329 | B53: IAM - Latam - Aray - Linea Pesada | C53: 17282
A54: 17330 | B54: IAM - Latam - Aray - Ambas líneas: Liviana y Pesada | C54: 17282
A55: 17331 | B55: IAM - Latam - Fapan - Linea Liviana | C55: 17283
A56: 17332 | B56: IAM - Latam - Fapan - Linea Pesada | C56: 17283
A57: 17333 | B57: IAM - Latam - Fapan - Ambas líneas: Liviana y Pesada | C57: 17283
A58: 17334 | B58: IAM - Latam - SSC - Linea Liviana | C58: 17284
A59: 17335 | B59: IAM - Latam - SSC - Linea Pesada | C59: 17284
A60: 17336 | B60: IAM - Latam - SSC - Ambas líneas: Liviana y Pesada | C60: 17284

Sheet USUARIOS
A1: ID_Usuario | B1: Segmento | C1: Senha | D1: Visualiza01 | E1: Visualiza02 | F1: Visualiza03 | G1: Visualiza04 | H1: Visualiza05 | I1: Visualiza06 | J1: Visualiza07 | K1: Visualiza08 | L1: Visualiza09 | M1: Visualiza10 | N1: Visualiza11 | O1: Visualiza12 | P1: Visualiza13 | Q1: Visualiza14 | R1: Visualiza15 | S1: Visualiza16 | T1: Visualiza17 | U1: Visualiza18 | V1: Visualiza19 | W1: Visualiza20 | X1: Visualiza21 | Y1: Visualiza22 | Z1: Visualiza23 | AA1: Visualiza24 | AB1: Visualiza25 | AC1: Visualiza26 | AD1: Visualiza27 | AE1: Visualiza28 | AF1: Visualiza29 | AG1: Visualiza30 | AH1: Visualiza31 | AI1: Visualiza32 | AJ1: Visualiza33 | AK1: Visualiza34 | AL1: Visualiza35 | AM1: Visualiza36 | AN1: Visualiza37 | AO1: Visualiza38 | AP1: Visualiza39 | AQ1: Visualiza40 | AR1: Visualiza41 | AS1: Visualiza42 | AT1: Visualiza43 | AU1: Visualiza44 | AV1: Visualiza45 | AW1: Visualiza46 | AX1: Visualiza47 | AY1: Visualiza48 | AZ1: Visualiza49 | BA1: Visualiza50 | BB1: Visualiza51 | BC1: Visualiza52 | BD1: Visualiza53 | BE1: Visualiza54 | BF1: Visualiza55 | BG1: Visualiza56 | BH1: Visualiza57 | BI1: Visualiza58 | BJ1: Visualiza59
A2: 17281 | B2: IAM - Latam | C2: E3X7L | D2: 2900 | E2: 17337 | F2: 17338 | G2: 17281 | H2: 17282 | I2: 17283 | J2: 17284 | K2: 17285 | L2: 17286 | M2: 17287 | N2: 17288 | O2: 17289 | P2: 17290 | Q2: 17291 | R2: 17292 | S2: 17293 | T2: 17294 | U2: 17295 | V2: 17296 | W2: 17297 | X2: 17298 | Y2: 17299 | Z2: 17300 | AA2: 17301 | AB2: 17302 | AC2: 17303 | AD2: 17304 | AE2: 17305 | AF2: 17306 | AG2: 17307 | AH2: 17308 | AI2: 17309 | AJ2: 17310 | AK2: 17311 | AL2: 17312 | AM2: 17313 | AN2: 17314 | AO2: 17315 | AP2: 17316 | AQ2: 17317 | AR2: 17318 | AS2: 17319 | AT2: 17320 | AU2: 17321 | AV2: 17322 | AW2: 17323 | AX2: 17324 | AY2: 17325 | AZ2: 17326 | BA2: 17327 | BB2: 17328 | BC2: 17329 | BD2: 17330 | BE2: 17331 | BF2: 17332 | BG2: 17333 | BH2: 17334 | BI2: 17335 | BJ2: 17336
A3: 17282 | B3: IAM - Aray | C3: E4X6A | D3: 2900 | E3: 17281 | F3: 17282 | G3: 17286 | H3: 17290 | I3: 17294 | J3: 17297 | K3: 17300 | L3: 17301 | M3: 17302 | N3: 17303 | O3: 17304 | P3: 17305 | Q3: 17306 | R3: 17313 | S3: 17314 | T3: 17315 | U3: 17322 | V3: 17323 | W3: 17324 | X3: 17328 | Y3: 17329 | Z3: 17330
A4: 17283 | B4: IAM - Fapan | C4: E6X4F | D4: 2900 | E4: 17281 | F4: 17283 | G4: 17287 | H4: 17291 | I4: 17298 | J4: 17316 | K4: 17317 | L4: 17318 | M4: 17331 | N4: 17332 | O4: 17333
A5: 17284 | B5: IAM - SSC | C5: E7X3S | D5: 2900 | E5: 17281 | F5: 17284 | G5: 17288 | H5: 17292 | I5: 17295 | J5: 17299 | K5: 17319 | L5: 17320 | M5: 17321 | N5: 17334 | O5: 17335 | P5: 17336

Sheet PERFIL
A1: ID_SEGMENTO | B1: SEGMENTO_NOME | C1: DATA | D1: Cantidad de respondientes | E1: BU | F1: BU | G1: BU | H1: Porte del cliente | I1: Porte del cliente | J1: Porte del cliente | K1: Línea que más compra | L1: Línea que más compra | M1: Línea que más compra | N1: Perfil del evaluador | O1: Perfil del evaluador | P1: Perfil del evaluador | Q1: Perfil del evaluador | R1: Perfil del evaluador | S1: Perfil del evaluador | T1: Marca evaluada | U1: Marca evaluada | V1: Marca evaluada | W1: Marca evaluada
A2: - | B2: - | C2: - | D2: - | E2: ARAY | F2: FAPAN | G2: SSC | H2: Clientes A | I2: Clientes B | J2: Clientes C | K2: Ambas líneas | L2: Línea Liviana | M2: Línea Pesada | N2: Compras | O2: Dirección | P2: Gestor | Q2: Logística | R2: Marketing | S2: Ventas | T2: Controil | U2: Fras-le | V2: Fremax | W2: Nakata
A3: 17337 | B3: IAM - Brasil + Latam | C3: 2025-06-02 | D3: 1227 | E3: 305 | F3: 65 | G3: 64 | H3: 529 | I3: 307 | J3: 262 | K3: 786 | L3: 372 | M3: 69 | N3: 242 | O3: 315 | P3: 184 | Q3: 44 | R3: 30 | S3: 412 | T3: 280 | U3: 326 | V3: 248 | W3: 291
A4: 17338 | B4: IAM - Brasil | C4: 2025-06-02 | D4: 793 | H4: 439 | I4: 188 | J4: 166 | K4: 511 | L4: 260 | M4: 22 | N4: 158 | O4: 172 | Q4: 36 | R4: 23 | S4: 404 | T4: 183 | U4: 178 | V4: 166 | W4: 184
A5: 17281 | B5: IAM - Latam | C5: 2025-06-02 | D5: 434 | E5: 305 | F5: 65 | G5: 64 | H5: 90 | I5: 119 | J5: 96 | K5: 275 | L5: 112 | M5: 47 | N5: 84 | O5: 143 | P5: 184 | Q5: 8 | R5: 7 | S5: 8 | T5: 97 | U5: 148 | V5: 82 | W5: 107
A6: 17282 | B6: IAM - Aray | C6: 2025-06-02 | D6: 305 | H6: 90 | I6: 119 | J6: 96 | K6: 192 | L6: 88 | M6: 25 | N6: 35 | O6: 116 | P6: 150 | Q6: 4 | T6: 72 | U6: 93 | V6: 67 | W6: 73
A7: 17283 | B7: IAM - Fapan | C7: 2025-06-02 | D7: 65 | K7: 37 | L7: 17 | M7: 11 | N7: 16 | O7: 21 | P7: 16 | Q7: 4 | R7: 3 | S7: 5 | T7: 12 | U7: 33 | V7: 4 | W7: 16
A8: 17284 | B8: IAM - SSC | C8: 2025-06-02 | D8: 64 | K8: 46 | L8: 7 | M8: 11 | N8: 33 | O8: 6 | P8: 18 | R8: 4 | S8: 3 | T8: 13 | U8: 22 | V8: 11 | W8: 18
A9: =_xlfn.XLOOKUP(B9,SEGMENTOS!B:B,SEGMENTOS!A:A) -> 17285 | B9: IAM - Latam - Controil | C9: 2025-06-02 | D9: 97 | E9: 72 | F9: 12 | G9: 13 | H9: 18 | I9: 29 | J9: 25 | K9: 69 | L9: 19 | M9: 9 | N9: 15 | O9: 37 | P9: 41 | Q9: 2 | R9: 2
A10: =_xlfn.XLOOKUP(B10,SEGMENTOS!B:B,SEGMENTOS!A:A) -> 17286 | B10: IAM - Latam - Aray - Controil | C10: 2025-06-02 | D10: 72 | H10: 18 | I10: 29 | J10: 25 | K10: 51 | L10: 13 | M10: 8 | N10: 7 | O10: 31 | P10: 33 | Q10: 1
A11: =_xlfn.XLOOKUP(B11,SEGMENTOS!B:B,SEGMENTOS!A:A) -> 17287 | B11: IAM - Latam - Fapan - Controil | C11: 2025-06-02 | D11: 12 | K11: 8 | L11: 3 | M11: 1 | N11: 2 | O11: 4 | P11: 4 | Q11: 1 | R11: 1
A12: =_xlfn.XLOOKUP(B12,SEGMENTOS!B:B,SEGMENTOS!A:A) -> 17288 | B12: IAM - Latam - SSC - Controil | C12: 2025-06-02 | D12: 13 | K12: 10 | L12: 3 | N12: 6 | O12: 2 | P12: 4 | R12: 1
A13: =_xlfn.XLOOKUP(B13,SEGMENTOS!B:B,SEGMENTOS!A:A) -> 17289 | B13: IAM - Latam - Fras-le | C13: 2025-06-02 | D13: 148 | E13: 93 | F13: 33 | G13: 22 | H13: 22 | I13: 34 | J13: 37 | K13: 93 | L13: 29 | M13: 26 | N13: 30 | O13: 44 | P13: 64 | Q13: 3 | R13: 2 | S13: 5
A14: =_xlfn.XLOOKUP(B14,SEGMENTOS!B:B,SEGMENTOS!A:A) -> 17290 | B14: IAM - Latam - Aray - Fras-le | C14: 2025-06-02 | D14: 93 | H14: 22 | I14: 34 | J14: 37 | K14: 59 | L14: 21 | M14: 13 | N14: 8 | O14: 32 | P14: 52 | Q14: 1
A15: =_xlfn.XLOOKUP(B15,SEGMENTOS!B:B,SEGMENTOS!A:A) -> 17291 | B15: IAM - Latam - Fapan - Fras-le | C15: 2025-06-02 | D15: 33 | K15: 18 | L15: 7 | M15: 8 | N15: 10 | O15: 10 | P15: 6 | Q15: 2 | R15: 1 | S15: 4
A16: =_xlfn.XLOOKUP(B16,SEGMENTOS!B:B,SEGMENTOS!A:A) -> 17292 | B16: IAM - Latam - SSC - Fras-le | C16: 2025-06-02 | D16: 22 | K16: 16 | L16: 1 | M16: 5 | N16: 12 | O16: 2 | P16: 6 | R16: 1 | S16: 1
A17: =_xlfn.XLOOKUP(B17,SEGMENTOS!B:B,SEGMENTOS!A:A) -> 17293 | B17: IAM - Latam - Fremax | C17: 2025-06-02 | D17: 82 | E17: 67 | F17: 4 | G17: 11 | H17: 24 | I17: 26 | J17: 17 | K17: 50 | L17: 29 | M17: 3 | N17: 13 | O17: 33 | P17: 33 | Q17: 1 | S17: 2
A18: =_xlfn.XLOOKUP(B18,SEGMENTOS!B:B,SEGMENTOS!A:A) -> 17294 | B18: IAM - Latam - Aray - Fremax | C18: 2025-06-02 | D18: 67 | H18: 24 | I18: 26 | J18: 17 | K18: 42 | L18: 24 | M18: 1 | N18: 7 | O18: 30 | P18: 29 | Q18: 1
A19: =_xlfn.XLOOKUP(B19,SEGMENTOS!B:B,SEGMENTOS!A:A) -> 17295 | B19: IAM - Latam - SSC - Fremax | C19: 2025-06-02 | D19: 11 | K19: 7 | L19: 2 | M19: 2 | N19: 5 | O19: 2 | P19: 3 | S19: 1
A20: =_xlfn.XLOOKUP(B20,SEGMENTOS!B:B,SEGMENTOS!A:A) -> 17296 | B20: IAM - Latam - Nakata | C20: 2025-06-02 | D20: 107 | E20: 73 | F20: 16 | G20: 18 | H20: 26 | I20: 30 | J20: 17 | K20: 63 | L20: 35 | M20: 9 | N20: 26 | O20: 29 | P20: 46 | Q20: 2 | R20: 3 | S20: 1
A21: =_xlfn.XLOOKUP(B21,SEGMENTOS!B:B,SEGMENTOS!A:A) -> 17297 | B21: IAM - Latam - Aray - Nakata | C21: 2025-06-02 | D21: 73 | H21: 26 | I21: 30 | J21: 17 | K21: 40 | L21: 30 | M21: 3 | N21: 13 | O21: 23 | P21: 36 | Q21: 1
A22: =_xlfn.XLOOKUP(B22,SEGMENTOS!B:B,SEGMENTOS!A:A) -> 17298 | B22: IAM - Latam - Fapan - Nakata | C22: 2025-06-02 | D22: 16 | K22: 10 | L22: 4 | M22: 2 | N22: 3 | O22: 6 | P22: 5 | Q22: 1 | R22: 1
A23: =_xlfn.XLOOKUP(B23,SEGMENTOS!B:B,SEGMENTOS!A:A) -> 17299 | B23: IAM - Latam - SSC - Nakata | C23: 2025-06-02 | D23: 18 | K23: 13 | L23: 1 | M23: 4 | N23: 10 | P23: 5 | R23: 2 | S23: 1
A24: =_xlfn.XLOOKUP(B24,SEGMENTOS!B:B,SEGMENTOS!A:A) -> 17300 | B24: IAM - Latam - Aray - Agustin Barrutia / Leonardo Sanguinetti | C24: 2025-06-02 | D24: 13 | H24: 13 | K24: 9 | L24: 2 | M24: 2 | N24: 5 | O24: 7 | P24: 1 | T24: 4 | U24: 2 | V24: 4 | W24: 3
A25: =_xlfn.XLOOKUP(B25,SEGMENTOS!B:B,SEGMENTOS!A:A) -> 17301 | B25: IAM - Latam - Aray - Alejandro Saud | C25: 2025-06-02 | D25: 50 | H25: 6 | I25: 21 | J25: 23 | K25: 35 | L25: 13 | M25: 2 | N25: 6 | O25: 20 | P25: 24 | T25: 11 | U25: 13 | V25: 12 | W25: 14
A26: =_xlfn.XLOOKUP(B26,SEGMENTOS!B:B,SEGMENTOS!A:A) -> 17302 | B26: IAM - Latam - Aray - Esteban Gammacurta | C26: 2025-06-02 | D26: 11 | H26: 5 | J26: 6 | K26: 4 | L26: 7 | N26: 1 | O26: 3 | P26: 7 | T26: 1 | U26: 1 | V26: 1 | W26: 8
A27: =_xlfn.XLOOKUP(B27,SEGMENTOS!B:B,SEGMENTOS!A:A) -> 17303 | B27: IAM - Latam - Aray - Franco Stagno | C27: 2025-06-02 | D27: 37 | H27: 10 | I27: 22 | J27: 5 | K27: 22 | L27: 14 | M27: 1 | N27: 2 | O27: 14 | P27: 21 | T27: 3 | U27: 5 | V27: 12 | W27: 17
A28: =_xlfn.XLOOKUP(B28,SEGMENTOS!B:B,SEGMENTOS!A:A) -> 17304 | B28: IAM - Latam - Aray - Gaston Tula | C28: 2025-06-02 | D28: 58 | H28: 26 | I28: 14 | J28: 18 | K28: 34 | L28: 18 | M28: 6 | N28: 9 | O28: 17 | P28: 32 | T28: 10 | U28: 23 | V28: 12 | W28: 13
A29: =_xlfn.XLOOKUP(B29,SEGMENTOS!B:B,SEGMENTOS!A:A) -> 17305 | B29: IAM - Latam - Aray - Mario Figola | C29: 2025-06-02 | D29: 41 | H29: 18 | I29: 13 | J29: 10 | K29: 33 | L29: 8 | N29: 4 | O29: 20 | P29: 17 | T29: 11 | U29: 13 | V29: 11 | W29: 6
A30: =_xlfn.XLOOKUP(B30,SEGMENTOS!B:B,SEGMENTOS!A:A) -> 17306 | B30: IAM - Latam - Aray - Martin Piparuolo | C30: 2025-06-02 | D30: 94 | H30: 12 | I30: 49 | J30: 33 | K30: 54 | L30: 26 | M30: 14 | N30: 8 | O30: 34 | P30: 48 | Q30: 4 | T30: 32 | U30: 36 | V30: 15 | W30: 11
A31: =_xlfn.XLOOKUP(B31,SEGMENTOS!B:B,SEGMENTOS!A:A) -> 17307 | B31: IAM - Latam - Dirección | C31: 2025-06-02 | D31: 143 | E31: 116 | F31: 21 | G31: 6 | H31: 43 | I31: 49 | J31: 24 | K31: 143 | T31: 37 | U31: 44 | V31: 33 | W31: 29
A32: =_xlfn.XLOOKUP(B32,SEGMENTOS!B:B,SEGMENTOS!A:A) -> 17308 | B32: IAM - Latam - Gestores de Marketing | C32: 2025-06-02 | D32: 7 | F32: 3 | G32: 4 | K32: 7 | T32: 2 | U32: 2 | W32: 3
A33: =_xlfn.XLOOKUP(B33,SEGMENTOS!B:B,SEGMENTOS!A:A) -> 17309 | B33: IAM - Latam - Gestores de Vendas | C33: 2025-06-02 | D33: 8 | F33: 5 | G33: 3 | K33: 4 | L33: 2 | M33: 2 | U33: 5 | V33: 2 | W33: 1
A34: =_xlfn.XLOOKUP(B34,SEGMENTOS!B:B,SEGMENTOS!A:A) -> 17310 | B34: IAM - Latam - Gestores de Compras | C34: 2025-06-02 | D34: 84 | E34: 35 | F34: 16 | G34: 33 | H34: 20 | I34: 3 | J34: 12 | K34: 42 | L34: 28 | M34: 14 | T34: 15 | U34: 30 | V34: 13 | W34: 26
A35: =_xlfn.XLOOKUP(B35,SEGMENTOS!B:B,SEGMENTOS!A:A) -> 17311 | B35: IAM - Latam - Gestores de Logística | C35: 2025-06-02 | D35: 8 | E35: 4 | F35: 4 | H35: 4 | K35: 8 | T35: 2 | U35: 3 | V35: 1 | W35: 2
A36: =_xlfn.XLOOKUP(B36,SEGMENTOS!B:B,SEGMENTOS!A:A) -> 17312 | B36: IAM - Latam - Gestores de Negócios | C36: 2025-06-02 | D36: 184 | E36: 150 | F36: 16 | G36: 18 | H36: 23 | I36: 67 | J36: 60 | K36: 71 | L36: 82 | M36: 31 | T36: 41 | U36: 64 | V36: 33 | W36: 46
A37: =_xlfn.XLOOKUP(B37,SEGMENTOS!B:B,SEGMENTOS!A:A) -> 17314 | B37: IAM - Latam - Aray - Gestores de Compras | C37: 2025-06-02 | D37: 35 | H37: 20 | I37: 3 | J37: 12 | K37: 10 | L37: 18 | M37: 7 | T37: 7 | U37: 8 | V37: 7 | W37: 13
A38: =_xlfn.XLOOKUP(B38,SEGMENTOS!B:B,SEGMENTOS!A:A) -> 17313 | B38: IAM - Latam - Aray - Dirección | C38: 2025-06-02 | D38: 116 | H38: 43 | I38: 49 | J38: 24 | K38: 116 | T38: 31 | U38: 32 | V38: 30 | W38: 23
A39: =_xlfn.XLOOKUP(B39,SEGMENTOS!B:B,SEGMENTOS!A:A) -> 17315 | B39: IAM - Latam - Aray - Gestores de Negócios | C39: 2025-06-02 | D39: 150 | H39: 23 | I39: 67 | J39: 60 | K39: 62 | L39: 70 | M39: 18 | T39: 33 | U39: 52 | V39: 29 | W39: 36
A40: =_xlfn.XLOOKUP(B40,SEGMENTOS!B:B,SEGMENTOS!A:A) -> 17317 | B40: IAM - Latam - Fapan - Gestores de Compras | C40: 2025-06-02 | D40: 16 | K40: 7 | L40: 5 | M40: 4 | T40: 2 | U40: 10 | V40: 1 | W40: 3
A41: =_xlfn.XLOOKUP(B41,SEGMENTOS!B:B,SEGMENTOS!A:A) -> 17316 | B41: IAM - Latam - Fapan — Dirección | C41: 2025-06-02 | D41: 21 | K41: 21 | T41: 4 | U41: 10 | V41: 1 | W41: 6
A42: =_xlfn.XLOOKUP(B42,SEGMENTOS!B:B,SEGMENTOS!A:A) -> 17318 | B42: IAM - Latam - Fapan - Gestores de Negócios | C42: 2025-06-02 | D42: 16 | K42: 1 | L42: 10 | M42: 5 | T42: 4 | U42: 6 | V42: 1 | W42: 5
A43: =_xlfn.XLOOKUP(B43,SEGMENTOS!B:B,SEGMENTOS!A:A) -> 17320 | B43: IAM - Latam - SSC - Gestores de Compras | C43: 2025-06-02 | D43: 33 | K43: 25 | L43: 5 | M43: 3 | T43: 6 | U43: 12 | V43: 5 | W43: 10
A44: =_xlfn.XLOOKUP(B44,SEGMENTOS!B:B,SEGMENTOS!A:A) -> 17319 | B44: IAM - Latam - SSC - Dirección | C44: 2025-06-02 | D44: 6 | K44: 6 | T44: 2 | U44: 2 | V44: 2
A45: =_xlfn.XLOOKUP(B45,SEGMENTOS!B:B,SEGMENTOS!A:A) -> 17321 | B45: IAM - Latam - SSC - Gestores de Negócios | C45: 2025-06-02 | D45: 18 | K45: 8 | L45: 2 | M45: 8 | T45: 4 | U45: 6 | V45: 3 | W45: 5
A46: =_xlfn.XLOOKUP(B46,SEGMENTOS!B:B,SEGMENTOS!A:A) -> 17322 | B46: IAM - Latam - Aray - Clientes A | C46: 2025-06-02 | D46: 90 | K46: 63 | L46: 23 | M46: 4 | N46: 20 | O46: 43 | P46: 23 | Q46: 4 | T46: 18 | U46: 22 | V46: 24 | W46: 26
A47: =_xlfn.XLOOKUP(B47,SEGMENTOS!B:B,SEGMENTOS!A:A) -> 17323 | B47: IAM - Latam - Aray - Clientes B | C47: 2025-06-02 | D47: 119 | K47: 85 | L47: 30 | M47: 4 | N47: 3 | O47: 49 | P47: 67 | T47: 29 | U47: 34 | V47: 26 | W47: 30
A48: =_xlfn.XLOOKUP(B48,SEGMENTOS!B:B,SEGMENTOS!A:A) -> 17324 | B48: IAM - Latam - Aray - Clientes C | C48: 2025-06-02 | D48: 96 | K48: 44 | L48: 35 | M48: 17 | N48: 12 | O48: 24 | P48: 60 | T48: 25 | U48: 37 | V48: 17 | W48: 17
A49: =_xlfn.XLOOKUP(B49,SEGMENTOS!B:B,SEGMENTOS!A:A) -> 17327 | B49: IAM - Latam - Ambas líneas: Liviana y Pesada | C49: 2025-06-02 | D49: 275 | E49: 192 | F49: 37 | G49: 46 | H49: 63 | I49: 85 | J49: 44 | N49: 42 | O49: 143 | P49: 71 | Q49: 8 | R49: 7 | S49: 4 | T49: 69 | U49: 93 | V49: 50 | W49: 63
A50: =_xlfn.XLOOKUP(B50,SEGMENTOS!B:B,SEGMENTOS!A:A) -> 17325 | B50: IAM - Latam - Linea Liviana | C50: 2025-06-02 | D50: 112 | E50: 88 | F50: 17 | G50: 7 | H50: 23 | I50: 30 | J50: 35 | N50: 28 | P50: 82 | S50: 2 | T50: 19 | U50: 29 | V50: 29 | W50: 35
A51: =_xlfn.XLOOKUP(B51,SEGMENTOS!B:B,SEGMENTOS!A:A) -> 17326 | B51: IAM - Latam - Linea Pesada | C51: 2025-06-02 | D51: 47 | E51: 25 | F51: 11 | G51: 11 | H51: 4 | I51: 4 | J51: 17 | N51: 14 | P51: 31 | S51: 2 | T51: 9 | U51: 26 | V51: 3 | W51: 9
A52: =_xlfn.XLOOKUP(B52,SEGMENTOS!B:B,SEGMENTOS!A:A) -> 17330 | B52: IAM - Latam - Aray - Ambas líneas: Liviana y Pesada | C52: 2025-06-02 | D52: 192 | H52: 63 | I52: 85 | J52: 44 | N52: 10 | O52: 116 | P52: 62 | Q52: 4 | T52: 51 | U52: 59 | V52: 42 | W52: 40
A53: =_xlfn.XLOOKUP(B53,SEGMENTOS!B:B,SEGMENTOS!A:A) -> 17328 | B53: IAM - Latam - Aray - Linea Liviana | C53: 2025-06-02 | D53: 88 | H53: 23 | I53: 30 | J53: 35 | N53: 18 | P53: 70 | T53: 13 | U53: 21 | V53: 24 | W53: 30
A54: =_xlfn.XLOOKUP(B54,SEGMENTOS!B:B,SEGMENTOS!A:A) -> 17329 | B54: IAM - Latam - Aray - Linea Pesada | C54: 2025-06-02 | D54: 25 | H54: 4 | I54: 4 | J54: 17 | N54: 7 | P54: 18 | T54: 8 | U54: 13 | V54: 1 | W54: 3
A55: =_xlfn.XLOOKUP(B55,SEGMENTOS!B:B,SEGMENTOS!A:A) -> 17333 | B55: IAM - Latam - Fapan - Ambas líneas: Liviana y Pesada | C55: 2025-06-02 | D55: 37 | N55: 7 | O55: 21 | P55: 1 | Q55: 4 | R55: 3 | S55: 1 | T55: 8 | U55: 18 | V55: 1 | W55: 10
A56: =_xlfn.XLOOKUP(B56,SEGMENTOS!B:B,SEGMENTOS!A:A) -> 17331 | B56: IAM - Latam - Fapan - Linea Liviana | C56: 2025-06-02 | D56: 17 | N56: 5 | P56: 10 | S56: 2 | T56: 3 | U56: 7 | V56: 3 | W56: 4
A57: =_xlfn.XLOOKUP(B57,SEGMENTOS!B:B,SEGMENTOS!A:A) -> 17332 | B57: IAM - Latam - Fapan - Linea Pesada | C57: 2025-06-02 | D57: 11 | N57: 4 | P57: 5 | S57: 2 | T57: 1 | U57: 8 | W57: 2
A58: =_xlfn.XLOOKUP(B58,SEGMENTOS!B:B,SEGMENTOS!A:A) -> 17336 | B58: IAM - Latam - SSC - Ambas líneas: Liviana y Pesada | C58: 2025-06-02 | D58: 46 | N58: 25 | O58: 6 | P58: 8 | R58: 4 | S58: 3 | T58: 10 | U58: 16 | V58: 7 | W58: 13
A59: =_xlfn.XLOOKUP(B59,SEGMENTOS!B:B,SEGMENTOS!A:A) -> 17334 | B59: IAM - Latam - SSC - Linea Liviana | C59: 2025-06-02 | D59: 7 | N59: 5 | P59: 2 | T59: 3 | U59: 1 | V59: 2 | W59: 1
A60: =_xlfn.XLOOKUP(B60,SEGMENTOS!B:B,SEGMENTOS!A:A) -> 17335 | B60: IAM - Latam - SSC - Linea Pesada | C60: 2025-06-02 | D60: 11 | N60: 3 | P60: 8 | U60: 5 | V60: 2 | W60: 4

Sheet APL_2_NOTA
A1: ID_Segmento | B1: Segmento | C1: Data | D1: 1 | E1: 2 | F1: 3 | G1: 4 | H1: 5 | I1: 6 | J1: 7 | K1: 8 | L1: 9 | M1: 10 | N1: 11 | O1: 12 | P1: 13 | Q1: 14 | R1: 15 | S1: 16 | T1: 17 | U1: 18 | V1: 19 | W1: 20 | X1: 21 | Y1: 22 | Z1: 23 | AA1: 24 | AB1: 25 | AC1: 26 | AD1: 27 | AE1: 28 | AF1: 29 | AG1: IQP | AH1: I$P
A2: =_xlfn.XLOOKUP(B2,SEGMENTOS!B:B,SEGMENTOS!A:A) -> 2900 | B2: Mercado | C2: 2025-06-02 | AG2: 7.527135272 | AH2: 6.74390582
A3: 17337 | B3: IAM - Brasil + Latam | C3: 2025-06-02 | D3: 8.087604846 | E3: 8.310734463 | F3: 7.756676558 | G3: 8.672922252 | H3: 7.198571429 | I3: 7.654338549 | J3: 8.587951807 | K3: 8.026315789 | L3: 7.9 | M3: 8.236147757 | N3: 9.042272127 | O3: 7.950468541 | P3: 7.887640449 | Q3: 7.839753467 | R3: 8.097451274 | S3: 7.156787763 | T3: 7.521331946 | U3: 6.813735692 | V3: 8.184466019 | W3: 7.970557308 | X3: 8.60989011 | Y3: 8.567867036 | Z3: 9.262766945 | AA3: 9.294009217 | AB3: 8.789325843 | AC3: 9.055912007 | AD3: 8.566018424 | AE3: 8.28627451 | AF3: 7.969088099 | AG3: 8.150962365 | AH3: 8.300731904
A4: 17338 | B4: IAM - Brasil | C4: 2025-06-02 | D4: 7.971264368 | E4: 8.18287373 | F4: 8 | G4: 8.889655172 | H4: 7.360946746 | I4: 7.869436202 | J4: 8.433333333 | K4: 7.658682635 | L4: 7.791208791 | M4: 8.382978723 | N4: 9.089147287 | O4: 8.128654971 | P4: 7.703196347 | Q4: 7.811860941 | R4: 8.059288538 | S4: 6.968 | T4: 7.833084948 | U4: 7.023633678 | V4: 8.564465409 | W4: 7.965098634 | X4: 8.875 | Y4: 8.588235294 | Z4: 9.325284091 | AA4: 9.284106892 | AB4: 8.74676259 | AC4: 9.060308555 | AD4: 8.613268608 | AE4: 8.380517504 | AF4: 7.89632107 | AG4: 8.195887607 | AH4: 8.332382322
A5: 17281 | B5: IAM - Latam | C5: 2025-06-02 | D5: 8.302387268 | E5: 8.54691689 | F5: 7.553133515 | G5: 8.535087719 | H5: 7.046961326 | I5: 7.456284153 | J5: 8.706382979 | K5: 8.314553991 | L5: 7.986842105 | M5: 7.921161826 | N5: 8.941908714 | O5: 7.55982906 | P5: 8.182481752 | Q5: 7.925 | R5: 8.217391304 | S5: 7.635135135 | T5: 6.8 | U5: 6.313380282 | V5: 7.35395189 | W5: 7.982876712 | X5: 8.451754386 | Y5: 8.555555556 | Z5: 9.144772118 | AA5: 9.312834225 | AB5: 8.868632708 | AC5: 9.047619048 | AD5: 8.484679666 | AE5: 8.115702479 | AF5: 8.031609195 | AG5: 8.080877202 | AH5: 8.226063717
A6: 17282 | B6: IAM - Aray | C6: 2025-06-02 | D6: 8.337037037 | E6: 8.6 | F6: 7.333333333 | G6: 8.563291139 | H6: 7.06741573 | I6: 7.37037037 | J6: 8.682926829 | K6: 8.36196319 | L6: 7.925925926 | M6: 7.761006289 | N6: 8.95 | O6: 7.439490446 | P6: 7.956140351 | Q6: 7.755905512 | R6: 8.104 | S6: 7.455357143 | T6: 6.756521739 | U6: 6.094170404 | V6: 7.339130435 | W6: 8.034934498 | X6: 8.229299363 | Y6: 8.371794872 | Z6: 9.091254753 | AA6: 9.295454545 | AB6: 8.847908745 | AC6: 9.071161049 | AD6: 8.492248062 | AE6: 8.130769231 | AF6: 7.848249027 | AG6: 8.007303784 | AH6: 8.184228753
A7: 17283 | B7: IAM - Fapan | C7: 2025-06-02 | D7: 7.703703704 | E7: 7.833333333 | F7: 7.82 | G7: 7.533333333 | H7: 6.06 | I7: 6.68627451 | J7: 8.53125 | K7: 7.791666667 | L7: 7.466666667 | M7: 8.111111111 | N7: 8.657142857 | O7: 7.588235294 | P7: 9.25 | Q7: 8.631578947 | R7: 8.6 | S7: 8.05 | T7: 6.820512821 | U7: 6.975 | V7: 6.95 | W7: 7.853658537 | X7: 8.833333333 | Y7: 8.857142857 | Z7: 9.125 | AA7: 9.339285714 | AB7: 8.649122807 | AC7: 8.719298246 | AD7: 8.64 | AE7: 8.117647059 | AF7: 8.489361702 | AG7: 8.005990765 | AH7: 8.407915146
A8: 17284 | B8: IAM - SSC | C8: 2025-06-02 | D8: 8.735849057 | E8: 9 | F8: 8.46 | G8: 9.175 | H8: 8.022222222 | I8: 8.844444444 | J8: 8.948717949 | K8: 8.5 | L8: 8.694444444 | M8: 8.326086957 | N8: 9.130434783 | O8: 7.976744186 | P8: 9.428571429 | Q8: 8.5 | R8: 8.625 | S8: 8.375 | T8: 7.238095238 | U8: 7.380952381 | V8: 8.285714286 | W8: 7.681818182 | X8: 9.024390244 | Y8: 9.048780488 | Z8: 9.425925926 | AA8: 9.37037037 | AB8: 9.20754717 | AC8: 9.277777778 | AD8: 8.294117647 | AE8: 8.038461538 | AF8: 8.613636364 | AG8: 8.623026285 | AH8: 8.287927038
A9: =_xlfn.XLOOKUP(B9,SEGMENTOS!B:B,SEGMENTOS!A:A) -> 17285 | B9: IAM - Latam - Controil | C9: 2025-06-02 | D9: 7.829268293 | E9: 8.304878049 | F9: 7.353658537 | G9: 8.25 | H9: 6.8375 | I9: 7.481481481 | J9: 8.531914894 | K9: 7.975609756 | L9: 7.755555556 | M9: 7.136363636 | N9: 8.622222222 | O9: 6.930232558 | P9: 8.115384615 | Q9: 7.625 | R9: 7.96875 | S9: 7.379310345 | T9: 6.485294118 | U9: 6.123076923 | V9: 7.338235294 | W9: 7.797101449 | X9: 8.209302326 | Y9: 8.395348837 | Z9: 9.012345679 | AA9: 9.207317073 | AB9: 8.75308642 | AC9: 8.975609756 | AD9: 8.46835443 | AE9: 7.807692308 | AF9: 7.894736842 | AG9: 7.835774218 | AH9: 8.070191624
A10: =_xlfn.XLOOKUP(B10,SEGMENTOS!B:B,SEGMENTOS!A:A) -> 17286 | B10: IAM - Latam - Aray - Controil | C10: 2025-06-02 | D10: 7.68852459 | E10: 8.25 | F10: 6.983606557 | G10: 8.233333333 | H10: 6.813559322 | I10: 7.516666667 | J10: 8.34375 | K10: 7.9375 | L10: 7.548387097 | M10: 6.689655172 | N10: 8.633333333 | O10: 6.321428571 | P10: 7.818181818 | Q10: 7.25 | R10: 7.875 | S10: 7.142857143 | T10: 6.358490566 | U10: 5.764705882 | V10: 7.320754717 | W10: 7.79245283 | X10: 7.896551724 | Y10: 8.172413793 | Z10: 8.915254237 | AA10: 9.166666667 | AB10: 8.745762712 | AC10: 9.016666667 | AD10: 8.362068966 | AE10: 7.771929825 | AF10: 7.666666667 | AG10: 7.671644929 | AH10: 7.956425038
A11: =_xlfn.XLOOKUP(B11,SEGMENTOS!B:B,SEGMENTOS!A:A) -> 17287 | B11: IAM - Latam - Fapan - Controil | C11: 2025-06-02 | D11: 8.1 | E11: 7.9 | F11: 8.2 | G11: 7.333333333 | H11: 5.6 | I11: 5.7 | J11: 9.166666667 | K11: 7.5 | L11: 7.833333333 | M11: 7.333333333 | N11: 8 | O11: 7.833333333 | P11: 9.666666667 | Q11: 8.75 | R11: 8.75 | S11: 8.5 | T11: 7 | U11: 7.444444444 | V11: 7.111111111 | W11: 8.444444444 | X11: 8.833333333 | Y11: 9 | Z11: 9.090909091 | AA11: 9.272727273 | AB11: 8.272727273 | AC11: 8.363636364 | AD11: 9 | AE11: 8.1 | AF11: 8.6 | AG11: 8.023741317 | AH11: 8.561764706
A12: =_xlfn.XLOOKUP(B12,SEGMENTOS!B:B,SEGMENTOS!A:A) -> 17288 | B12: IAM - Latam - SSC - Controil | C12: 2025-06-02 | D12: 8.363636364 | E12: 8.916666667 | F12: 8.636363636 | G12: 9 | H12: 8.090909091 | I12: 8.909090909 | J12: 8.777777778 | K12: 8.6 | L12: 8.5 | M12: 8.444444444 | N12: 9 | O12: 8.222222222 | P12: 10 | Q12: 8.75 | R12: 7.75 | S12: 7.5 | T12: 6.833333333 | U12: 7.4 | V12: 7.833333333 | W12: 7 | X12: 8.875 | Y12: 8.75 | Z12: 9.454545455 | AA12: 9.363636364 | AB12: 9.272727273 | AC12: 9.363636364 | AD12: 8.545454545 | AE12: 7.727272727 | AF12: 8.555555556 | AG12: 8.496610134 | AH12: 8.249129955
A13: =_xlfn.XLOOKUP(B13,SEGMENTOS!B:B,SEGMENTOS!A:A) -> 17289 | B13: IAM - Latam - Fras-le | C13: 2025-06-02 | D13: 8.330827068 | E13: 8.6 | F13: 7.6328125 | G13: 8.469879518 | H13: 7.168 | I13: 7.703125 | J13: 8.630952381 | K13: 8.282051282 | L13: 7.891566265 | M13: 8.133333333 | N13: 8.93258427 | O13: 7.482758621 | P13: 8.160714286 | Q13: 7.9 | R13: 8.349206349 | S13: 7.694915254 | T13: 6.792079208 | U13: 6.44 | V13: 7.405940594 | W13: 7.803921569 | X13: 8.373493976 | Y13: 8.506024096 | Z13: 9.069230769 | AA13: 9.251908397 | AB13: 8.893129771 | AC13: 9.060606061 | AD13: 8.492063492 | AE13: 8.171875 | AF13: 8.06557377 | AG13: 8.099806764 | AH13: 8.258541514
A14: =_xlfn.XLOOKUP(B14,SEGMENTOS!B:B,SEGMENTOS!A:A) -> 17290 | B14: IAM - Latam - Aray - Fras-le | C14: 2025-06-02 | D14: 8.352272727 | E14: 8.658823529 | F14: 7.348837209 | G14: 8.446428571 | H14: 7.26744186 | I14: 7.602272727 | J14: 8.642857143 | K14: 8.245614035 | L14: 7.892857143 | M14: 7.964285714 | N14: 8.875 | O14: 7.339285714 | P14: 7.913043478 | Q14: 7.729166667 | R14: 8.224489796 | S14: 7.555555556 | T14: 6.763157895 | U14: 6.22972973 | V14: 7.486842105 | W14: 7.907894737 | X14: 8.018181818 | Y14: 8.181818182 | Z14: 8.939759036 | AA14: 9.152941176 | AB14: 8.75 | AC14: 8.964705882 | AD14: 8.313253012 | AE14: 8.058823529 | AF14: 7.75 | AG14: 8.002924527 | AH14: 8.066417673
A15: =_xlfn.XLOOKUP(B15,SEGMENTOS!B:B,SEGMENTOS!A:A) -> 17291 | B15: IAM - Latam - Fapan - Fras-le | C15: 2025-06-02 | D15: 7.785714286 | E15: 7.964285714 | F15: 8.04 | G15: 7.714285714 | H15: 6.333333333 | I15: 7.32 | J15: 8.266666667 | K15: 8.166666667 | L15: 7.2 | M15: 8.368421053 | N15: 8.833333333 | O15: 7.5 | P15: 9.428571429 | Q15: 8.5 | R15: 8.888888889 | S15: 8.111111111 | T15: 6.736842105 | U15: 6.736842105 | V15: 6.736842105 | W15: 7.35 | X15: 8.928571429 | Y15: 8.928571429 | Z15: 9.172413793 | AA15: 9.428571429 | AB15: 8.965517241 | AC15: 9.068965517 | AD15: 9.038461538 | AE15: 8.615384615 | AF15: 8.739130435 | AG15: 8.089952167 | AH15: 8.802057278
A16: =_xlfn.XLOOKUP(B16,SEGMENTOS!B:B,SEGMENTOS!A:A) -> 17292 | B16: IAM - Latam - SSC - Fras-le | C16: 2025-06-02 | D16: 9.117647059 | E16: 9.352941176 | F16: 8.470588235 | G16: 9.384615385 | H16: 7.933333333 | I16: 8.933333333 | J16: 9 | K16: 8.666666667 | L16: 8.75 | M16: 8.466666667 | N16: 9.266666667 | O16: 8.076923077 | P16: 9 | Q16: 8.75 | R16: 8.6 | S16: 8.2 | T16: 7.333333333 | U16: 7.857142857 | V16: 8.5 | W16: 8 | X16: 9.214285714 | Y16: 9.357142857 | Z16: 9.5 | AA16: 9.444444444 | AB16: 9.444444444 | AC16: 9.5 | AD16: 8.529411765 | AE16: 8.058823529 | AF16: 8.8 | AG16: 8.756479268 | AH16: 8.431290163
A17: =_xlfn.XLOOKUP(B17,SEGMENTOS!B:B,SEGMENTOS!A:A) -> 17293 | B17: IAM - Latam - Fremax | C17: 2025-06-02 | D17: 8.5 | E17: 8.614285714 | F17: 7.426470588 | G17: 8.615384615 | H17: 7.411764706 | I17: 7.656716418 | J17: 8.875 | K17: 8.358974359 | L17: 8.210526316 | M17: 8.19047619 | N17: 9.119047619 | O17: 7.9 | P17: 8 | Q17: 8.066666667 | R17: 8.034482759 | S17: 7.821428571 | T17: 7 | U17: 6.553571429 | V17: 7.482758621 | W17: 8.385964912 | X17: 8.292682927 | Y17: 8.425 | Z17: 9.309859155 | AA17: 9.463768116 | AB17: 8.914285714 | AC17: 9.180555556 | AD17: 8.357142857 | AE17: 8 | AF17: 8.03125 | AG17: 8.20606695 | AH17: 8.137586285
A18: =_xlfn.XLOOKUP(B18,SEGMENTOS!B:B,SEGMENTOS!A:A) -> 17294 | B18: IAM - Latam - Aray - Fremax | C18: 2025-06-02 | D18: 8.482758621 | E18: 8.568965517 | F18: 7.431034483 | G18: 8.516129032 | H18: 7.305084746 | I18: 7.448275862 | J18: 8.818181818 | K18: 8.424242424 | L18: 8.0625 | M18: 8.25 | N18: 9.125 | O18: 7.903225806 | P18: 7.958333333 | Q18: 8 | R18: 7.96 | S18: 7.625 | T18: 6.980769231 | U18: 6.46 | V18: 7.403846154 | W18: 8.333333333 | X18: 8.151515152 | Y18: 8.363636364 | Z18: 9.271186441 | AA18: 9.49122807 | AB18: 8.913793103 | AC18: 9.2 | AD18: 8.586206897 | AE18: 8.293103448 | AF18: 8.035714286 | AG18: 8.154678487 | AH18: 8.328719419
A19: =_xlfn.XLOOKUP(B19,SEGMENTOS!B:B,SEGMENTOS!A:A) -> 17295 | B19: IAM - Latam - SSC - Fremax | C19: 2025-06-02 | D19: 8.666666667 | E19: 8.666666667 | F19: 8.125 | G19: 9 | H19: 8.142857143 | I19: 8.857142857 | J19: 8.8 | K19: 8.2 | L19: 9 | M19: 7.714285714 | N19: 9 | O19: 7.714285714 | P19: 10 | Q19: 8 | R19: 9 | S19: 9.5 | T19: 7.25 | U19: 7 | V19: 8.75 | W19: 8.75 | X19: 8.833333333 | Y19: 8.833333333 | Z19: 9.333333333 | AA19: 9.222222222 | AB19: 8.777777778 | AC19: 9 | AD19: 7.666666667 | AE19: 7.333333333 | AF19: 8.333333333 | AG19: 8.60624253 | AH19: 7.726890756
A20: =_xlfn.XLOOKUP(B20,SEGMENTOS!B:B,SEGMENTOS!A:A) -> 17296 | B20: IAM - Latam - Nakata | C20: 2025-06-02 | D20: 8.532608696 | E20: 8.637362637 | F20: 7.719101124 | G20: 8.774193548 | H20: 6.786516854 | I20: 6.933333333 | J20: 8.828125 | K20: 8.581818182 | L20: 8.14516129 | M20: 7.984615385 | N20: 9.061538462 | O20: 7.875 | P20: 8.464285714 | Q20: 8.105263158 | R20: 8.351351351 | S20: 7.59375 | T20: 6.96875 | U20: 6.095238095 | V20: 7.171875 | W20: 8.109375 | X20: 8.836065574 | Y20: 8.830508475 | Z20: 9.241758242 | AA20: 9.380434783 | AB20: 8.901098901 | AC20: 8.989130435 | AD20: 8.595238095 | AE20: 8.402298851 | AF20: 8.104651163 | AG20: 8.156075638 | AH20: 8.390726058
A21: =_xlfn.XLOOKUP(B21,SEGMENTOS!B:B,SEGMENTOS!A:A) -> 17297 | B21: IAM - Latam - Aray - Nakata | C21: 2025-06-02 | D21: 8.80952381 | E21: 8.887096774 | F21: 7.564516129 | G21: 9 | H21: 6.80952381 | I21: 6.84375 | J21: 8.88372093 | K21: 8.804878049 | L21: 8.139534884 | M21: 7.857142857 | N21: 9.142857143 | O21: 7.976190476 | P21: 8.181818182 | Q21: 8 | R21: 8.222222222 | S21: 7.363636364 | T21: 6.93877551 | U21: 5.854166667 | V21: 7.06122449 | W21: 8.183673469 | X21: 8.825 | Y21: 8.794871795 | Z21: 9.290322581 | AA21: 9.435483871 | AB21: 9.016129032 | AC21: 9.14516129 | AD21: 8.779661017 | AE21: 8.416666667 | AF21: 7.983333333 | AG21: 8.155788335 | AH21: 8.429485353
A22: =_xlfn.XLOOKUP(B22,SEGMENTOS!B:B,SEGMENTOS!A:A) -> 17298 | B22: IAM - Latam - Fapan - Nakata | C22: 2025-06-02 | D22: 7.076923077 | E22: 7.153846154 | F22: 7.615384615 | G22: 7 | H22: 5.642857143 | I22: 5.857142857 | J22: 8.222222222 | K22: 7.428571429 | L22: 7.5 | M22: 7.875 | N22: 8.5 | O22: 7.375 | P22: 9.5 | Q22: 8.6 | R22: 8.2 | S22: 7.4 | T22: 6.8 | U22: 6.8 | V22: 7.2 | W22: 8.1 | X22: 8.625 | Y22: 8.714285714 | Z22: 8.846153846 | AA22: 9.142857143 | AB22: 8.142857143 | AC22: 8.142857143 | AD22: 8.090909091 | AE22: 8 | AF22: 8.166666667 | AG22: 7.727765009 | AH22: 8.078367711
A23: =_xlfn.XLOOKUP(B23,SEGMENTOS!B:B,SEGMENTOS!A:A) -> 17299 | B23: IAM - Latam - SSC - Nakata | C23: 2025-06-02 | D23: 8.625 | E23: 8.875 | F23: 8.5 | G23: 9.153846154 | H23: 8 | I23: 8.666666667 | J23: 9.083333333 | K23: 8.428571429 | L23: 8.636363636 | M23: 8.4 | N23: 9.133333333 | O23: 7.857142857 | P23: 9.5 | Q23: 8.25 | R23: 9.2 | S23: 8.8 | T23: 7.6 | U23: 7 | V23: 8.2 | W23: 7.4 | X23: 9 | Y23: 9 | Z23: 9.375 | AA23: 9.375 | AB23: 9.133333333 | AC23: 9.125 | AD23: 8.214285714 | AE23: 8.666666667 | AF23: 8.571428571 | AG23: 8.61137322 | AH23: 8.477190876
A24: =_xlfn.XLOOKUP(B24,SEGMENTOS!B:B,SEGMENTOS!A:A) -> 17300 | B24: IAM - Latam - Aray - Agustin Barrutia / Leonardo Sanguinetti | C24: 2025-06-02 | D24: 8.307692308 | E24: 7.769230769 | F24: 8 | G24: 9 | H24: 7.461538462 | I24: 8.538461538 | J24: 9.833333333 | K24: 9.666666667 | L24: 7.25 | M24: 8.5 | N24: 9.833333333 | O24: 8 | P24: 8 | Q24: 8 | R24: 8 | S24: 8 | T24: 4.375 | U24: 5.375 | V24: 9 | W24: 9 | X24: 9.333333333 | Y24: 9.666666667 | Z24: 9.384615385 | AA24: 9.461538462 | AB24: 9.461538462 | AC24: 9.461538462 | AD24: 9.230769231 | AE24: 8.615384615 | AF24: 9.307692308 | AG24: 8.37060792 | AH24: 9.026826115
A25: =_xlfn.XLOOKUP(B25,SEGMENTOS!B:B,SEGMENTOS!A:A) -> 17301 | B25: IAM - Latam - Aray - Alejandro Saud | C25: 2025-06-02 | D25: 8.380952381 | E25: 9.023255814 | F25: 7.142857143 | G25: 8.923076923 | H25: 6.666666667 | I25: 6.261904762 | J25: 9 | K25: 8.769230769 | L25: 8.346153846 | M25: 8.48 | N25: 9.423076923 | O25: 8.12 | P25: 8.333333333 | Q25: 8.2 | R25: 8.7 | S25: 8 | T25: 6.028571429 | U25: 5.8 | V25: 7.235294118 | W25: 7.857142857 | X25: 8.72 | Y25: 8.92 | Z25: 9.571428571 | AA25: 9.707317073 | AB25: 9.30952381 | AC25: 9.261904762 | AD25: 8.925 | AE25: 8.275 | AF25: 8.128205128 | AG25: 8.216537585 | AH25: 8.469782913
A26: =_xlfn.XLOOKUP(B26,SEGMENTOS!B:B,SEGMENTOS!A:A) -> 17302 | B26: IAM - Latam - Aray - Esteban Gammacurta | C26: 2025-06-02 | D26: 8.5 | E26: 8.875 | F26: 7.5 | G26: 8.285714286 | H26: 7.125 | I26: 6.25 | J26: 8.571428571 | K26: 9 | L26: 7.285714286 | M26: 7.428571429 | N26: 8.857142857 | O26: 6.428571429 | P26: 7.833333333 | Q26: 7.5 | R26: 8 | S26: 7 | T26: 6.285714286 | U26: 6.285714286 | V26: 6.428571429 | W26: 6.714285714 | X26: 8.142857143 | Y26: 8.428571429 | Z26: 8.875 | AA26: 9 | AB26: 8.625 | AC26: 8.625 | AD26: 8.625 | AE26: 8.25 | AF26: 7.25 | AG26: 7.732335405 | AH26: 8.112394958
A27: =_xlfn.XLOOKUP(B27,SEGMENTOS!B:B,SEGMENTOS!A:A) -> 17303 | B27: IAM - Latam - Aray - Franco Stagno | C27: 2025-06-02 | D27: 7.935483871 | E27: 7.870967742 | F27: 6.193548387 | G27: 7.421052632 | H27: 5.838709677 | I27: 6.612903226 | J27: 7.947368421 | K27: 7.529411765 | L27: 6.736842105 | M27: 7.263157895 | N27: 7.894736842 | O27: 7.263157895 | P27: 6.466666667 | Q27: 6.588235294 | R27: 6.529411765 | S27: 6 | T27: 6.3 | U27: 4.966666667 | V27: 5.6 | W27: 8 | X27: 7.65 | Y27: 7.105263158 | Z27: 8.625 | AA27: 8.6875 | AB27: 7.84375 | AC27: 8.25 | AD27: 7.935483871 | AE27: 7.59375 | AF27: 7.34375 | AG27: 7.085965367 | AH27: 7.648956357
A28: =_xlfn.XLOOKUP(B28,SEGMENTOS!B:B,SEGMENTOS!A:A) -> 17304 | B28: IAM - Latam - Aray - Gaston Tula | C28: 2025-06-02 | D28: 8.537037037 | E28: 8.745098039 | F28: 7.607843137 | G28: 9 | H28: 7.166666667 | I28: 7.37037037 | J28: 8.710526316 | K28: 8.473684211 | L28: 8.297297297 | M28: 7.657894737 | N28: 8.842105263 | O28: 7.684210526 | P28: 8.357142857 | Q28: 8.413793103 | R28: 8.5 | S28: 8 | T28: 7.622222222 | U28: 7.511111111 | V28: 7.844444444 | W28: 8.113636364 | X28: 8.388888889 | Y28: 8.555555556 | Z28: 8.692307692 | AA28: 8.98 | AB28: 8.468085106 | AC28: 8.921568627 | AD28: 8.25 | AE28: 7.692307692 | AF28: 7.980769231 | AG28: 8.226233285 | AH28: 7.972608274
A29: =_xlfn.XLOOKUP(B29,SEGMENTOS!B:B,SEGMENTOS!A:A) -> 17305 | B29: IAM - Latam - Aray - Mario Figola | C29: 2025-06-02 | D29: 8.605263158 | E29: 9.236842105 | F29: 7.947368421 | G29: 8.111111111 | H29: 7.405405405 | I29: 7.552631579 | J29: 7.882352941 | K29: 7.944444444 | L29: 7.222222222 | M29: 7.055555556 | N29: 9.055555556 | O29: 6.666666667 | P29: 7.272727273 | Q29: 7.857142857 | R29: 7.833333333 | S29: 7 | T29: 6.636363636 | U29: 6.258064516 | V29: 8.058823529 | W29: 7.735294118 | X29: 8.055555556 | Y29: 8.111111111 | Z29: 9.294117647 | AA29: 9.526315789 | AB29: 8.789473684 | AC29: 9.421052632 | AD29: 8.868421053 | AE29: 8.342105263 | AF29: 7.578947368 | AG29: 7.944424595 | AH29: 8.323861123
A30: =_xlfn.XLOOKUP(B30,SEGMENTOS!B:B,SEGMENTOS!A:A) -> 17306 | B30: IAM - Latam - Aray - Martin Piparuolo | C30: 2025-06-02 | D30: 8.202380952 | E30: 8.37037037 | F30: 7.285714286 | G30: 8.68627451 | H30: 7.451219512 | I30: 8.047619048 | J30: 8.921568627 | K30: 8.254901961 | L30: 8.274509804 | M30: 7.891304348 | N30: 9.065217391 | O30: 7.347826087 | P30: 8.314285714 | Q30: 7.55 | R30: 8.292682927 | S30: 7.571428571 | T30: 7.125 | U30: 5.791044776 | V30: 7.361111111 | W30: 8.253521127 | X30: 8.022222222 | Y30: 8.377777778 | Z30: 9.170731707 | AA30: 9.414634146 | AB30: 9.168674699 | AC30: 9.204819277 | AD30: 8.328947368 | AE30: 8.376623377 | AF30: 7.773333333 | AG30: 8.105964712 | AH30: 8.194631824
A31: =_xlfn.XLOOKUP(B31,SEGMENTOS!B:B,SEGMENTOS!A:A) -> 17307 | B31: IAM - Latam - Dirección | C31: 2025-06-02 | D31: 8.458015267 | E31: 8.564885496 | F31: 7.129770992 | H31: 6.92248062 | I31: 7.450381679 | T31: 6.238461538 | U31: 5.969230769 | V31: 7.372093023 | W31: 8.139534884 | Z31: 9.28125 | AA31: 9.5390625 | AB31: 8.923076923 | AC31: 9.276923077 | AD31: 8.7421875 | AE31: 8.25 | AF31: 8.03968254 | AG31: 7.958048771 | AH31: 8.370409622
A32: =_xlfn.XLOOKUP(B32,SEGMENTOS!B:B,SEGMENTOS!A:A) -> 17308 | B32: IAM - Latam - Gestores de Marketing | C32: 2025-06-02 | D32: 10 | E32: 10 | R32: 10 | S32: 10 | T32: 7.2 | U32: 8.4 | V32: 7.8 | W32: 8 | Z32: 10 | AA32: 10 | AB32: 10 | AC32: 10 | AG32: 9.345679012
A33: =_xlfn.XLOOKUP(B33,SEGMENTOS!B:B,SEGMENTOS!A:A) -> 17309 | B33: IAM - Latam - Gestores de Vendas | C33: 2025-06-02 | D33: 7.166666667 | E33: 7.833333333 | M33: 7.714285714 | N33: 8.5 | O33: 7.166666667 | P33: 8.75 | Q33: 7.666666667 | R33: 9.142857143 | S33: 9 | T33: 6.8 | U33: 7.5 | V33: 7.833333333 | W33: 8 | Z33: 9.571428571 | AA33: 9.571428571 | AB33: 9.285714286 | AC33: 9.285714286 | AD33: 7.333333333 | AE33: 7.666666667 | AG33: 8.305092752 | AH33: 7.500963391
A34: =_xlfn.XLOOKUP(B34,SEGMENTOS!B:B,SEGMENTOS!A:A) -> 17310 | B34: IAM - Latam - Gestores de Compras | C34: 2025-06-02 | D34: 8.093333333 | E34: 8.342465753 | F34: 8.067567568 | G34: 8.611940299 | H34: 7.220779221 | I34: 7.571428571 | J34: 8.649350649 | K34: 8.571428571 | L34: 8.114285714 | M34: 8.026315789 | N34: 9.233766234 | O34: 7.732394366 | X34: 9.014084507 | Y34: 9.144927536 | Z34: 9.424657534 | AA34: 9.472222222 | AB34: 9.041666667 | AC34: 9.164383562 | AD34: 8.549295775 | AE34: 8.328767123 | AF34: 8.594202899 | AG34: 8.502985782 | AH34: 8.480946911
A35: =_xlfn.XLOOKUP(B35,SEGMENTOS!B:B,SEGMENTOS!A:A) -> 17311 | B35: IAM - Latam - Gestores de Logística | C35: 2025-06-02 | H35: 9.166666667 | I35: 7.833333333 | J35: 9.333333333 | K35: 6.666666667 | L35: 9.333333333 | Z35: 9.5 | AA35: 9.5 | AB35: 9.333333333 | AC35: 9.333333333 | AG35: 8.967226891
A36: =_xlfn.XLOOKUP(B36,SEGMENTOS!B:B,SEGMENTOS!A:A) -> 17312 | B36: IAM - Latam - Gestores de Negócios | C36: 2025-06-02 | D36: 8.294478528 | E36: 8.625 | F36: 7.660493827 | G36: 8.50310559 | H36: 6.98 | I36: 7.388157895 | J36: 8.710526316 | K36: 8.270833333 | L36: 7.875 | M36: 7.879746835 | N36: 8.816455696 | O36: 7.496815287 | P36: 8.165413534 | Q36: 7.935064935 | R36: 8.151315789 | S36: 7.532374101 | T36: 7.273333333 | U36: 6.503496503 | V36: 7.304635762 | W36: 7.846666667 | X36: 8.197452229 | Y36: 8.294871795 | Z36: 8.837662338 | AA36: 9.012820513 | AB36: 8.666666667 | AC36: 8.751592357 | AD36: 8.285714286 | AE36: 7.923076923 | AF36: 7.77124183 | AG36: 8.0153309 | AH36: 8.012646386
A37: =_xlfn.XLOOKUP(B37,SEGMENTOS!B:B,SEGMENTOS!A:A) -> 17313 | B37: IAM - Latam - Aray - Dirección | C37: 2025-06-02 | D37: 8.579439252 | E37: 8.698113208 | F37: 6.905660377 | H37: 6.942857143 | I37: 7.471698113 | T37: 6.320754717 | U37: 5.830188679 | V37: 7.41509434 | W37: 8.41509434 | Z37: 9.365384615 | AA37: 9.561904762 | AB37: 9.056603774 | AC37: 9.377358491 | AD37: 8.740384615 | AE37: 8.365384615 | AF37: 8 | AG37: 8.006383831 | AH37: 8.401098901
A38: =_xlfn.XLOOKUP(B38,SEGMENTOS!B:B,SEGMENTOS!A:A) -> 17314 | B38: IAM - Latam - Aray - Gestores de Compras | C38: 2025-06-02 | D38: 8.242424242 | E38: 8.34375 | F38: 8.40625 | G38: 9.5 | H38: 7.857142857 | I38: 7.428571429 | J38: 8.742857143 | K38: 9.085714286 | L38: 8.212121212 | M38: 7.941176471 | N38: 9.457142857 | O38: 7.84375 | X38: 9.121212121 | Y38: 9.363636364 | Z38: 9.575757576 | AA38: 9.75 | AB38: 9.333333333 | AC38: 9.606060606 | AD38: 8.90625 | AE38: 8.666666667 | AF38: 8.71875 | AG38: 8.740894429 | AH38: 8.767463235
A39: =_xlfn.XLOOKUP(B39,SEGMENTOS!B:B,SEGMENTOS!A:A) -> 17315 | B39: IAM - Latam - Aray - Gestores de Negócios | C39: 2025-06-02 | D39: 8.161538462 | E39: 8.582677165 | F39: 7.418604651 | G39: 8.361538462 | H39: 6.861788618 | I39: 7.256 | J39: 8.624 | K39: 8.233870968 | L39: 7.784 | M39: 7.712 | N39: 8.808 | O39: 7.336 | P39: 7.956140351 | Q39: 7.755905512 | R39: 8.104 | S39: 7.455357143 | T39: 7.129032258 | U39: 6.333333333 | V39: 7.274193548 | W39: 7.707317073 | X39: 7.991935484 | Y39: 8.105691057 | Z39: 8.696721311 | AA39: 8.926829268 | AB39: 8.491666667 | AC39: 8.637096774 | AD39: 8.172131148 | AE39: 7.788617886 | AF39: 7.483333333 | AG39: 7.889140171 | AH39: 7.843822275
A40: =_xlfn.XLOOKUP(B40,SEGMENTOS!B:B,SEGMENTOS!A:A) -> 17316 | B40: IAM - Latam - Fapan — Dirección | C40: 2025-06-02 | D40: 7.526315789 | E40: 7.578947368 | F40: 7.947368421 | H40: 6 | I40: 6.578947368 | T40: 5.555555556 | U40: 6.333333333 | V40: 6.722222222 | W40: 6.388888889 | Z40: 8.555555556 | AA40: 9.235294118 | AB40: 7.944444444 | AC40: 8.444444444 | AD40: 8.777777778 | AE40: 8 | AF40: 8.166666667 | AG40: 7.327287354 | AH40: 8.326563959
A41: =_xlfn.XLOOKUP(B41,SEGMENTOS!B:B,SEGMENTOS!A:A) -> 17317 | B41: IAM - Latam - Fapan - Gestores de Compras | C41: 2025-06-02 | D41: 6.933333333 | E41: 7.333333333 | F41: 6.933333333 | G41: 6.333333333 | H41: 5.2 | I41: 6.066666667 | J41: 8 | K41: 7.454545455 | L41: 6.923076923 | M41: 7.8 | N41: 8.533333333 | O41: 7.285714286 | X41: 8.785714286 | Y41: 8.416666667 | Z41: 9 | AA41: 8.923076923 | AB41: 8 | AC41: 7.846153846 | AD41: 8.461538462 | AE41: 8.076923077 | AF41: 8.461538462 | AG41: 7.510106889 | AH41: 8.320943762
A42: =_xlfn.XLOOKUP(B42,SEGMENTOS!B:B,SEGMENTOS!A:A) -> 17318 | B42: IAM - Latam - Fapan - Gestores de Negócios | C42: 2025-06-02 | D42: 8.8125 | E42: 8.5 | F42: 8.5 | G42: 8.733333333 | H42: 6.733333333 | I42: 7.266666667 | J42: 9.133333333 | K42: 8.090909091 | L42: 7.866666667 | M42: 8.375 | N42: 8.75 | O42: 7.8125 | P42: 9.416666667 | Q42: 8.666666667 | R42: 8.266666667 | S42: 7.733333333 | T42: 8 | U42: 6.8 | V42: 6.6 | W42: 8.866666667 | X42: 8.875 | Y42: 9.1875 | Z42: 9.6 | AA42: 9.625 | AB42: 9.4375 | AC42: 9.25 | AD42: 8.666666667 | AE42: 8.3125 | AF42: 8.875 | AG42: 8.396045015 | AH42: 8.59410014
A43: =_xlfn.XLOOKUP(B43,SEGMENTOS!B:B,SEGMENTOS!A:A) -> 17319 | B43: IAM - Latam - SSC - Dirección | C43: 2025-06-02 | D43: 9.4 | E43: 9.333333333 | F43: 8.5 | H43: 9.333333333 | I43: 9.833333333 | T43: 6.833333333 | U43: 7.333333333 | V43: 8.8 | W43: 8.6 | Z43: 10 | AA43: 10 | AB43: 9.5 | AC43: 10 | AD43: 8.666666667 | AE43: 7 | AF43: 8.666666667 | AG43: 9.051851852 | AH43: 8.057422969
A44: =_xlfn.XLOOKUP(B44,SEGMENTOS!B:B,SEGMENTOS!A:A) -> 17320 | B44: IAM - Latam - SSC - Gestores de Compras | C44: 2025-06-02 | D44: 8.555555556 | E44: 8.923076923 | F44: 8.296296296 | G44: 9 | H44: 7.518518519 | I44: 8.592592593 | J44: 8.888888889 | K44: 8.235294118 | L44: 8.625 | M44: 8.259259259 | N44: 9.333333333 | O44: 7.84 | X44: 9 | Y44: 9.208333333 | Z44: 9.444444444 | AA44: 9.407407407 | AB44: 9.192307692 | AC44: 9.259259259 | AD44: 8.153846154 | AE44: 8.037037037 | AF44: 8.5 | AG44: 8.738853595 | AH44: 8.205684838
A45: =_xlfn.XLOOKUP(B45,SEGMENTOS!B:B,SEGMENTOS!A:A) -> 17321 | B45: IAM - Latam - SSC - Gestores de Negócios | C45: 2025-06-02 | D45: 8.823529412 | E45: 9.058823529 | F45: 8.705882353 | G45: 9.4375 | H45: 8.5 | I45: 8.916666667 | J45: 9.083333333 | K45: 9 | L45: 8.833333333 | M45: 8.647058824 | N45: 8.941176471 | O45: 8.4375 | P45: 9.428571429 | Q45: 8.916666667 | R45: 8.5 | S45: 8 | T45: 7.909090909 | U45: 7.909090909 | V45: 8.5 | W45: 8 | X45: 9.058823529 | Y45: 8.823529412 | Z45: 9.176470588 | AA45: 9.058823529 | AB45: 9.176470588 | AC45: 9.117647059 | AD45: 8.764705882 | AE45: 8.529411765 | AF45: 8.764705882 | AG45: 8.742535251 | AH45: 8.678695007
A46: =_xlfn.XLOOKUP(B46,SEGMENTOS!B:B,SEGMENTOS!A:A) -> 17322 | B46: IAM - Latam - Aray - Clientes A | C46: 2025-06-02 | D46: 8.939759036 | E46: 8.807228916 | F46: 8.036144578 | G46: 9.210526316 | H46: 7.632183908 | I46: 7.183908046 | J46: 8.652173913 | K46: 8.577777778 | L46: 8.159090909 | M46: 7.952380952 | N46: 9.404761905 | O46: 7.7 | P46: 8.047619048 | Q46: 8.045454545 | R46: 8.380952381 | S46: 8 | T46: 6.629032258 | U46: 6.403225806 | V46: 7.967741935 | W46: 8.229508197 | X46: 8.756097561 | Y46: 8.975609756 | Z46: 9.43373494 | AA46: 9.639534884 | AB46: 9.06097561 | AC46: 9.558139535 | AD46: 8.827160494 | AE46: 8.512195122 | AF46: 8.731707317 | AG46: 8.347683656 | AH46: 8.685956948
A47: =_xlfn.XLOOKUP(B47,SEGMENTOS!B:B,SEGMENTOS!A:A) -> 17323 | B47: IAM - Latam - Aray - Clientes B | C47: 2025-06-02 | D47: 8.113207547 | E47: 8.705882353 | F47: 6.980769231 | G47: 8.566666667 | H47: 6.357142857 | I47: 7.2 | J47: 8.857142857 | K47: 8.145454545 | L47: 7.709090909 | M47: 7.872727273 | N47: 9.090909091 | O47: 7.581818182 | P47: 8.244897959 | Q47: 7.618181818 | R47: 8 | S47: 7.723404255 | T47: 6.950980392 | U47: 5.846938776 | V47: 7.18627451 | W47: 8.089108911 | X47: 8.186440678 | Y47: 8.24137931 | Z47: 9.114285714 | AA47: 9.25 | AB47: 8.91509434 | AC47: 8.924528302 | AD47: 8.382352941 | AE47: 7.960784314 | AF47: 7.121212121 | AG47: 7.950856938 | AH47: 7.883820908
A48: =_xlfn.XLOOKUP(B48,SEGMENTOS!B:B,SEGMENTOS!A:A) -> 17324 | B48: IAM - Latam - Aray - Clientes C | C48: 2025-06-02 | D48: 8.012345679 | E48: 8.25 | F48: 7.0625 | G48: 8.15 | H48: 7.317073171 | I48: 7.771084337 | J48: 8.548387097 | K48: 8.396825397 | L48: 7.952380952 | M48: 7.532258065 | N48: 8.523809524 | O48: 7.14516129 | P48: 7.590909091 | Q48: 7.78 | R48: 8.098039216 | S48: 6.909090909 | T48: 6.575757576 | U48: 6.174603175 | V48: 6.984848485 | W48: 7.776119403 | X48: 7.894736842 | Y48: 8.070175439 | Z48: 8.68 | AA48: 8.959459459 | AB48: 8.52 | AC48: 8.72 | AD48: 8.28 | AE48: 7.947368421 | AF48: 7.842105263 | AG48: 7.797206642 | AH48: 8.038814684
A49: =_xlfn.XLOOKUP(B49,SEGMENTOS!B:B,SEGMENTOS!A:A) -> 17325 | B49: IAM - Latam - Linea Liviana | C49: 2025-06-02 | D49: 8.066666667 | E49: 8.257425743 | F49: 7.669902913 | G49: 8.39 | H49: 7.099009901 | I49: 7.287128713 | J49: 8.653465347 | K49: 8.457446809 | L49: 7.772277228 | M49: 7.970873786 | N49: 8.86407767 | O49: 7.603960396 | P49: 7.841269841 | Q49: 7.717948718 | R49: 7.857142857 | S49: 7.405797101 | T49: 7.337662338 | U49: 6.666666667 | V49: 7.128205128 | W49: 7.807692308 | X49: 8.269230769 | Y49: 8.386138614 | Z49: 8.819047619 | AA49: 8.980952381 | AB49: 8.711538462 | AC49: 8.757009346 | AD49: 8.116504854 | AE49: 7.79047619 | AF49: 7.865979381 | AG49: 7.966321609 | AH49: 7.928905487
A50: =_xlfn.XLOOKUP(B50,SEGMENTOS!B:B,SEGMENTOS!A:A) -> 17326 | B50: IAM - Latam - Linea Pesada | C50: 2025-06-02 | D50: 8.222222222 | E50: 8.522727273 | F50: 8.209302326 | G50: 8.8 | H50: 7.684210526 | I50: 8.184210526 | J50: 8.815789474 | K50: 8.552631579 | L50: 8.342857143 | M50: 8.086956522 | N50: 8.695652174 | O50: 7.790697674 | P50: 8.538461538 | Q50: 8.115384615 | R50: 8.846153846 | S50: 7.884615385 | T50: 7.333333333 | U50: 6.681818182 | V50: 6.590909091 | W50: 7.818181818 | X50: 8.631578947 | Y50: 8.631578947 | Z50: 9.289473684 | AA50: 9.315789474 | AB50: 9.026315789 | AC50: 9.105263158 | AD50: 8.864864865 | AE50: 8.657894737 | AF50: 8.861111111 | AG50: 8.27994549 | AH50: 8.788182532
A51: =_xlfn.XLOOKUP(B51,SEGMENTOS!B:B,SEGMENTOS!A:A) -> 17327 | B51: IAM - Latam - Ambas líneas: Liviana y Pesada | C51: 2025-06-02 | D51: 8.427312775 | E51: 8.679824561 | F51: 7.371040724 | G51: 8.579545455 | H51: 6.914798206 | I51: 7.40969163 | J51: 8.71875 | K51: 8.037037037 | L51: 8.086956522 | M51: 7.782608696 | N51: 9.152173913 | O51: 7.4 | P51: 8.4375 | Q51: 8.125 | R51: 8.413793103 | S51: 7.811320755 | T51: 6.526041667 | U51: 6.136842105 | V51: 7.534031414 | W51: 8.072916667 | X51: 8.593023256 | Y51: 8.720930233 | Z51: 9.269565217 | AA51: 9.463203463 | AB51: 8.913419913 | AC51: 9.17167382 | AD51: 8.593607306 | AE51: 8.177272727 | AF51: 7.96744186 | AG51: 8.123803432 | AH51: 8.270406204
A52: =_xlfn.XLOOKUP(B52,SEGMENTOS!B:B,SEGMENTOS!A:A) -> 17328 | B52: IAM - Latam - Aray - Linea Liviana | C52: 2025-06-02 | D52: 8.012048193 | E52: 8.17721519 | F52: 7.524390244 | G52: 8.35 | H52: 7.05 | I52: 7.1 | J52: 8.5125 | K52: 8.41025641 | L52: 7.728395062 | M52: 7.6875 | N52: 8.765432099 | O52: 7.35 | P52: 7.574074074 | Q52: 7.523076923 | R52: 7.587301587 | S52: 7.072727273 | T52: 7.153846154 | U52: 6.5 | V52: 7.138461538 | W52: 7.609375 | X52: 8.072289157 | Y52: 8.158536585 | Z52: 8.65060241 | AA52: 8.853658537 | AB52: 8.518518519 | AC52: 8.583333333 | AD52: 8.048780488 | AE52: 7.903614458 | AF52: 7.721518987 | AG52: 7.803847418 | AH52: 7.906337454
A53: =_xlfn.XLOOKUP(B53,SEGMENTOS!B:B,SEGMENTOS!A:A) -> 17329 | B53: IAM - Latam - Aray - Linea Pesada | C53: 2025-06-02 | D53: 8.086956522 | E53: 8.739130435 | F53: 8 | G53: 8.619047619 | H53: 7.833333333 | I53: 8.458333333 | J53: 9.041666667 | K53: 8.875 | L53: 8.285714286 | M53: 8.041666667 | N53: 8.916666667 | O53: 7.818181818 | P53: 8.352941176 | Q53: 8.117647059 | R53: 9.294117647 | S53: 8.176470588 | T53: 7.538461538 | U53: 6.538461538 | V53: 6.692307692 | W53: 7.769230769 | X53: 8.333333333 | Y53: 8.444444444 | Z53: 9.294117647 | AA53: 9.411764706 | AB53: 8.705882353 | AC53: 9.352941176 | AD53: 8.9375 | AE53: 8.235294118 | AF53: 8.529411765 | AG53: 8.32075152 | AH53: 8.569358626
A54: =_xlfn.XLOOKUP(B54,SEGMENTOS!B:B,SEGMENTOS!A:A) -> 17330 | B54: IAM - Latam - Aray - Ambas líneas: Liviana y Pesada | C54: 2025-06-02 | D54: 8.536585366 | E54: 8.785276074 | F54: 7.141975309 | G54: 8.842105263 | H54: 6.963190184 | I54: 7.343373494 | J54: 8.766666667 | K54: 8.098360656 | L54: 8.066666667 | M54: 7.745454545 | N54: 9.236363636 | O54: 7.418181818 | P54: 8.279069767 | Q54: 7.955555556 | R54: 8.377777778 | S54: 7.675 | T54: 6.519736842 | U54: 5.893333333 | V54: 7.480263158 | W54: 8.236842105 | X54: 8.428571429 | Y54: 8.660714286 | Z54: 9.294478528 | AA54: 9.503030303 | AB54: 9.024242424 | AC54: 9.289156627 | AD54: 8.675 | AE54: 8.2375 | AF54: 7.838509317 | AG54: 8.114566886 | AH54: 8.286620192
A55: =_xlfn.XLOOKUP(B55,SEGMENTOS!B:B,SEGMENTOS!A:A) -> 17331 | B55: IAM - Latam - Fapan - Linea Liviana | C55: 2025-06-02 | D55: 7.933333333 | E55: 8.333333333 | F55: 7.714285714 | G55: 8.153846154 | H55: 6.571428571 | I55: 7.642857143 | J55: 9.428571429 | K55: 8.6 | L55: 7.230769231 | M55: 8.8125 | N55: 9.2 | O55: 8.214285714 | P55: 9.375 | Q55: 8.727272727 | R55: 9.166666667 | S55: 8.75 | T55: 8.5 | U55: 7.454545455 | V55: 7.181818182 | W55: 9.083333333 | X55: 8.928571429 | Y55: 9.416666667 | Z55: 9.533333333 | AA55: 9.5 | AB55: 9.4375 | AC55: 9.4375 | AD55: 8.357142857 | AE55: 7.266666667 | AF55: 8.428571429 | AG55: 8.534531798 | AH55: 7.978031212
A56: =_xlfn.XLOOKUP(B56,SEGMENTOS!B:B,SEGMENTOS!A:A) -> 17332 | B56: IAM - Latam - Fapan - Linea Pesada | C56: 2025-06-02 | D56: 8.272727273 | E56: 7.909090909 | F56: 8.333333333 | G56: 8.666666667 | H56: 6.75 | I56: 7.25 | J56: 8.375 | K56: 7.5 | L56: 8.5 | M56: 8 | N56: 8.363636364 | O56: 7.272727273 | P56: 9 | Q56: 8.166666667 | R56: 7.5 | S56: 7.166666667 | T56: 7 | U56: 6.666666667 | V56: 5.5 | W56: 8.333333333 | X56: 8.888888889 | Y56: 8.666666667 | Z56: 9.4 | AA56: 9.5 | AB56: 9.4 | AC56: 9 | AD56: 9 | AE56: 9.5 | AF56: 9.25 | AG56: 8.03094216 | AH56: 9.25105042
A57: =_xlfn.XLOOKUP(B57,SEGMENTOS!B:B,SEGMENTOS!A:A) -> 17333 | B57: IAM - Latam - Fapan - Ambas líneas: Liviana y Pesada | C57: 2025-06-02 | D57: 7.357142857 | E57: 7.535714286 | F57: 7.703703704 | G57: 5.25 | H57: 5.607142857 | I57: 6.068965517 | J57: 7.4 | K57: 6.833333333 | L57: 6.888888889 | M57: 7 | N57: 8.111111111 | O57: 7 | P57: 9.5 | Q57: 9.5 | R57: 8.5 | S57: 6.5 | T57: 6.043478261 | U57: 6.826086957 | V57: 7.217391304 | W57: 7.086956522 | X57: 8.571428571 | Y57: 8.142857143 | Z57: 8.838709677 | AA57: 9.2 | AB57: 8 | AC57: 8.258064516 | AD57: 8.653846154 | AE57: 8.076923077 | AF57: 8.28 | AG57: 7.504555719 | AH57: 8.340853264
A58: =_xlfn.XLOOKUP(B58,SEGMENTOS!B:B,SEGMENTOS!A:A) -> 17334 | B58: IAM - Latam - SSC - Linea Liviana | C58: 2025-06-02 | D58: 9 | E58: 9 | F58: 9.285714286 | G58: 9.285714286 | H58: 8.714285714 | I58: 8.714285714 | J58: 8.714285714 | K58: 8.833333333 | L58: 9.285714286 | M58: 9.285714286 | N58: 9.285714286 | O58: 9.285714286 | P58: 10 | Q58: 8.5 | R58: 8.5 | S58: 8.5 | T58: 7.5 | U58: 8 | V58: 6.5 | W58: 6.5 | X58: 9.285714286 | Y58: 9.285714286 | Z58: 9.285714286 | AA58: 9.285714286 | AB58: 9.285714286 | AC58: 9.285714286 | AD58: 8.428571429 | AE58: 7.571428571 | AF58: 8.75 | AG58: 8.775502616 | AH58: 8.203031212
A59: =_xlfn.XLOOKUP(B59,SEGMENTOS!B:B,SEGMENTOS!A:A) -> 17335 | B59: IAM - Latam - SSC - Linea Pesada | C59: 2025-06-02 | D59: 8.454545455 | E59: 8.7 | F59: 8.545454545 | G59: 9.3 | H59: 8.333333333 | I59: 8.333333333 | J59: 8.5 | K59: 8.666666667 | L59: 8.333333333 | M59: 8.272727273 | N59: 8.545454545 | O59: 8.3 | P59: 8.666666667 | Q59: 8 | R59: 9 | S59: 7.666666667 | T59: 7 | U59: 7.333333333 | V59: 8.333333333 | W59: 7 | X59: 8.909090909 | Y59: 8.909090909 | Z59: 9.181818182 | AA59: 9 | AB59: 9.181818182 | AC59: 8.818181818 | AD59: 8.636363636 | AE59: 8.545454545 | AF59: 9.090909091 | AG59: 8.424019334 | AH59: 8.727272727
A60: =_xlfn.XLOOKUP(B60,SEGMENTOS!B:B,SEGMENTOS!A:A) -> 17336 | B60: IAM - Latam - SSC - Ambas líneas: Liviana y Pesada | C60: 2025-06-02 | D60: 8.771428571 | E60: 9.081081081 | F60: 8.25 | G60: 9.086956522 | H60: 7.8125 | I60: 8.96875 | J60: 9.115384615 | K60: 8.285714286 | L60: 8.608695652 | M60: 8.107142857 | N60: 9.321428571 | O60: 7.5 | P60: 10 | Q60: 8.666666667 | R60: 8.545454545 | S60: 8.545454545 | T60: 7.235294118 | U60: 7.352941176 | V60: 8.5 | W60: 7.941176471 | X60: 9 | Y60: 9.043478261 | Z60: 9.527777778 | AA60: 9.5 | AB60: 9.2 | AC60: 9.416666667 | AD60: 8.151515152 | AE60: 7.970588235 | AF60: 8.413793103 | AG60: 8.644323994 | AH60: 8.157008535

Sheet APL_1_NOTA
A1: ID_Segmento | B1: Segmento | C1: Data | D1: 1 | E1: 2 | F1: 3 | G1: 4 | H1: 5 | I1: 6 | J1: 7 | K1: 8 | L1: 9 | M1: 10 | N1: 11 | O1: 12 | P1: 13 | Q1: 14 | R1: 15 | S1: 16 | T1: 17 | U1: 18 | V1: 19 | W1: 20 | X1: 21 | Y1: 22 | Z1: 23 | AA1: 24 | AB1: 25 | AC1: 26 | AD1: 27 | AE1: 28 | AF1: 29 | AG1: IQP | AH1: I$P
A2: =_xlfn.XLOOKUP(B2,SEGMENTOS!B:B,SEGMENTOS!A:A) -> 2900 | B2: Mercado | C2: 2023-06-01
A3: 17337 | B3: IAM - Brasil + Latam | C3: 2023-06-01
A4: 17338 | B4: IAM - Brasil | C4: 2023-06-01 | D4: 7.986163522 | E4: 8.154235145 | F4: 8.012953368 | G4: 8.5625 | H4: 7.475294118 | I4: 8.099537037 | J4: 8.004405286 | K4: 7.534246575 | L4: 7.32300885 | M4: 8.280487805 | N4: 8.960138648 | O4: 8.087260035 | P4: 7.812260536 | Q4: 7.889097744 | R4: 8.218181818 | S4: 7.428940568 | T4: 8.030927835 | U4: 7.388960205 | V4: 8.481632653 | W4: 8.163804491 | X4: 8.757763975 | Y4: 8.567901235 | Z4: 9.160479042 | AA4: 9.205707491 | AB4: 8.777380952 | AC4: 8.982206406 | AD4: 8.56135402 | AE4: 8.293715847 | AF4: 7.746630728 | AG4: 8.188074731 | AH4: 8.25432246
A5: 17281 | B5: IAM - Latam | C5: 2023-06-01
A6: 17282 | B6: IAM - Aray | C6: 2023-06-01
A7: 17283 | B7: IAM - Fapan | C7: 2023-06-01
A8: 17284 | B8: IAM - SSC | C8: 2023-06-01
A9: =_xlfn.XLOOKUP(B9,SEGMENTOS!B:B,SEGMENTOS!A:A) -> 17285 | B9: IAM - Latam - Controil | C9: 2023-06-01
A10: =_xlfn.XLOOKUP(B10,SEGMENTOS!B:B,SEGMENTOS!A:A) -> 17286 | B10: IAM - Latam - Aray - Controil | C10: 2023-06-01
A11: =_xlfn.XLOOKUP(B11,SEGMENTOS!B:B,SEGMENTOS!A:A) -> 17287 | B11: IAM - Latam - Fapan - Controil | C11: 2023-06-01
A12: =_xlfn.XLOOKUP(B12,SEGMENTOS!B:B,SEGMENTOS!A:A) -> 17288 | B12: IAM - Latam - SSC - Controil | C12: 2023-06-01
A13: =_xlfn.XLOOKUP(B13,SEGMENTOS!B:B,SEGMENTOS!A:A) -> 17289 | B13: IAM - Latam - Fras-le | C13: 2023-06-01
A14: =_xlfn.XLOOKUP(B14,SEGMENTOS!B:B,SEGMENTOS!A:A) -> 17290 | B14: IAM - Latam - Aray - Fras-le | C14: 2023-06-01
A15: =_xlfn.XLOOKUP(B15,SEGMENTOS!B:B,SEGMENTOS!A:A) -> 17291 | B15: IAM - Latam - Fapan - Fras-le | C15: 2023-06-01
A16: =_xlfn.XLOOKUP(B16,SEGMENTOS!B:B,SEGMENTOS!A:A) -> 17292 | B16: IAM - Latam - SSC - Fras-le | C16: 2023-06-01
A17: =_xlfn.XLOOKUP(B17,SEGMENTOS!B:B,SEGMENTOS!A:A) -> 17293 | B17: IAM - Latam - Fremax | C17: 2023-06-01
A18: =_xlfn.XLOOKUP(B18,SEGMENTOS!B:B,SEGMENTOS!A:A) -> 17294 | B18: IAM - Latam - Aray - Fremax | C18: 2023-06-01
A19: =_xlfn.XLOOKUP(B19,SEGMENTOS!B:B,SEGMENTOS!A:A) -> 17295 | B19: IAM - Latam - SSC - Fremax | C19: 2023-06-01
A20: =_xlfn.XLOOKUP(B20,SEGMENTOS!B:B,SEGMENTOS!A:A) -> 17296 | B20: IAM - Latam - Nakata | C20: 2023-06-01
A21: =_xlfn.XLOOKUP(B21,SEGMENTOS!B:B,SEGMENTOS!A:A) -> 17297 | B21: IAM - Latam - Aray - Nakata | C21: 2023-06-01
A22: =_xlfn.XLOOKUP(B22,SEGMENTOS!B:B,SEGMENTOS!A:A) -> 17298 | B22: IAM - Latam - Fapan - Nakata | C22: 2023-06-01
A23: =_xlfn.XLOOKUP(B23,SEGMENTOS!B:B,SEGMENTOS!A:A) -> 17299 | B23: IAM - Latam - SSC - Nakata | C23: 2023-06-01
A24: =_xlfn.XLOOKUP(B24,SEGMENTOS!B:B,SEGMENTOS!A:A) -> 17300 | B24: IAM - Latam - Aray - Agustin Barrutia / Leonardo Sanguinetti | C24: 2023-06-01
A25: =_xlfn.XLOOKUP(B25,SEGMENTOS!B:B,SEGMENTOS!A:A) -> 17301 | B25: IAM - Latam - Aray - Alejandro Saud | C25: 2023-06-01
A26: =_xlfn.XLOOKUP(B26,SEGMENTOS!B:B,SEGMENTOS!A:A) -> 17302 | B26: IAM - Latam - Aray - Esteban Gammacurta | C26: 2023-06-01
A27: =_xlfn.XLOOKUP(B27,SEGMENTOS!B:B,SEGMENTOS!A:A) -> 17303 | B27: IAM - Latam - Aray - Franco Stagno | C27: 2023-06-01
A28: =_xlfn.XLOOKUP(B28,SEGMENTOS!B:B,SEGMENTOS!A:A) -> 17304 | B28: IAM - Latam - Aray - Gaston Tula | C28: 2023-06-01
A29: =_xlfn.XLOOKUP(B29,SEGMENTOS!B:B,SEGMENTOS!A:A) -> 17305 | B29: IAM - Latam - Aray - Mario Figola | C29: 2023-06-01
A30: =_xlfn.XLOOKUP(B30,SEGMENTOS!B:B,SEGMENTOS!A:A) -> 17306 | B30: IAM - Latam - Aray - Martin Piparuolo | C30: 2023-06-01
A31: =_xlfn.XLOOKUP(B31,SEGMENTOS!B:B,SEGMENTOS!A:A) -> 17307 | B31: IAM - Latam - Dirección | C31: 2023-06-01
A32: =_xlfn.XLOOKUP(B32,SEGMENTOS!B:B,SEGMENTOS!A:A) -> 17308 | B32: IAM - Latam - Gestores de Marketing | C32: 2023-06-01
A33: =_xlfn.XLOOKUP(B33,SEGMENTOS!B:B,SEGMENTOS!A:A) -> 17309 | B33: IAM - Latam - Gestores de Vendas | C33: 2023-06-01
A34: =_xlfn.XLOOKUP(B34,SEGMENTOS!B:B,SEGMENTOS!A:A) -> 17310 | B34: IAM - Latam - Gestores de Compras | C34: 2023-06-01
A35: =_xlfn.XLOOKUP(B35,SEGMENTOS!B:B,SEGMENTOS!A:A) -> 17311 | B35: IAM - Latam - Gestores de Logística | C35: 2023-06-01
A36: =_xlfn.XLOOKUP(B36,SEGMENTOS!B:B,SEGMENTOS!A:A) -> 17312 | B36: IAM - Latam - Gestores de Negócios | C36: 2023-06-01
A37: =_xlfn.XLOOKUP(B37,SEGMENTOS!B:B,SEGMENTOS!A:A) -> 17313 | B37: IAM - Latam - Aray - Dirección | C37: 2023-06-01
A38: =_xlfn.XLOOKUP(B38,SEGMENTOS!B:B,SEGMENTOS!A:A) -> 17314 | B38: IAM - Latam - Aray - Gestores de Compras | C38: 2023-06-01
A39: =_xlfn.XLOOKUP(B39,SEGMENTOS!B:B,SEGMENTOS!A:A) -> 17315 | B39: IAM - Latam - Aray - Gestores de Negócios | C39: 2023-06-01
A40: =_xlfn.XLOOKUP(B40,SEGMENTOS!B:B,SEGMENTOS!A:A) -> 17316 | B40: IAM - Latam - Fapan — Dirección | C40: 2023-06-01
A41: =_xlfn.XLOOKUP(B41,SEGMENTOS!B:B,SEGMENTOS!A:A) -> 17317 | B41: IAM - Latam - Fapan - Gestores de Compras | C41: 2023-06-01
A42: =_xlfn.XLOOKUP(B42,SEGMENTOS!B:B,SEGMENTOS!A:A) -> 17318 | B42: IAM - Latam - Fapan - Gestores de Negócios | C42: 2023-06-01
A43: =_xlfn.XLOOKUP(B43,SEGMENTOS!B:B,SEGMENTOS!A:A) -> 17319 | B43: IAM - Latam - SSC - Dirección | C43: 2023-06-01
A44: =_xlfn.XLOOKUP(B44,SEGMENTOS!B:B,SEGMENTOS!A:A) -> 17320 | B44: IAM - Latam - SSC - Gestores de Compras | C44: 2023-06-01
A45: =_xlfn.XLOOKUP(B45,SEGMENTOS!B:B,SEGMENTOS!A:A) -> 17321 | B45: IAM - Latam - SSC - Gestores de Negócios | C45: 2023-06-01
A46: =_xlfn.XLOOKUP(B46,SEGMENTOS!B:B,SEGMENTOS!A:A) -> 17322 | B46: IAM - Latam - Aray - Clientes A | C46: 2023-06-01
A47: =_xlfn.XLOOKUP(B47,SEGMENTOS!B:B,SEGMENTOS!A:A) -> 17323 | B47: IAM - Latam - Aray - Clientes B | C47: 2023-06-01
A48: =_xlfn.XLOOKUP(B48,SEGMENTOS!B:B,SEGMENTOS!A:A) -> 17324 | B48: IAM - Latam - Aray - Clientes C | C48: 2023-06-01
A49: =_xlfn.XLOOKUP(B49,SEGMENTOS!B:B,SEGMENTOS!A:A) -> 17325 | B49: IAM - Latam - Linea Liviana | C49: 2023-06-01
A50: =_xlfn.XLOOKUP(B50,SEGMENTOS!B:B,SEGMENTOS!A:A) -> 17326 | B50: IAM - Latam - Linea Pesada | C50: 2023-06-01
A51: =_xlfn.XLOOKUP(B51,SEGMENTOS!B:B,SEGMENTOS!A:A) -> 17327 | B51: IAM - Latam - Ambas líneas: Liviana y Pesada | C51: 2023-06-01
A52: =_xlfn.XLOOKUP(B52,SEGMENTOS!B:B,SEGMENTOS!A:A) -> 17328 | B52: IAM - Latam - Aray - Linea Liviana | C52: 2023-06-01
A53: =_xlfn.XLOOKUP(B53,SEGMENTOS!B:B,SEGMENTOS!A:A) -> 17329 | B53: IAM - Latam - Aray - Linea Pesada | C53: 2023-06-01
A54: =_xlfn.XLOOKUP(B54,SEGMENTOS!B:B,SEGMENTOS!A:A) -> 17330 | B54: IAM - Latam - Aray - Ambas líneas: Liviana y Pesada | C54: 2023-06-01
A55: =_xlfn.XLOOKUP(B55,SEGMENTOS!B:B,SEGMENTOS!A:A) -> 17331 | B55: IAM - Latam - Fapan - Linea Liviana | C55: 2023-06-01
A56: =_xlfn.XLOOKUP(B56,SEGMENTOS!B:B,SEGMENTOS!A:A) -> 17332 | B56: IAM - Latam - Fapan - Linea Pesada | C56: 2023-06-01
A57: =_xlfn.XLOOKUP(B57,SEGMENTOS!B:B,SEGMENTOS!A:A) -> 17333 | B57: IAM - Latam - Fapan - Ambas líneas: Liviana y Pesada | C57: 2023-06-01
A58: =_xlfn.XLOOKUP(B58,SEGMENTOS!B:B,SEGMENTOS!A:A) -> 17334 | B58: IAM - Latam - SSC - Linea Liviana | C58: 2023-06-01
A59: =_xlfn.XLOOKUP(B59,SEGMENTOS!B:B,SEGMENTOS!A:A) -> 17335 | B59: IAM - Latam - SSC - Linea Pesada | C59: 2023-06-01
A60: =_xlfn.XLOOKUP(B60,SEGMENTOS!B:B,SEGMENTOS!A:A) -> 17336 | B60: IAM - Latam - SSC - Ambas líneas: Liviana y Pesada | C60: 2023-06-01

Sheet APL_2_SAT
A1: ID_Segmento | B1: Segmento | C1: Data | D1: 1 | E1: 2 | F1: 3 | G1: 4 | H1: 5 | I1: 6 | J1: 7 | K1: 8 | L1: 9 | M1: 10 | N1: 11 | O1: 12 | P1: 13 | Q1: 14 | R1: 15 | S1: 16 | T1: 17 | U1: 18 | V1: 19 | W1: 20 | X1: 21 | Y1: 22 | Z1: 23 | AA1: 24 | AB1: 25 | AC1: 26 | AD1: 27 | AE1: 28 | AF1: 29 | AG1: ISQP | AH1: IS$P
A2: =_xlfn.XLOOKUP(B2,SEGMENTOS!B:B,SEGMENTOS!A:A) -> 2900 | B2: Mercado | C2: 2025-06-02 | AG2: 0.7333226951 | AH2: 0.5890841671
A3: 17337 | B3: IAM - Brasil + Latam | C3: 2025-06-02 | D3: 0.8275862069 | E3: 0.8418079096 | F3: 0.8056379822 | G3: 0.9329758713 | H3: 0.6942857143 | I3: 0.7752489331 | J3: 0.9325301205 | K3: 0.8526315789 | L3: 0.812195122 | M3: 0.882585752 | N3: 0.965653897 | O3: 0.8165997323 | P3: 0.8735955056 | Q3: 0.8151001541 | R3: 0.8290854573 | S3: 0.6367112811 | T3: 0.7669094693 | U3: 0.6035379813 | V3: 0.8425026969 | W3: 0.8023133544 | X3: 0.9505494505 | Y3: 0.9252077562 | Z3: 0.9814298979 | AA3: 0.9741935484 | AB3: 0.941011236 | AC3: 0.9651695692 | AD3: 0.9017400205 | AE3: 0.8852941176 | AF3: 0.8253477589 | AG3: 0.842559017 | AH3: 0.8748648501
A4: 17338 | B4: IAM - Brasil | C4: 2025-06-02 | D4: 0.7916666667 | E4: 0.8055152395 | F4: 0.8306188925 | G4: 0.9655172414 | H4: 0.7189349112 | I4: 0.824925816 | J4: 0.8944444444 | K4: 0.7664670659 | L4: 0.7692307692 | M4: 0.9071566731 | N4: 0.9689922481 | O4: 0.8557504873 | P4: 0.8401826484 | Q4: 0.8057259714 | R4: 0.8122529644 | S4: 0.608 | T4: 0.8196721311 | U4: 0.6410635155 | V4: 0.9009433962 | W4: 0.8042488619 | X4: 0.9926470588 | Y4: 0.8602941176 | Z4: 0.9829545455 | AA4: 0.970464135 | AB4: 0.9395683453 | AC4: 0.9677419355 | AD4: 0.9045307443 | AE4: 0.898021309 | AF4: 0.8127090301 | AG4: 0.843636915 | AH4: 0.8770738859
A5: 17281 | B5: IAM - Latam | C5: 2025-06-02 | D5: 0.8938992042 | E5: 0.908847185 | F5: 0.7847411444 | G5: 0.9122807018 | H5: 0.6712707182 | I5: 0.7295081967 | J5: 0.9617021277 | K5: 0.9201877934 | L5: 0.8464912281 | M5: 0.8298755187 | N5: 0.9585062241 | O5: 0.7307692308 | P5: 0.9270072993 | Q5: 0.84375 | R5: 0.8819875776 | S5: 0.7094594595 | T5: 0.6448275862 | U5: 0.514084507 | V5: 0.7147766323 | W5: 0.7979452055 | X5: 0.9254385965 | Y5: 0.9644444444 | Z5: 0.9785522788 | AA5: 0.9812834225 | AB5: 0.9436997319 | AC5: 0.9603174603 | AD5: 0.8969359331 | AE5: 0.8622589532 | AF5: 0.8362068966 | AG5: 0.8379338925 | AH5: 0.867674233
A6: 17282 | B6: IAM - Aray | C6: 2025-06-02 | D6: 0.8888888889 | E6: 0.920754717 | F6: 0.7677902622 | G6: 0.9240506329 | H6: 0.670411985 | I6: 0.7185185185 | J6: 0.9695121951 | K6: 0.9263803681 | L6: 0.8333333333 | M6: 0.7987421384 | N6: 0.975 | O6: 0.7197452229 | P6: 0.9122807018 | Q6: 0.8582677165 | R6: 0.88 | S6: 0.6875 | T6: 0.6565217391 | U6: 0.5022421525 | V6: 0.7260869565 | W6: 0.8209606987 | X6: 0.8917197452 | Y6: 0.9615384615 | Z6: 0.9733840304 | AA6: 0.9810606061 | AB6: 0.9543726236 | AC6: 0.9662921348 | AD6: 0.9031007752 | AE6: 0.8807692308 | AF6: 0.7859922179 | AG6: 0.8358259239 | AH6: 0.8629541341
A7: 17283 | B7: IAM - Fapan | C7: 2025-06-02 | D7: 0.8518518519 | E7: 0.7592592593 | F7: 0.78 | G7: 0.7333333333 | H7: 0.52 | I7: 0.6078431373 | J7: 0.90625 | K7: 0.875 | L7: 0.8333333333 | M7: 0.8055555556 | N7: 0.8571428571 | O7: 0.7058823529 | P7: 1 | Q7: 0.7894736842 | R7: 0.9 | S7: 0.75 | T7: 0.6153846154 | U7: 0.55 | V7: 0.575 | W7: 0.8048780488 | X7: 1 | Y7: 1 | Z7: 0.9821428571 | AA7: 0.9821428571 | AB7: 0.8421052632 | AC7: 0.8947368421 | AD7: 0.9 | AE7: 0.8823529412 | AF7: 0.9787234043 | AG7: 0.7985215229 | AH7: 0.9150492738
A8: 17284 | B8: IAM - SSC | C8: 2025-06-02 | D8: 0.9622641509 | E8: 1 | F8: 0.88 | G8: 1 | H8: 0.8444444444 | I8: 0.9333333333 | J8: 0.9743589744 | K8: 0.9230769231 | L8: 0.9166666667 | M8: 0.9565217391 | N8: 0.9782608696 | O8: 0.7906976744 | P8: 1 | Q8: 0.7857142857 | R8: 0.875 | S8: 0.8125 | T8: 0.5714285714 | U8: 0.5714285714 | V8: 0.8571428571 | W8: 0.5454545455 | X8: 1 | Y8: 0.9512195122 | Z8: 1 | AA8: 0.9814814815 | AB8: 1 | AC8: 1 | AD8: 0.862745098 | AE8: 0.75 | AF8: 0.9772727273 | AG8: 0.8847668132 | AH8: 0.852810108
A9: =_xlfn.XLOOKUP(B9,SEGMENTOS!B:B,SEGMENTOS!A:A) -> 17285 | B9: IAM - Latam - Controil | C9: 2025-06-02 | D9: 0.8170731707 | E9: 0.8536585366 | F9: 0.7804878049 | G9: 0.8636363636 | H9: 0.625 | I9: 0.7530864198 | J9: 0.9787234043 | K9: 0.9024390244 | L9: 0.8444444444 | M9: 0.6363636364 | N9: 0.9333333333 | O9: 0.5813953488 | P9: 0.9230769231 | Q9: 0.8125 | R9: 0.84375 | S9: 0.6551724138 | T9: 0.5441176471 | U9: 0.4769230769 | V9: 0.6911764706 | W9: 0.7536231884 | X9: 0.9069767442 | Y9: 0.9534883721 | Z9: 0.950617284 | AA9: 0.9512195122 | AB9: 0.8888888889 | AC9: 0.9268292683 | AD9: 0.8987341772 | AE9: 0.7820512821 | AF9: 0.8157894737 | AG9: 0.7933292621 | AH9: 0.8334282209
A10: =_xlfn.XLOOKUP(B10,SEGMENTOS!B:B,SEGMENTOS!A:A) -> 17286 | B10: IAM - Latam - Aray - Controil | C10: 2025-06-02 | D10: 0.7868852459 | E10: 0.85 | F10: 0.737704918 | G10: 0.8666666667 | H10: 0.593220339 | I10: 0.75 | J10: 0.96875 | K10: 0.90625 | L10: 0.8064516129 | M10: 0.5172413793 | N10: 0.9666666667 | O10: 0.4642857143 | P10: 0.9090909091 | Q10: 0.7916666667 | R10: 0.8333333333 | S10: 0.619047619 | T10: 0.5471698113 | U10: 0.4509803922 | V10: 0.6981132075 | W10: 0.7735849057 | X10: 0.8620689655 | Y10: 0.9655172414 | Z10: 0.9491525424 | AA10: 0.95 | AB10: 0.9152542373 | AC10: 0.95 | AD10: 0.8620689655 | AE10: 0.7894736842 | AF10: 0.7543859649 | AG10: 0.7760978152 | AH10: 0.8061228121
A11: =_xlfn.XLOOKUP(B11,SEGMENTOS!B:B,SEGMENTOS!A:A) -> 17287 | B11: IAM - Latam - Fapan - Controil | C11: 2025-06-02 | D11: 0.9 | E11: 0.7 | F11: 0.8 | G11: 0.6666666667 | H11: 0.4 | I11: 0.5 | J11: 1 | K11: 0.75 | L11: 1 | M11: 0.6666666667 | N11: 0.6666666667 | O11: 0.6666666667 | P11: 1 | Q11: 0.75 | R11: 1 | S11: 0.75 | T11: 0.5555555556 | U11: 0.5555555556 | V11: 0.5555555556 | W11: 0.8888888889 | X11: 1 | Y11: 1 | Z11: 0.9090909091 | AA11: 0.9090909091 | AB11: 0.6363636364 | AC11: 0.7272727273 | AD11: 1 | AE11: 0.9 | AF11: 1 | AG11: 0.7594421628 | AH11: 0.9634453782
A12: =_xlfn.XLOOKUP(B12,SEGMENTOS!B:B,SEGMENTOS!A:A) -> 17288 | B12: IAM - Latam - SSC - Controil | C12: 2025-06-02 | D12: 0.9090909091 | E12: 1 | F12: 1 | G12: 1 | H12: 1 | I12: 1 | J12: 1 | K12: 1 | L12: 0.875 | M12: 1 | N12: 1 | O12: 0.8888888889 | P12: 1 | Q12: 1 | R12: 0.75 | S12: 0.75 | T12: 0.5 | U12: 0.6 | V12: 0.8333333333 | W12: 0.4285714286 | X12: 1 | Y12: 0.875 | Z12: 1 | AA12: 1 | AB12: 1 | AC12: 1 | AD12: 1 | AE12: 0.6363636364 | AF12: 1 | AG12: 0.8963868025 | AH12: 0.8670741024
A13: =_xlfn.XLOOKUP(B13,SEGMENTOS!B:B,SEGMENTOS!A:A) -> 17289 | B13: IAM - Latam - Fras-le | C13: 2025-06-02 | D13: 0.9022556391 | E13: 0.9153846154 | F13: 0.8125 | G13: 0.9036144578 | H13: 0.704 | I13: 0.7734375 | J13: 0.9523809524 | K13: 0.9487179487 | L13: 0.843373494 | M13: 0.9111111111 | N13: 0.9550561798 | O13: 0.7471264368 | P13: 0.9107142857 | Q13: 0.8333333333 | R13: 0.9047619048 | S13: 0.7118644068 | T13: 0.6534653465 | U13: 0.54 | V13: 0.702970297 | W13: 0.7745098039 | X13: 0.9156626506 | Y13: 0.9759036145 | Z13: 0.9846153846 | AA13: 0.9847328244 | AB13: 0.9465648855 | AC13: 0.9621212121 | AD13: 0.9126984127 | AE13: 0.875 | AF13: 0.8360655738 | AG13: 0.848111027 | AH13: 0.8779887638
A14: =_xlfn.XLOOKUP(B14,SEGMENTOS!B:B,SEGMENTOS!A:A) -> 17290 | B14: IAM - Latam - Aray - Fras-le | C14: 2025-06-02 | D14: 0.8977272727 | E14: 0.9294117647 | F14: 0.7906976744 | G14: 0.9107142857 | H14: 0.7209302326 | I14: 0.7727272727 | J14: 0.9821428571 | K14: 0.9473684211 | L14: 0.8571428571 | M14: 0.8928571429 | N14: 0.9821428571 | O14: 0.7321428571 | P14: 0.8913043478 | Q14: 0.8541666667 | R14: 0.8979591837 | S14: 0.7111111111 | T14: 0.6578947368 | U14: 0.5135135135 | V14: 0.7236842105 | W14: 0.8026315789 | X14: 0.8727272727 | Y14: 0.9636363636 | Z14: 0.9759036145 | AA14: 0.9882352941 | AB14: 0.9404761905 | AC14: 0.9529411765 | AD14: 0.9036144578 | AE14: 0.8705882353 | AF14: 0.7619047619 | AG14: 0.8474948577 | AH14: 0.8528396192
A15: =_xlfn.XLOOKUP(B15,SEGMENTOS!B:B,SEGMENTOS!A:A) -> 17291 | B15: IAM - Latam - Fapan - Fras-le | C15: 2025-06-02 | D15: 0.8571428571 | E15: 0.8214285714 | F15: 0.88 | G15: 0.7857142857 | H15: 0.5833333333 | I15: 0.68 | J15: 0.8666666667 | K15: 0.9166666667 | L15: 0.7333333333 | M15: 0.8947368421 | N15: 0.8888888889 | O15: 0.7222222222 | P15: 1 | Q15: 0.75 | R15: 1 | S15: 0.7777777778 | T15: 0.6315789474 | U15: 0.5789473684 | V15: 0.5789473684 | W15: 0.7 | X15: 1 | Y15: 1 | Z15: 1 | AA15: 1 | AB15: 0.9310344828 | AC15: 0.9655172414 | AD15: 0.9615384615 | AE15: 0.9615384615 | AF15: 1 | AG15: 0.8262784353 | AH15: 0.9720426632
A16: =_xlfn.XLOOKUP(B16,SEGMENTOS!B:B,SEGMENTOS!A:A) -> 17292 | B16: IAM - Latam - SSC - Fras-le | C16: 2025-06-02 | D16: 1 | E16: 1 | F16: 0.8235294118 | G16: 1 | H16: 0.8 | I16: 0.9333333333 | J16: 0.9230769231 | K16: 1 | L16: 0.9166666667 | M16: 1 | N16: 0.9333333333 | O16: 0.8461538462 | P16: 1 | Q16: 0.75 | R16: 0.8 | S16: 0.6 | T16: 0.6666666667 | U16: 0.7142857143 | V16: 0.8333333333 | W16: 0.6666666667 | X16: 1 | Y16: 1 | Z16: 1 | AA16: 0.9444444444 | AB16: 1 | AC16: 1 | AD16: 0.8823529412 | AE16: 0.7647058824 | AF16: 1 | AG16: 0.8837531449 | AH16: 0.871478003
A17: =_xlfn.XLOOKUP(B17,SEGMENTOS!B:B,SEGMENTOS!A:A) -> 17293 | B17: IAM - Latam - Fremax | C17: 2025-06-02 | D17: 0.9142857143 | E17: 0.9428571429 | F17: 0.7647058824 | G17: 0.9487179487 | H17: 0.7205882353 | I17: 0.7462686567 | J17: 0.975 | K17: 0.9230769231 | L17: 0.8947368421 | M17: 0.8333333333 | N17: 0.9761904762 | O17: 0.775 | P17: 0.9259259259 | Q17: 0.9 | R17: 0.8275862069 | S17: 0.7857142857 | T17: 0.701754386 | U17: 0.5714285714 | V17: 0.7586206897 | W17: 0.8596491228 | X17: 0.8536585366 | Y17: 0.95 | Z17: 0.985915493 | AA17: 0.9855072464 | AB17: 0.9714285714 | AC17: 0.9861111111 | AD17: 0.8571428571 | AE17: 0.8571428571 | AF17: 0.859375 | AG17: 0.8599262002 | AH17: 0.857752476
A18: =_xlfn.XLOOKUP(B18,SEGMENTOS!B:B,SEGMENTOS!A:A) -> 17294 | B18: IAM - Latam - Aray - Fremax | C18: 2025-06-02 | D18: 0.9137931034 | E18: 0.9310344828 | F18: 0.775862069 | G18: 0.935483871 | H18: 0.7118644068 | I18: 0.724137931 | J18: 0.9696969697 | K18: 0.9393939394 | L18: 0.875 | M18: 0.875 | N18: 0.96875 | O18: 0.8064516129 | P18: 0.9166666667 | Q18: 0.9230769231 | R18: 0.84 | S18: 0.75 | T18: 0.7115384615 | U18: 0.58 | V18: 0.75 | W18: 0.862745098 | X18: 0.8181818182 | Y18: 0.9393939394 | Z18: 0.9830508475 | AA18: 0.9824561404 | AB18: 0.9655172414 | AC18: 0.9833333333 | AD18: 0.8965517241 | AE18: 0.9137931034 | AF18: 0.8392857143 | AG18: 0.8590127985 | AH18: 0.8872143685
A19: =_xlfn.XLOOKUP(B19,SEGMENTOS!B:B,SEGMENTOS!A:A) -> 17295 | B19: IAM - Latam - SSC - Fremax | C19: 2025-06-02 | D19: 0.8888888889 | E19: 1 | F19: 0.875 | G19: 1 | H19: 0.7142857143 | I19: 0.8571428571 | J19: 1 | K19: 0.8 | L19: 1 | M19: 0.7142857143 | N19: 1 | O19: 0.5714285714 | P19: 1 | Q19: 0.5 | R19: 1 | S19: 1 | T19: 0.5 | U19: 0.5 | V19: 1 | W19: 0.75 | X19: 1 | Y19: 1 | Z19: 1 | AA19: 1 | AB19: 1 | AC19: 1 | AD19: 0.7777777778 | AE19: 0.6666666667 | AF19: 1 | AG19: 0.8682451155 | AH19: 0.7978524743
A20: =_xlfn.XLOOKUP(B20,SEGMENTOS!B:B,SEGMENTOS!A:A) -> 17296 | B20: IAM - Latam - Nakata | C20: 2025-06-02 | D20: 0.9347826087 | E20: 0.9230769231 | F20: 0.7640449438 | G20: 0.935483871 | H20: 0.6292134831 | I20: 0.6333333333 | J20: 0.953125 | K20: 0.8909090909 | L20: 0.8225806452 | M20: 0.8461538462 | N20: 0.9692307692 | O20: 0.78125 | P20: 0.9642857143 | Q20: 0.8421052632 | R20: 0.9189189189 | S20: 0.6875 | T20: 0.6875 | U20: 0.4603174603 | V20: 0.71875 | W20: 0.828125 | X20: 1 | Y20: 0.9661016949 | Z20: 0.989010989 | AA20: 1 | AB20: 0.967032967 | AC20: 0.9673913043 | AD20: 0.9047619048 | AE20: 0.9195402299 | AF20: 0.8372093023 | AG20: 0.8429916967 | AH20: 0.8917148255
A21: =_xlfn.XLOOKUP(B21,SEGMENTOS!B:B,SEGMENTOS!A:A) -> 17297 | B21: IAM - Latam - Aray - Nakata | C21: 2025-06-02 | D21: 0.9523809524 | E21: 0.9677419355 | F21: 0.7580645161 | G21: 0.9756097561 | H21: 0.6349206349 | I21: 0.609375 | J21: 0.9534883721 | K21: 0.9024390244 | L21: 0.7906976744 | M21: 0.8095238095 | N21: 0.9761904762 | O21: 0.8095238095 | P21: 0.9545454545 | Q21: 0.8620689655 | R21: 0.9259259259 | S21: 0.6363636364 | T21: 0.7142857143 | U21: 0.4583333333 | V21: 0.7346938776 | W21: 0.8571428571 | X21: 1 | Y21: 0.9743589744 | Z21: 0.9838709677 | AA21: 1 | AB21: 1 | AC21: 0.9838709677 | AD21: 0.9491525424 | AE21: 0.95 | AF21: 0.8 | AG21: 0.8482952328 | AH21: 0.9087273893
A22: =_xlfn.XLOOKUP(B22,SEGMENTOS!B:B,SEGMENTOS!A:A) -> 17298 | B22: IAM - Latam - Fapan - Nakata | C22: 2025-06-02 | D22: 0.7692307692 | E22: 0.6153846154 | F22: 0.6923076923 | G22: 0.625 | H22: 0.4285714286 | I22: 0.5 | J22: 0.8888888889 | K22: 0.8571428571 | L22: 0.875 | M22: 0.75 | N22: 0.875 | O22: 0.625 | P22: 1 | Q22: 0.8 | R22: 0.8 | S22: 0.6 | T22: 0.6 | U22: 0.5 | V22: 0.6 | W22: 0.9 | X22: 1 | Y22: 1 | Z22: 1 | AA22: 1 | AB22: 0.7857142857 | AC22: 0.8571428571 | AD22: 0.8181818182 | AE22: 0.8333333333 | AF22: 0.9166666667 | AG22: 0.7571041773 | AH22: 0.8506175197
A23: =_xlfn.XLOOKUP(B23,SEGMENTOS!B:B,SEGMENTOS!A:A) -> 17299 | B23: IAM - Latam - SSC - Nakata | C23: 2025-06-02 | D23: 1 | E23: 1 | F23: 0.8571428571 | G23: 1 | H23: 0.8333333333 | I23: 0.9166666667 | J23: 1 | K23: 0.8571428571 | L23: 0.9090909091 | M23: 1 | N23: 1 | O23: 0.7857142857 | P23: 1 | Q23: 0.75 | R23: 1 | S23: 1 | T23: 0.6 | U23: 0.4 | V23: 0.8 | W23: 0.4 | X23: 1 | Y23: 0.9230769231 | Z23: 1 | AA23: 1 | AB23: 1 | AC23: 1 | AD23: 0.7857142857 | AE23: 0.8666666667 | AF23: 0.9285714286 | AG23: 0.8838166388 | AH23: 0.8543217287
A24: =_xlfn.XLOOKUP(B24,SEGMENTOS!B:B,SEGMENTOS!A:A) -> 17300 | B24: IAM - Latam - Aray - Agustin Barrutia / Leonardo Sanguinetti | C24: 2025-06-02 | D24: 0.6923076923 | E24: 0.7692307692 | F24: 0.8461538462 | G24: 1 | H24: 0.6923076923 | I24: 0.8461538462 | J24: 1 | K24: 1 | L24: 0.5 | M24: 1 | N24: 1 | O24: 1 | P24: 1 | Q24: 1 | R24: 1 | S24: 1 | T24: 0.375 | U24: 0.5 | V24: 1 | W24: 1 | X24: 1 | Y24: 1 | Z24: 1 | AA24: 1 | AB24: 1 | AC24: 1 | AD24: 1 | AE24: 1 | AF24: 1 | AG24: 0.893120683 | AH24: 1
A25: =_xlfn.XLOOKUP(B25,SEGMENTOS!B:B,SEGMENTOS!A:A) -> 17301 | B25: IAM - Latam - Aray - Alejandro Saud | C25: 2025-06-02 | D25: 0.8333333333 | E25: 0.9302325581 | F25: 0.7380952381 | G25: 1 | H25: 0.619047619 | I25: 0.5952380952 | J25: 0.9615384615 | K25: 0.9615384615 | L25: 0.8846153846 | M25: 0.92 | N25: 1 | O25: 0.92 | P25: 0.9444444444 | Q25: 0.85 | R25: 1 | S25: 0.7368421053 | T25: 0.4571428571 | U25: 0.3714285714 | V25: 0.7647058824 | W25: 0.8 | X25: 0.92 | Y25: 1 | Z25: 0.9761904762 | AA25: 0.9756097561 | AB25: 0.9761904762 | AC25: 1 | AD25: 0.95 | AE25: 0.875 | AF25: 0.9230769231 | AG25: 0.8474331953 | AH25: 0.9152310924
A26: =_xlfn.XLOOKUP(B26,SEGMENTOS!B:B,SEGMENTOS!A:A) -> 17302 | B26: IAM - Latam - Aray - Esteban Gammacurta | C26: 2025-06-02 | D26: 0.75 | E26: 1 | F26: 0.75 | G26: 0.7142857143 | H26: 0.75 | I26: 0.625 | J26: 1 | K26: 1 | L26: 0.7142857143 | M26: 0.7142857143 | N26: 1 | O26: 0.5714285714 | P26: 1 | Q26: 0.8333333333 | R26: 1 | S26: 0.8 | T26: 0.5714285714 | U26: 0.5714285714 | V26: 0.5714285714 | W26: 0.8571428571 | X26: 1 | Y26: 1 | Z26: 1 | AA26: 1 | AB26: 1 | AC26: 1 | AD26: 1 | AE26: 1 | AF26: 0.75 | AG26: 0.8332742411 | AH26: 0.9317226891
A27: =_xlfn.XLOOKUP(B27,SEGMENTOS!B:B,SEGMENTOS!A:A) -> 17303 | B27: IAM - Latam - Aray - Franco Stagno | C27: 2025-06-02 | D27: 0.8387096774 | E27: 0.8709677419 | F27: 0.4838709677 | G27: 0.7894736842 | H27: 0.3870967742 | I27: 0.4516129032 | J27: 0.8421052632 | K27: 0.7647058824 | L27: 0.5789473684 | M27: 0.6842105263 | N27: 0.8421052632 | O27: 0.7368421053 | P27: 0.7333333333 | Q27: 0.6470588235 | R27: 0.5882352941 | S27: 0.4 | T27: 0.6 | U27: 0.3 | V27: 0.4666666667 | W27: 0.8333333333 | X27: 0.75 | Y27: 0.6842105263 | Z27: 0.875 | AA27: 0.90625 | AB27: 0.875 | AC27: 0.84375 | AD27: 0.8387096774 | AE27: 0.8125 | AF27: 0.6875 | AG27: 0.6758541209 | AH27: 0.7878320683
A28: =_xlfn.XLOOKUP(B28,SEGMENTOS!B:B,SEGMENTOS!A:A) -> 17304 | B28: IAM - Latam - Aray - Gaston Tula | C28: 2025-06-02 | D28: 1 | E28: 1 | F28: 0.8823529412 | G28: 1 | H28: 0.7222222222 | I28: 0.6851851852 | J28: 0.9736842105 | K28: 0.9736842105 | L28: 0.9189189189 | M28: 0.8157894737 | N28: 0.9736842105 | O28: 0.7894736842 | P28: 0.9642857143 | Q28: 1 | R28: 1 | S28: 0.8846153846 | T28: 0.8 | U28: 0.8 | V28: 0.8222222222 | W28: 0.9545454545 | X28: 0.9444444444 | Y28: 1 | Z28: 0.9807692308 | AA28: 1 | AB28: 0.9787234043 | AC28: 0.9803921569 | AD28: 0.8653846154 | AE28: 0.8076923077 | AF28: 0.8461538462 | AG28: 0.9148475577 | AH28: 0.8390433096
A29: =_xlfn.XLOOKUP(B29,SEGMENTOS!B:B,SEGMENTOS!A:A) -> 17305 | B29: IAM - Latam - Aray - Mario Figola | C29: 2025-06-02 | D29: 0.9210526316 | E29: 1 | F29: 0.9473684211 | G29: 0.8888888889 | H29: 0.7027027027 | I29: 0.8157894737 | J29: 1 | K29: 1 | L29: 0.8333333333 | M29: 0.5555555556 | N29: 1 | O29: 0.5 | P29: 0.8181818182 | Q29: 1 | R29: 0.75 | S29: 0.5454545455 | T29: 0.5757575758 | U29: 0.5483870968 | V29: 0.7647058824 | W29: 0.5294117647 | X29: 0.8333333333 | Y29: 1 | Z29: 1 | AA29: 1 | AB29: 0.9210526316 | AC29: 1 | AD29: 1 | AE29: 0.9736842105 | AF29: 0.6842105263 | AG29: 0.8164982664 | AH29: 0.9041353383
A30: =_xlfn.XLOOKUP(B30,SEGMENTOS!B:B,SEGMENTOS!A:A) -> 17306 | B30: IAM - Latam - Aray - Martin Piparuolo | C30: 2025-06-02 | D30: 0.8928571429 | E30: 0.8641975309 | F30: 0.7261904762 | G30: 0.9215686275 | H30: 0.743902439 | I30: 0.8452380952 | J30: 1 | K30: 0.8823529412 | L30: 0.8823529412 | M30: 0.847826087 | N30: 1 | O30: 0.6304347826 | P30: 0.9428571429 | Q30: 0.8 | R30: 0.8780487805 | S30: 0.6571428571 | T30: 0.7638888889 | U30: 0.4328358209 | V30: 0.7222222222 | W30: 0.8591549296 | X30: 0.8888888889 | Y30: 1 | Z30: 0.987804878 | AA30: 0.987804878 | AB30: 0.9638554217 | AC30: 0.9638554217 | AD30: 0.8552631579 | AE30: 0.8831168831 | AF30: 0.7333333333 | AG30: 0.8414154547 | AH30: 0.8321448197
A31: =_xlfn.XLOOKUP(B31,SEGMENTOS!B:B,SEGMENTOS!A:A) -> 17307 | B31: IAM - Latam - Dirección | C31: 2025-06-02 | D31: 0.8854961832 | E31: 0.9160305344 | F31: 0.6870229008 | H31: 0.5813953488 | I31: 0.7099236641 | T31: 0.5692307692 | U31: 0.5153846154 | V31: 0.7596899225 | W31: 0.8294573643 | Z31: 0.96875 | AA31: 0.984375 | AB31: 0.9384615385 | AC31: 0.9615384615 | AD31: 0.8984375 | AE31: 0.859375 | AF31: 0.7619047619 | AG31: 0.7946761971 | AH31: 0.846869998
A32: =_xlfn.XLOOKUP(B32,SEGMENTOS!B:B,SEGMENTOS!A:A) -> 17308 | B32: IAM - Latam - Gestores de Marketing | C32: 2025-06-02 | D32: 1 | E32: 1 | R32: 1 | S32: 1 | T32: 0.6 | U32: 0.6 | V32: 0.6 | W32: 0.5 | Z32: 1 | AA32: 1 | AB32: 1 | AC32: 1 | AG32: 0.8675645342
A33: =_xlfn.XLOOKUP(B33,SEGMENTOS!B:B,SEGMENTOS!A:A) -> 17309 | B33: IAM - Latam - Gestores de Vendas | C33: 2025-06-02 | D33: 0.8333333333 | E33: 0.8333333333 | M33: 0.7142857143 | N33: 0.8333333333 | O33: 0.5 | P33: 1 | Q33: 0.5 | R33: 1 | S33: 1 | T33: 0.4 | U33: 0.5 | V33: 0.8333333333 | W33: 0.5714285714 | Z33: 1 | AA33: 1 | AB33: 1 | AC33: 1 | AD33: 0.5 | AE33: 0.8333333333 | AG33: 0.8006578696 | AH33: 0.6676300578
A34: =_xlfn.XLOOKUP(B34,SEGMENTOS!B:B,SEGMENTOS!A:A) -> 17310 | B34: IAM - Latam - Gestores de Compras | C34: 2025-06-02 | D34: 0.8666666667 | E34: 0.8356164384 | F34: 0.8648648649 | G34: 0.8805970149 | H34: 0.7792207792 | I34: 0.7142857143 | J34: 0.961038961 | K34: 0.9047619048 | L34: 0.8285714286 | M34: 0.8684210526 | N34: 0.961038961 | O34: 0.7323943662 | X34: 0.9718309859 | Y34: 1 | Z34: 1 | AA34: 0.9861111111 | AB34: 0.9444444444 | AC34: 0.9452054795 | AD34: 0.9295774648 | AE34: 0.8630136986 | AF34: 0.9565217391 | AG34: 0.8874771297 | AH34: 0.9126040622
A35: =_xlfn.XLOOKUP(B35,SEGMENTOS!B:B,SEGMENTOS!A:A) -> 17311 | B35: IAM - Latam - Gestores de Logística | C35: 2025-06-02 | H35: 1 | I35: 1 | J35: 1 | K35: 0.3333333333 | L35: 1 | Z35: 1 | AA35: 1 | AB35: 1 | AC35: 1 | AG35: 0.9450980392
A36: =_xlfn.XLOOKUP(B36,SEGMENTOS!B:B,SEGMENTOS!A:A) -> 17312 | B36: IAM - Latam - Gestores de Negócios | C36: 2025-06-02 | D36: 0.9141104294 | E36: 0.9375 | F36: 0.8271604938 | G36: 0.9254658385 | H36: 0.68 | I36: 0.7434210526 | J36: 0.9605263158 | K36: 0.9513888889 | L36: 0.8486842105 | M36: 0.8164556962 | N36: 0.9620253165 | O36: 0.7388535032 | P36: 0.9248120301 | Q36: 0.8571428571 | R36: 0.875 | S36: 0.690647482 | T36: 0.72 | U36: 0.5104895105 | V36: 0.6754966887 | W36: 0.7933333333 | X36: 0.9044585987 | Y36: 0.9487179487 | Z36: 0.974025974 | AA36: 0.9743589744 | AB36: 0.9411764706 | AC36: 0.9617834395 | AD36: 0.8961038961 | AE36: 0.8653846154 | AF36: 0.8431372549 | AG36: 0.8422398661 | AH36: 0.8704088999
A37: =_xlfn.XLOOKUP(B37,SEGMENTOS!B:B,SEGMENTOS!A:A) -> 17313 | B37: IAM - Latam - Aray - Dirección | C37: 2025-06-02 | D37: 0.8691588785 | E37: 0.9433962264 | F37: 0.6509433962 | H37: 0.580952381 | I37: 0.7075471698 | T37: 0.5754716981 | U37: 0.4905660377 | V37: 0.7735849057 | W37: 0.8679245283 | Z37: 0.9711538462 | AA37: 0.980952381 | AB37: 0.9716981132 | AC37: 0.9716981132 | AD37: 0.8846153846 | AE37: 0.8653846154 | AF37: 0.7238095238 | AG37: 0.7980431034 | AH37: 0.8336680826
A38: =_xlfn.XLOOKUP(B38,SEGMENTOS!B:B,SEGMENTOS!A:A) -> 17314 | B38: IAM - Latam - Aray - Gestores de Compras | C38: 2025-06-02 | D38: 0.9090909091 | E38: 0.8125 | F38: 1 | G38: 1 | H38: 0.9142857143 | I38: 0.6571428571 | J38: 0.9714285714 | K38: 0.9714285714 | L38: 0.8484848485 | M38: 0.8823529412 | N38: 0.9714285714 | O38: 0.78125 | X38: 0.9393939394 | Y38: 1 | Z38: 1 | AA38: 1 | AB38: 1 | AC38: 1 | AD38: 1 | AE38: 0.9696969697 | AF38: 0.90625 | AG38: 0.9245603784 | AH38: 0.9633188503
A39: =_xlfn.XLOOKUP(B39,SEGMENTOS!B:B,SEGMENTOS!A:A) -> 17315 | B39: IAM - Latam - Aray - Gestores de Negócios | C39: 2025-06-02 | D39: 0.9 | E39: 0.9291338583 | F39: 0.8062015504 | G39: 0.9076923077 | H39: 0.6666666667 | I39: 0.736 | J39: 0.968 | K39: 0.9435483871 | L39: 0.824 | M39: 0.776 | N39: 0.976 | O39: 0.704 | P39: 0.9122807018 | Q39: 0.8582677165 | R39: 0.88 | S39: 0.6875 | T39: 0.7258064516 | U39: 0.5128205128 | V39: 0.685483871 | W39: 0.7804878049 | X39: 0.8790322581 | Y39: 0.9512195122 | Z39: 0.9672131148 | AA39: 0.9756097561 | AB39: 0.925 | AC39: 0.9516129032 | AD39: 0.893442623 | AE39: 0.8699186992 | AF39: 0.8083333333 | AG39: 0.8332190667 | AH39: 0.8615994079
A40: =_xlfn.XLOOKUP(B40,SEGMENTOS!B:B,SEGMENTOS!A:A) -> 17316 | B40: IAM - Latam - Fapan — Dirección | C40: 2025-06-02 | D40: 0.9473684211 | E40: 0.7368421053 | F40: 0.8421052632 | H40: 0.4444444444 | I40: 0.6315789474 | T40: 0.5 | U40: 0.6111111111 | V40: 0.6111111111 | W40: 0.6111111111 | Z40: 0.9444444444 | AA40: 1 | AB40: 0.7222222222 | AC40: 0.8888888889 | AD40: 0.9444444444 | AE40: 0.9444444444 | AF40: 0.9444444444 | AG40: 0.733924317 | AH40: 0.9444444444
A41: =_xlfn.XLOOKUP(B41,SEGMENTOS!B:B,SEGMENTOS!A:A) -> 17317 | B41: IAM - Latam - Fapan - Gestores de Compras | C41: 2025-06-02 | D41: 0.6666666667 | E41: 0.6 | F41: 0.6 | G41: 0.4666666667 | H41: 0.4666666667 | I41: 0.4666666667 | J41: 0.8666666667 | K41: 0.7272727273 | L41: 0.6923076923 | M41: 0.6666666667 | N41: 0.8666666667 | O41: 0.6428571429 | X41: 1 | Y41: 1 | Z41: 1 | AA41: 0.9230769231 | AB41: 0.6923076923 | AC41: 0.6923076923 | AD41: 0.9230769231 | AE41: 0.9230769231 | AF41: 1 | AG41: 0.712706032 | AH41: 0.9440853264
A42: =_xlfn.XLOOKUP(B42,SEGMENTOS!B:B,SEGMENTOS!A:A) -> 17318 | B42: IAM - Latam - Fapan - Gestores de Negócios | C42: 2025-06-02 | D42: 0.9375 | E42: 0.9375 | F42: 0.875 | G42: 1 | H42: 0.6 | I42: 0.6666666667 | J42: 0.9333333333 | K42: 1 | L42: 0.9333333333 | M42: 0.9375 | N42: 0.875 | O42: 0.75 | P42: 1 | Q42: 0.8 | R42: 0.8666666667 | S42: 0.6666666667 | T42: 0.6666666667 | U42: 0.3333333333 | V42: 0.4 | W42: 1 | X42: 1 | Y42: 1 | Z42: 1 | AA42: 1 | AB42: 1 | AC42: 1 | AD42: 0.8666666667 | AE42: 0.8125 | AF42: 1 | AG42: 0.8454313069 | AH42: 0.8832808123
A43: =_xlfn.XLOOKUP(B43,SEGMENTOS!B:B,SEGMENTOS!A:A) -> 17319 | B43: IAM - Latam - SSC - Dirección | C43: 2025-06-02 | D43: 1 | E43: 1 | F43: 0.8333333333 | H43: 1 | I43: 1 | T43: 0.6666666667 | U43: 0.6666666667 | V43: 1 | W43: 0.8 | Z43: 1 | AA43: 1 | AB43: 1 | AC43: 1 | AD43: 1 | AE43: 0.5 | AF43: 1 | AG43: 0.9219753086 | AH43: 0.8172268908
A44: =_xlfn.XLOOKUP(B44,SEGMENTOS!B:B,SEGMENTOS!A:A) -> 17320 | B44: IAM - Latam - SSC - Gestores de Compras | C44: 2025-06-02 | D44: 0.9259259259 | E44: 1 | F44: 0.8518518519 | G44: 1 | H44: 0.7777777778 | I44: 0.9259259259 | J44: 1 | K44: 0.8823529412 | L44: 0.875 | M44: 0.962962963 | N44: 1 | O44: 0.72 | X44: 1 | Y44: 1 | Z44: 1 | AA44: 1 | AB44: 1 | AC44: 1 | AD44: 0.8461538462 | AE44: 0.7037037037 | AF44: 1 | AG44: 0.9367201018 | AH44: 0.836098542
A45: =_xlfn.XLOOKUP(B45,SEGMENTOS!B:B,SEGMENTOS!A:A) -> 17321 | B45: IAM - Latam - SSC - Gestores de Negócios | C45: 2025-06-02 | D45: 1 | E45: 1 | F45: 0.9411764706 | G45: 1 | H45: 0.9166666667 | I45: 0.9166666667 | J45: 0.9166666667 | K45: 1 | L45: 1 | M45: 1 | N45: 0.9411764706 | O45: 1 | P45: 1 | Q45: 0.9166666667 | R45: 0.8333333333 | S45: 0.75 | T45: 0.7272727273 | U45: 0.7272727273 | V45: 0.9166666667 | W45: 0.6666666667 | X45: 1 | Y45: 0.8823529412 | Z45: 1 | AA45: 0.9411764706 | AB45: 1 | AC45: 1 | AD45: 0.9411764706 | AE45: 0.8823529412 | AF45: 0.9411764706 | AG45: 0.9198502197 | AH45: 0.9196737519
A46: =_xlfn.XLOOKUP(B46,SEGMENTOS!B:B,SEGMENTOS!A:A) -> 17322 | B46: IAM - Latam - Aray - Clientes A | C46: 2025-06-02 | D46: 0.9397590361 | E46: 0.9156626506 | F46: 0.8674698795 | G46: 0.9473684211 | H46: 0.7356321839 | I46: 0.6666666667 | J46: 0.9782608696 | K46: 0.9111111111 | L46: 0.8409090909 | M46: 0.7857142857 | N46: 1 | O46: 0.775 | P46: 0.9047619048 | Q46: 0.9545454545 | R46: 0.9523809524 | S46: 0.9047619048 | T46: 0.6451612903 | U46: 0.5806451613 | V46: 0.8548387097 | W46: 0.8196721311 | X46: 1 | Y46: 1 | Z46: 0.9879518072 | AA46: 1 | AB46: 0.9634146341 | AC46: 0.988372093 | AD46: 0.950617284 | AE46: 0.9268292683 | AF46: 0.8780487805 | AG46: 0.8786929419 | AH46: 0.9221025357
A47: =_xlfn.XLOOKUP(B47,SEGMENTOS!B:B,SEGMENTOS!A:A) -> 17323 | B47: IAM - Latam - Aray - Clientes B | C47: 2025-06-02 | D47: 0.8679245283 | E47: 0.9215686275 | F47: 0.6730769231 | G47: 0.95 | H47: 0.5714285714 | I47: 0.68 | J47: 1 | K47: 0.9272727273 | L47: 0.7636363636 | M47: 0.8 | N47: 1 | O47: 0.7272727273 | P47: 0.9387755102 | Q47: 0.8181818182 | R47: 0.8490566038 | S47: 0.6808510638 | T47: 0.6764705882 | U47: 0.4387755102 | V47: 0.6764705882 | W47: 0.8514851485 | X47: 0.8983050847 | Y47: 0.9482758621 | Z47: 0.9714285714 | AA47: 0.9807692308 | AB47: 0.9528301887 | AC47: 0.9528301887 | AD47: 0.862745098 | AE47: 0.8529411765 | AF47: 0.6565656566 | AG47: 0.8192205987 | AH47: 0.8028518003
A48: =_xlfn.XLOOKUP(B48,SEGMENTOS!B:B,SEGMENTOS!A:A) -> 17324 | B48: IAM - Latam - Aray - Clientes C | C48: 2025-06-02 | D48: 0.8641975309 | E48: 0.925 | F48: 0.7875 | G48: 0.8833333333 | H48: 0.7195121951 | I48: 0.8192771084 | J48: 0.935483871 | K48: 0.9365079365 | L48: 0.8888888889 | M48: 0.8064516129 | N48: 0.9365079365 | O48: 0.6774193548 | P48: 0.8863636364 | Q48: 0.86 | R48: 0.8823529412 | S48: 0.5909090909 | T48: 0.6363636364 | U48: 0.5238095238 | V48: 0.6818181818 | W48: 0.776119403 | X48: 0.8070175439 | Y48: 0.9473684211 | Z48: 0.96 | AA48: 0.9594594595 | AB48: 0.9466666667 | AC48: 0.96 | AD48: 0.9066666667 | AE48: 0.8684210526 | AF48: 0.8552631579 | AG48: 0.8256803481 | AH48: 0.8786473537
A49: =_xlfn.XLOOKUP(B49,SEGMENTOS!B:B,SEGMENTOS!A:A) -> 17325 | B49: IAM - Latam - Linea Liviana | C49: 2025-06-02 | D49: 0.8857142857 | E49: 0.8712871287 | F49: 0.8349514563 | G49: 0.9 | H49: 0.7227722772 | I49: 0.7623762376 | J49: 0.9603960396 | K49: 0.9468085106 | L49: 0.8217821782 | M49: 0.8446601942 | N49: 0.9708737864 | O49: 0.7524752475 | P49: 0.8888888889 | Q49: 0.8461538462 | R49: 0.8181818182 | S49: 0.6666666667 | T49: 0.7272727273 | U49: 0.5555555556 | V49: 0.6282051282 | W49: 0.8205128205 | X49: 0.875 | Y49: 0.9405940594 | Z49: 0.9619047619 | AA49: 0.9714285714 | AB49: 0.9519230769 | AC49: 0.953271028 | AD49: 0.8834951456 | AE49: 0.819047619 | AF49: 0.8865979381 | AG49: 0.8359952601 | AH49: 0.8607839973
A50: =_xlfn.XLOOKUP(B50,SEGMENTOS!B:B,SEGMENTOS!A:A) -> 17326 | B50: IAM - Latam - Linea Pesada | C50: 2025-06-02 | D50: 0.8888888889 | E50: 0.9090909091 | F50: 0.8837209302 | G50: 0.95 | H50: 0.8684210526 | I50: 0.8421052632 | J50: 0.9210526316 | K50: 0.9736842105 | L50: 0.8857142857 | M50: 0.9130434783 | N50: 0.8913043478 | O50: 0.8139534884 | P50: 0.9615384615 | Q50: 0.8076923077 | R50: 0.9615384615 | S50: 0.8076923077 | T50: 0.7142857143 | U50: 0.5454545455 | V50: 0.5909090909 | W50: 0.7272727273 | X50: 0.9473684211 | Y50: 1 | Z50: 1 | AA50: 0.9736842105 | AB50: 1 | AC50: 1 | AD50: 0.9189189189 | AE50: 0.9473684211 | AF50: 0.9444444444 | AG50: 0.8731173318 | AH50: 0.9362897838
A51: =_xlfn.XLOOKUP(B51,SEGMENTOS!B:B,SEGMENTOS!A:A) -> 17327 | B51: IAM - Latam - Ambas líneas: Liviana y Pesada | C51: 2025-06-02 | D51: 0.8986784141 | E51: 0.9254385965 | F51: 0.742081448 | G51: 0.9090909091 | H51: 0.6143497758 | I51: 0.6960352423 | J51: 0.9791666667 | K51: 0.8641975309 | L51: 0.8586956522 | M51: 0.7717391304 | N51: 0.9782608696 | O51: 0.6666666667 | P51: 0.9583333333 | Q51: 0.8571428571 | R51: 0.9310344828 | S51: 0.7169811321 | T51: 0.6041666667 | U51: 0.4947368421 | V51: 0.7643979058 | W51: 0.796875 | X51: 0.976744186 | Y51: 0.976744186 | Z51: 0.9826086957 | AA51: 0.987012987 | AB51: 0.9307359307 | AC51: 0.9570815451 | AD51: 0.899543379 | AE51: 0.8681818182 | AF51: 0.7953488372 | AG51: 0.8333154136 | AH51: 0.8596227865
A52: =_xlfn.XLOOKUP(B52,SEGMENTOS!B:B,SEGMENTOS!A:A) -> 17328 | B52: IAM - Latam - Aray - Linea Liviana | C52: 2025-06-02 | D52: 0.8915662651 | E52: 0.8734177215 | F52: 0.8414634146 | G52: 0.9 | H52: 0.7375 | I52: 0.75 | J52: 0.95 | K52: 0.9358974359 | L52: 0.8148148148 | M52: 0.8125 | N52: 0.962962963 | O52: 0.725 | P52: 0.8703703704 | Q52: 0.8615384615 | R52: 0.7936507937 | S52: 0.6363636364 | T52: 0.7384615385 | U52: 0.5833333333 | V52: 0.6615384615 | W52: 0.796875 | X52: 0.843373494 | Y52: 0.9268292683 | Z52: 0.9518072289 | AA52: 0.9634146341 | AB52: 0.9382716049 | AC52: 0.9404761905 | AD52: 0.8780487805 | AE52: 0.8674698795 | AF52: 0.8607594937 | AG52: 0.8292456472 | AH52: 0.8694598392
A53: =_xlfn.XLOOKUP(B53,SEGMENTOS!B:B,SEGMENTOS!A:A) -> 17329 | B53: IAM - Latam - Aray - Linea Pesada | C53: 2025-06-02 | D53: 0.8695652174 | E53: 0.9130434783 | F53: 0.8695652174 | G53: 0.9047619048 | H53: 0.8333333333 | I53: 0.875 | J53: 0.9583333333 | K53: 0.9583333333 | L53: 0.8095238095 | M53: 0.875 | N53: 0.9583333333 | O53: 0.7727272727 | P53: 0.9411764706 | Q53: 0.8235294118 | R53: 1 | S53: 0.8235294118 | T53: 0.7692307692 | U53: 0.5384615385 | V53: 0.6153846154 | W53: 0.6923076923 | X53: 0.8888888889 | Y53: 1 | Z53: 1 | AA53: 1 | AB53: 1 | AC53: 1 | AD53: 1 | AE53: 0.8823529412 | AF53: 0.8823529412 | AG53: 0.8701154866 | AH53: 0.9248640633
A54: =_xlfn.XLOOKUP(B54,SEGMENTOS!B:B,SEGMENTOS!A:A) -> 17330 | B54: IAM - Latam - Aray - Ambas líneas: Liviana y Pesada | C54: 2025-06-02 | D54: 0.8902439024 | E54: 0.9447852761 | F54: 0.7160493827 | G54: 0.9649122807 | H54: 0.6134969325 | I54: 0.6807228916 | J54: 1 | K54: 0.9016393443 | L54: 0.8666666667 | M54: 0.7454545455 | N54: 1 | O54: 0.6909090909 | P54: 0.9534883721 | Q54: 0.8666666667 | R54: 0.9555555556 | S54: 0.7 | T54: 0.6118421053 | U54: 0.4666666667 | V54: 0.7631578947 | W54: 0.8421052632 | X54: 0.9642857143 | Y54: 1 | Z54: 0.981595092 | AA54: 0.9878787879 | AB54: 0.9575757576 | AC54: 0.9759036145 | AD54: 0.90625 | AE54: 0.8875 | AF54: 0.7391304348 | AG54: 0.8402119388 | AH54: 0.8537541103
A55: =_xlfn.XLOOKUP(B55,SEGMENTOS!B:B,SEGMENTOS!A:A) -> 17331 | B55: IAM - Latam - Fapan - Linea Liviana | C55: 2025-06-02 | D55: 0.8 | E55: 0.8 | F55: 0.7142857143 | G55: 0.8461538462 | H55: 0.5 | I55: 0.7142857143 | J55: 1 | K55: 1 | L55: 0.7692307692 | M55: 0.9375 | N55: 1 | O55: 0.7857142857 | P55: 1 | Q55: 0.7272727273 | R55: 0.9166666667 | S55: 0.75 | T55: 0.7 | U55: 0.3636363636 | V55: 0.4545454545 | W55: 1 | X55: 1 | Y55: 1 | Z55: 1 | AA55: 1 | AB55: 1 | AC55: 1 | AD55: 0.8571428571 | AE55: 0.6666666667 | AF55: 1 | AG55: 0.8293159155 | AH55: 0.8265306122
A56: =_xlfn.XLOOKUP(B56,SEGMENTOS!B:B,SEGMENTOS!A:A) -> 17332 | B56: IAM - Latam - Fapan - Linea Pesada | C56: 2025-06-02 | D56: 0.8181818182 | E56: 0.8181818182 | F56: 0.8888888889 | G56: 1 | H56: 0.875 | I56: 0.75 | J56: 0.875 | K56: 1 | L56: 1 | M56: 0.9090909091 | N56: 0.7272727273 | O56: 0.7272727273 | P56: 1 | Q56: 0.8333333333 | R56: 0.8333333333 | S56: 0.8333333333 | T56: 0.6666666667 | U56: 0.5 | V56: 0.3333333333 | W56: 0.8333333333 | X56: 1 | Y56: 1 | Z56: 1 | AA56: 1 | AB56: 1 | AC56: 1 | AD56: 0.8 | AE56: 1 | AF56: 1 | AG56: 0.8493066471 | AH56: 0.9277310924
A57: =_xlfn.XLOOKUP(B57,SEGMENTOS!B:B,SEGMENTOS!A:A) -> 17333 | B57: IAM - Latam - Fapan - Ambas líneas: Liviana y Pesada | C57: 2025-06-02 | D57: 0.8928571429 | E57: 0.7142857143 | F57: 0.7777777778 | G57: 0.25 | H57: 0.4285714286 | I57: 0.5172413793 | J57: 0.8 | K57: 0.5 | L57: 0.7777777778 | M57: 0.4444444444 | N57: 0.7777777778 | O57: 0.5555555556 | P57: 1 | Q57: 1 | R57: 1 | S57: 0.5 | T57: 0.5652173913 | U57: 0.652173913 | V57: 0.6956521739 | W57: 0.6956521739 | X57: 1 | Y57: 1 | Z57: 0.9677419355 | AA57: 0.9666666667 | AB57: 0.7096774194 | AC57: 0.8064516129 | AD57: 0.9615384615 | AE57: 0.9615384615 | AF57: 0.96 | AG57: 0.7286856232 | AH57: 0.9611182935
A58: =_xlfn.XLOOKUP(B58,SEGMENTOS!B:B,SEGMENTOS!A:A) -> 17334 | B58: IAM - Latam - SSC - Linea Liviana | C58: 2025-06-02 | D58: 1 | E58: 1 | F58: 1 | G58: 1 | H58: 1 | I58: 1 | J58: 1 | K58: 1 | L58: 1 | M58: 1 | N58: 1 | O58: 1 | P58: 1 | Q58: 1 | R58: 1 | S58: 1 | T58: 0.5 | U58: 1 | V58: 0.5 | W58: 0.5 | X58: 1 | Y58: 1 | Z58: 1 | AA58: 1 | AB58: 1 | AC58: 1 | AD58: 1 | AE58: 0.5714285714 | AF58: 1 | AG58: 0.9445064138 | AH58: 0.8433373349
A59: =_xlfn.XLOOKUP(B59,SEGMENTOS!B:B,SEGMENTOS!A:A) -> 17335 | B59: IAM - Latam - SSC - Linea Pesada | C59: 2025-06-02 | D59: 1 | E59: 1 | F59: 0.9090909091 | G59: 1 | H59: 1 | I59: 0.8333333333 | J59: 0.8333333333 | K59: 1 | L59: 1 | M59: 1 | N59: 0.9090909091 | O59: 1 | P59: 1 | Q59: 0.6666666667 | R59: 1 | S59: 0.6666666667 | T59: 0.5 | U59: 0.6666666667 | V59: 1 | W59: 0.6666666667 | X59: 1 | Y59: 1 | Z59: 1 | AA59: 0.9090909091 | AB59: 1 | AC59: 1 | AD59: 0.9090909091 | AE59: 1 | AF59: 1 | AG59: 0.9056516081 | AH59: 0.9671504966
A60: =_xlfn.XLOOKUP(B60,SEGMENTOS!B:B,SEGMENTOS!A:A) -> 17336 | B60: IAM - Latam - SSC - Ambas líneas: Liviana y Pesada | C60: 2025-06-02 | D60: 0.9428571429 | E60: 1 | F60: 0.84375 | G60: 1 | H60: 0.78125 | I60: 0.9375 | J60: 1 | K60: 0.8571428571 | L60: 0.8695652174 | M60: 0.9285714286 | N60: 1 | O60: 0.6538461538 | P60: 1 | Q60: 0.7777777778 | R60: 0.8181818182 | S60: 0.8181818182 | T60: 0.5882352941 | U60: 0.5294117647 | V60: 0.875 | W60: 0.5294117647 | X60: 1 | Y60: 0.9130434783 | Z60: 1 | AA60: 1 | AB60: 1 | AC60: 1 | AD60: 0.8181818182 | AE60: 0.7058823529 | AF60: 0.9655172414 | AG60: 0.8662051706 | AH60: 0.8173698393

Sheet APL_1_SAT
A1: ID_Segmento | B1: Segmento | C1: Data | D1: 1 | E1: 2 | F1: 3 | G1: 4 | H1: 5 | I1: 6 | J1: 7 | K1: 8 | L1: 9 | M1: 10 | N1: 11 | O1: 12 | P1: 13 | Q1: 14 | R1: 15 | S1: 16 | T1: 17 | U1: 18 | V1: 19 | W1: 20 | X1: 21 | Y1: 22 | Z1: 23 | AA1: 24 | AB1: 25 | AC1: 26 | AD1: 27 | AE1: 28 | AF1: 29 | AG1: ISQP | AH1: IS$P
A2: =_xlfn.XLOOKUP(B2,SEGMENTOS!B:B,SEGMENTOS!A:A) -> 2900 | B2: Mercado | C2: 2023-06-01
A3: 17337 | B3: IAM - Brasil + Latam | C3: 2023-06-01
A4: 17338 | B4: IAM - Brasil | C4: 2023-06-01 | D4: 0.8163522013 | E4: 0.8318584071 | F4: 0.8341968912 | G4: 0.8977272727 | H4: 0.7764705882 | I4: 0.8912037037 | J4: 0.845814978 | K4: 0.7762557078 | L4: 0.7212389381 | M4: 0.925087108 | N4: 0.9740034662 | O4: 0.8638743455 | P4: 0.785440613 | Q4: 0.8289473684 | R4: 0.8418181818 | S4: 0.6795865633 | T4: 0.8182989691 | U4: 0.6842105263 | V4: 0.9102040816 | W4: 0.8322324967 | X4: 0.9627329193 | Y4: 0.9382716049 | Z4: 0.9748502994 | AA4: 0.983353151 | AB4: 0.9261904762 | AC4: 0.9727164887 | AD4: 0.9125528914 | AE4: 0.9275956284 | AF4: 0.8247978437 | AG4: 0.8532867819 | AH4: 0.8958372768
A5: 17281 | B5: IAM - Latam | C5: 2023-06-01
A6: 17282 | B6: IAM - Aray | C6: 2023-06-01
A7: 17283 | B7: IAM - Fapan | C7: 2023-06-01
A8: 17284 | B8: IAM - SSC | C8: 2023-06-01
A9: =_xlfn.XLOOKUP(B9,SEGMENTOS!B:B,SEGMENTOS!A:A) -> 17285 | B9: IAM - Latam - Controil | C9: 2023-06-01
A10: =_xlfn.XLOOKUP(B10,SEGMENTOS!B:B,SEGMENTOS!A:A) -> 17286 | B10: IAM - Latam - Aray - Controil | C10: 2023-06-01
A11: =_xlfn.XLOOKUP(B11,SEGMENTOS!B:B,SEGMENTOS!A:A) -> 17287 | B11: IAM - Latam - Fapan - Controil | C11: 2023-06-01
A12: =_xlfn.XLOOKUP(B12,SEGMENTOS!B:B,SEGMENTOS!A:A) -> 17288 | B12: IAM - Latam - SSC - Controil | C12: 2023-06-01
A13: =_xlfn.XLOOKUP(B13,SEGMENTOS!B:B,SEGMENTOS!A:A) -> 17289 | B13: IAM - Latam - Fras-le | C13: 2023-06-01
A14: =_xlfn.XLOOKUP(B14,SEGMENTOS!B:B,SEGMENTOS!A:A) -> 17290 | B14: IAM - Latam - Aray - Fras-le | C14: 2023-06-01
A15: =_xlfn.XLOOKUP(B15,SEGMENTOS!B:B,SEGMENTOS!A:A) -> 17291 | B15: IAM - Latam - Fapan - Fras-le | C15: 2023-06-01
A16: =_xlfn.XLOOKUP(B16,SEGMENTOS!B:B,SEGMENTOS!A:A) -> 17292 | B16: IAM - Latam - SSC - Fras-le | C16: 2023-06-01
A17: =_xlfn.XLOOKUP(B17,SEGMENTOS!B:B,SEGMENTOS!A:A) -> 17293 | B17: IAM - Latam - Fremax | C17: 2023-06-01
A18: =_xlfn.XLOOKUP(B18,SEGMENTOS!B:B,SEGMENTOS!A:A) -> 17294 | B18: IAM - Latam - Aray - Fremax | C18: 2023-06-01
A19: =_xlfn.XLOOKUP(B19,SEGMENTOS!B:B,SEGMENTOS!A:A) -> 17295 | B19: IAM - Latam - SSC - Fremax | C19: 2023-06-01
A20: =_xlfn.XLOOKUP(B20,SEGMENTOS!B:B,SEGMENTOS!A:A) -> 17296 | B20: IAM - Latam - Nakata | C20: 2023-06-01
A21: =_xlfn.XLOOKUP(B21,SEGMENTOS!B:B,SEGMENTOS!A:A) -> 17297 | B21: IAM - Latam - Aray - Nakata | C21: 2023-06-01
A22: =_xlfn.XLOOKUP(B22,SEGMENTOS!B:B,SEGMENTOS!A:A) -> 17298 | B22: IAM - Latam - Fapan - Nakata | C22: 2023-06-01
A23: =_xlfn.XLOOKUP(B23,SEGMENTOS!B:B,SEGMENTOS!A:A) -> 17299 | B23: IAM - Latam - SSC - Nakata | C23: 2023-06-01
A24: =_xlfn.XLOOKUP(B24,SEGMENTOS!B:B,SEGMENTOS!A:A) -> 17300 | B24: IAM - Latam - Aray - Agustin Barrutia / Leonardo Sanguinetti | C24: 2023-06-01
A25: =_xlfn.XLOOKUP(B25,SEGMENTOS!B:B,SEGMENTOS!A:A) -> 17301 | B25: IAM - Latam - Aray - Alejandro Saud | C25: 2023-06-01
A26: =_xlfn.XLOOKUP(B26,SEGMENTOS!B:B,SEGMENTOS!A:A) -> 17302 | B26: IAM - Latam - Aray - Esteban Gammacurta | C26: 2023-06-01
A27: =_xlfn.XLOOKUP(B27,SEGMENTOS!B:B,SEGMENTOS!A:A) -> 17303 | B27: IAM - Latam - Aray - Franco Stagno | C27: 2023-06-01
A28: =_xlfn.XLOOKUP(B28,SEGMENTOS!B:B,SEGMENTOS!A:A) -> 17304 | B28: IAM - Latam - Aray - Gaston Tula | C28: 2023-06-01
A29: =_xlfn.XLOOKUP(B29,SEGMENTOS!B:B,SEGMENTOS!A:A) -> 17305 | B29: IAM - Latam - Aray - Mario Figola | C29: 2023-06-01
A30: =_xlfn.XLOOKUP(B30,SEGMENTOS!B:B,SEGMENTOS!A:A) -> 17306 | B30: IAM - Latam - Aray - Martin Piparuolo | C30: 2023-06-01
A31: =_xlfn.XLOOKUP(B31,SEGMENTOS!B:B,SEGMENTOS!A:A) -> 17307 | B31: IAM - Latam - Dirección | C31: 2023-06-01
A32: =_xlfn.XLOOKUP(B32,SEGMENTOS!B:B,SEGMENTOS!A:A) -> 17308 | B32: IAM - Latam - Gestores de Marketing | C32: 2023-06-01
A33: =_xlfn.XLOOKUP(B33,SEGMENTOS!B:B,SEGMENTOS!A:A) -> 17309 | B33: IAM - Latam - Gestores de Vendas | C33: 2023-06-01
A34: =_xlfn.XLOOKUP(B34,SEGMENTOS!B:B,SEGMENTOS!A:A) -> 17310 | B34: IAM - Latam - Gestores de Compras | C34: 2023-06-01
A35: =_xlfn.XLOOKUP(B35,SEGMENTOS!B:B,SEGMENTOS!A:A) -> 17311 | B35: IAM - Latam - Gestores de Logística | C35: 2023-06-01
A36: =_xlfn.XLOOKUP(B36,SEGMENTOS!B:B,SEGMENTOS!A:A) -> 17312 | B36: IAM - Latam - Gestores de Negócios | C36: 2023-06-01
A37: =_xlfn.XLOOKUP(B37,SEGMENTOS!B:B,SEGMENTOS!A:A) -> 17313 | B37: IAM - Latam - Aray - Dirección | C37: 2023-06-01
A38: =_xlfn.XLOOKUP(B38,SEGMENTOS!B:B,SEGMENTOS!A:A) -> 17314 | B38: IAM - Latam - Aray - Gestores de Compras | C38: 2023-06-01
A39: =_xlfn.XLOOKUP(B39,SEGMENTOS!B:B,SEGMENTOS!A:A) -> 17315 | B39: IAM - Latam - Aray - Gestores de Negócios | C39: 2023-06-01
A40: =_xlfn.XLOOKUP(B40,SEGMENTOS!B:B,SEGMENTOS!A:A) -> 17316 | B40: IAM - Latam - Fapan — Dirección | C40: 2023-06-01
A41: =_xlfn.XLOOKUP(B41,SEGMENTOS!B:B,SEGMENTOS!A:A) -> 17317 | B41: IAM - Latam - Fapan - Gestores de Compras | C41: 2023-06-01
A42: =_xlfn.XLOOKUP(B42,SEGMENTOS!B:B,SEGMENTOS!A:A) -> 17318 | B42: IAM - Latam - Fapan - Gestores de Negócios | C42: 2023-06-01
A43: =_xlfn.XLOOKUP(B43,SEGMENTOS!B:B,SEGMENTOS!A:A) -> 17319 | B43: IAM - Latam - SSC - Dirección | C43: 2023-06-01
A44: =_xlfn.XLOOKUP(B44,SEGMENTOS!B:B,SEGMENTOS!A:A) -> 17320 | B44: IAM - Latam - SSC - Gestores de Compras | C44: 2023-06-01
A45: =_xlfn.XLOOKUP(B45,SEGMENTOS!B:B,SEGMENTOS!A:A) -> 17321 | B45: IAM - Latam - SSC - Gestores de Negócios | C45: 2023-06-01
A46: =_xlfn.XLOOKUP(B46,SEGMENTOS!B:B,SEGMENTOS!A:A) -> 17322 | B46: IAM - Latam - Aray - Clientes A | C46: 2023-06-01
A47: =_xlfn.XLOOKUP(B47,SEGMENTOS!B:B,SEGMENTOS!A:A) -> 17323 | B47: IAM - Latam - Aray - Clientes B | C47: 2023-06-01
A48: =_xlfn.XLOOKUP(B48,SEGMENTOS!B:B,SEGMENTOS!A:A) -> 17324 | B48: IAM - Latam - Aray - Clientes C | C48: 2023-06-01
A49: =_xlfn.XLOOKUP(B49,SEGMENTOS!B:B,SEGMENTOS!A:A) -> 17325 | B49: IAM - Latam - Linea Liviana | C49: 2023-06-01
A50: =_xlfn.XLOOKUP(B50,SEGMENTOS!B:B,SEGMENTOS!A:A) -> 17326 | B50: IAM - Latam - Linea Pesada | C50: 2023-06-01
A51: =_xlfn.XLOOKUP(B51,SEGMENTOS!B:B,SEGMENTOS!A:A) -> 17327 | B51: IAM - Latam - Ambas líneas: Liviana y Pesada | C51: 2023-06-01
A52: =_xlfn.XLOOKUP(B52,SEGMENTOS!B:B,SEGMENTOS!A:A) -> 17328 | B52: IAM - Latam - Aray - Linea Liviana | C52: 2023-06-01
A53: =_xlfn.XLOOKUP(B53,SEGMENTOS!B:B,SEGMENTOS!A:A) -> 17329 | B53: IAM - Latam - Aray - Linea Pesada | C53: 2023-06-01
A54: =_xlfn.XLOOKUP(B54,SEGMENTOS!B:B,SEGMENTOS!A:A) -> 17330 | B54: IAM - Latam - Aray - Ambas líneas: Liviana y Pesada | C54: 2023-06-01
A55: =_xlfn.XLOOKUP(B55,SEGMENTOS!B:B,SEGMENTOS!A:A) -> 17331 | B55: IAM - Latam - Fapan - Linea Liviana | C55: 2023-06-01
A56: =_xlfn.XLOOKUP(B56,SEGMENTOS!B:B,SEGMENTOS!A:A) -> 17332 | B56: IAM - Latam - Fapan - Linea Pesada | C56: 2023-06-01
A57: =_xlfn.XLOOKUP(B57,SEGMENTOS!B:B,SEGMENTOS!A:A) -> 17333 | B57: IAM - Latam - Fapan - Ambas líneas: Liviana y Pesada | C57: 2023-06-01
A58: =_xlfn.XLOOKUP(B58,SEGMENTOS!B:B,SEGMENTOS!A:A) -> 17334 | B58: IAM - Latam - SSC - Linea Liviana | C58: 2023-06-01
A59: =_xlfn.XLOOKUP(B59,SEGMENTOS!B:B,SEGMENTOS!A:A) -> 17335 | B59: IAM - Latam - SSC - Linea Pesada | C59: 2023-06-01
A60: =_xlfn.XLOOKUP(B60,SEGMENTOS!B:B,SEGMENTOS!A:A) -> 17336 | B60: IAM - Latam - SSC - Ambas líneas: Liviana y Pesada | C60: 2023-06-01

Sheet APL_2_INSAT
A1: ID_Segmento | B1: Segmento | C1: Data | D1: 1 | E1: 2 | F1: 3 | G1: 4 | H1: 5 | I1: 6 | J1: 7 | K1: 8 | L1: 9 | M1: 10 | N1: 11 | O1: 12 | P1: 13 | Q1: 14 | R1: 15 | S1: 16 | T1: 17 | U1: 18 | V1: 19 | W1: 20 | X1: 21 | Y1: 22 | Z1: 23 | AA1: 24 | AB1: 25 | AC1: 26 | AD1: 27 | AE1: 28 | AF1: 29 | AG1: IIQP | AH1: II$P
A2: =_xlfn.XLOOKUP(B2,SEGMENTOS!B:B,SEGMENTOS!A:A) -> 2900 | B2: Mercado | C2: 2025-06-02 | AG2: 0.1260909653 | AH2: 0.2131714813
A3: 17337 | B3: IAM - Brasil + Latam | C3: 2025-06-02 | D3: 0.08387698043 | E3: 0.065913371 | F3: 0.07566765579 | G3: 0.02412868633 | H3: 0.1228571429 | I3: 0.07823613087 | J3: 0.01686746988 | K3: 0.03684210526 | L3: 0.04634146341 | M3: 0.03034300792 | N3: 0.009247027741 | O3: 0.05220883534 | P3: 0.03370786517 | Q3: 0.07241910632 | R3: 0.06296851574 | S3: 0.1625239006 | T3: 0.0946930281 | U3: 0.2039542144 | V3: 0.05070118662 | W3: 0.05888538381 | X3: 0.008241758242 | Y3: 0.01385041551 | Z3: 0.003714020427 | AA3: 0.003686635945 | AB3: 0.01123595506 | AC3: 0.006416131989 | AD3: 0.02354145343 | AE3: 0.02450980392 | AF3: 0.03400309119 | AG3: 0.05796981881 | AH3: 0.02675260027
A4: 17338 | B4: IAM - Brasil | C4: 2025-06-02 | D4: 0.1063218391 | E4: 0.08272859216 | F4: 0.05211726384 | G4: 0 | H4: 0.124260355 | I4: 0.04747774481 | J4: 0.01666666667 | K4: 0.05389221557 | L4: 0.06593406593 | M4: 0.02321083172 | N4: 0.005813953488 | O4: 0.04093567251 | P4: 0.03196347032 | Q4: 0.07975460123 | R4: 0.07509881423 | S4: 0.1946666667 | T4: 0.06557377049 | U4: 0.1905465288 | V4: 0.02987421384 | W4: 0.05614567527 | X4: 0 | Y4: 0.007352941176 | Z4: 0.001420454545 | AA4: 0.001406469761 | AB4: 0.01151079137 | AC4: 0.005610098177 | AD4: 0.01618122977 | AE4: 0.02283105023 | AF4: 0.05016722408 | AG4: 0.05607885144 | AH4: 0.0278939357
A5: 17281 | B5: IAM - Latam | C5: 2025-06-02 | D5: 0.0424403183 | E5: 0.03485254692 | F5: 0.09536784741 | G5: 0.03947368421 | H5: 0.1215469613 | I5: 0.106557377 | J5: 0.0170212766 | K5: 0.0234741784 | L5: 0.03070175439 | M5: 0.04564315353 | N5: 0.01659751037 | O5: 0.07692307692 | P5: 0.03649635036 | Q5: 0.05 | R5: 0.0248447205 | S5: 0.08108108108 | T5: 0.1620689655 | U5: 0.235915493 | V5: 0.09621993127 | W5: 0.06506849315 | X5: 0.01315789474 | Y5: 0.01777777778 | Z5: 0.008042895442 | AA5: 0.008021390374 | AB5: 0.01072386059 | AC5: 0.007936507937 | AD5: 0.03621169916 | AE5: 0.02754820937 | AF5: 0.02011494253 | AG5: 0.05828250377 | AH5: 0.0286486202
A6: 17282 | B6: IAM - Aray | C6: 2025-06-02 | D6: 0.04074074074 | E6: 0.04150943396 | F6: 0.1235955056 | G6: 0.0253164557 | H6: 0.1161048689 | I6: 0.0962962963 | J6: 0.0243902439 | K6: 0.03067484663 | L6: 0.03703703704 | M6: 0.06289308176 | N6: 0.025 | O6: 0.101910828 | P6: 0.04385964912 | Q6: 0.06299212598 | R6: 0.032 | S6: 0.09821428571 | T6: 0.1782608696 | U6: 0.2825112108 | V6: 0.09130434783 | W6: 0.05676855895 | X6: 0.01910828025 | Y6: 0.02564102564 | Z6: 0.01140684411 | AA6: 0.01136363636 | AB6: 0.01520912548 | AC6: 0.01123595506 | AD6: 0.03488372093 | AE6: 0.03076923077 | AF6: 0.02723735409 | AG6: 0.06643860449 | AH6: 0.03129139114
A7: 17283 | B7: IAM - Fapan | C7: 2025-06-02 | D7: 0.07407407407 | E7: 0.03703703704 | F7: 0.02 | G7: 0.1666666667 | H7: 0.24 | I7: 0.2549019608 | J7: 0 | K7: 0 | L7: 0.03333333333 | M7: 0.02777777778 | N7: 0 | O7: 0.05882352941 | P7: 0 | Q7: 0 | R7: 0 | S7: 0.05 | T7: 0.1538461538 | U7: 0.1 | V7: 0.15 | W7: 0.09756097561 | X7: 0 | Y7: 0 | Z7: 0 | AA7: 0 | AB7: 0 | AC7: 0 | AD7: 0.02 | AE7: 0.03921568627 | AF7: 0 | AG7: 0.05642957596 | AH7: 0.02156203658
A8: 17284 | B8: IAM - SSC | C8: 2025-06-02 | D8: 0.01886792453 | E8: 0 | F8: 0.02 | G8: 0 | H8: 0.02222222222 | I8: 0 | J8: 0 | K8: 0 | L8: 0 | M8: 0 | N8: 0 | O8: 0 | P8: 0 | Q8: 0 | R8: 0 | S8: 0 | T8: 0 | U8: 0 | V8: 0.04761904762 | W8: 0.09090909091 | X8: 0 | Y8: 0 | Z8: 0 | AA8: 0 | AB8: 0 | AC8: 0 | AD8: 0.05882352941 | AE8: 0 | AF8: 0 | AG8: 0.008128311162 | AH8: 0.02125556105
A9: =_xlfn.XLOOKUP(B9,SEGMENTOS!B:B,SEGMENTOS!A:A) -> 17285 | B9: IAM - Latam - Controil | C9: 2025-06-02 | D9: 0.08536585366 | E9: 0.0487804878 | F9: 0.1341463415 | G9: 0.04545454545 | H9: 0.1625 | I9: 0.1111111111 | J9: 0.02127659574 | K9: 0.0487804878 | L9: 0.02222222222 | M9: 0.09090909091 | N9: 0.02222222222 | O9: 0.1627906977 | P9: 0.03846153846 | Q9: 0.09375 | R9: 0.03125 | S9: 0.06896551724 | T9: 0.1911764706 | U9: 0.2769230769 | V9: 0.1029411765 | W9: 0.1014492754 | X9: 0.02325581395 | Y9: 0.02325581395 | Z9: 0.01234567901 | AA9: 0.01219512195 | AB9: 0.02469135802 | AC9: 0.01219512195 | AD9: 0.03797468354 | AE9: 0.03846153846 | AF9: 0.02631578947 | AG9: 0.07846066952 | AH9: 0.03496849978
A10: =_xlfn.XLOOKUP(B10,SEGMENTOS!B:B,SEGMENTOS!A:A) -> 17286 | B10: IAM - Latam - Aray - Controil | C10: 2025-06-02 | D10: 0.09836065574 | E10: 0.06666666667 | F10: 0.1803278689 | G10: 0.03333333333 | H10: 0.1694915254 | I10: 0.06666666667 | J10: 0.03125 | K10: 0.0625 | L10: 0.03225806452 | M10: 0.1379310345 | N10: 0.03333333333 | O10: 0.25 | P10: 0.04545454545 | Q10: 0.125 | R10: 0.04166666667 | S10: 0.09523809524 | T10: 0.2264150943 | U10: 0.3529411765 | V10: 0.09433962264 | W10: 0.09433962264 | X10: 0.03448275862 | Y10: 0.03448275862 | Z10: 0.01694915254 | AA10: 0.01666666667 | AB10: 0.03389830508 | AC10: 0.01666666667 | AD10: 0.05172413793 | AE10: 0.05263157895 | AF10: 0.0350877193 | AG10: 0.09598701593 | AH10: 0.04751228985
A11: =_xlfn.XLOOKUP(B11,SEGMENTOS!B:B,SEGMENTOS!A:A) -> 17287 | B11: IAM - Latam - Fapan - Controil | C11: 2025-06-02 | D11: 0 | E11: 0 | F11: 0 | G11: 0.1666666667 | H11: 0.3 | I11: 0.5 | J11: 0 | K11: 0 | L11: 0 | M11: 0 | N11: 0 | O11: 0 | P11: 0 | Q11: 0 | R11: 0 | S11: 0 | T11: 0.1111111111 | U11: 0 | V11: 0.1111111111 | W11: 0 | X11: 0 | Y11: 0 | Z11: 0 | AA11: 0 | AB11: 0 | AC11: 0 | AD11: 0 | AE11: 0 | AF11: 0 | AG11: 0.04402924955 | AH11: 0
A12: =_xlfn.XLOOKUP(B12,SEGMENTOS!B:B,SEGMENTOS!A:A) -> 17288 | B12: IAM - Latam - SSC - Controil | C12: 2025-06-02 | D12: 0.09090909091 | E12: 0 | F12: 0 | G12: 0 | H12: 0 | I12: 0 | J12: 0 | K12: 0 | L12: 0 | M12: 0 | N12: 0 | O12: 0 | P12: 0 | Q12: 0 | R12: 0 | S12: 0 | T12: 0 | U12: 0 | V12: 0.1666666667 | W12: 0.2857142857 | X12: 0 | Y12: 0 | Z12: 0 | AA12: 0 | AB12: 0 | AC12: 0 | AD12: 0 | AE12: 0 | AF12: 0 | AG12: 0.02163898567 | AH12: 0
A13: =_xlfn.XLOOKUP(B13,SEGMENTOS!B:B,SEGMENTOS!A:A) -> 17289 | B13: IAM - Latam - Fras-le | C13: 2025-06-02 | D13: 0.03007518797 | E13: 0.03076923077 | F13: 0.078125 | G13: 0.03614457831 | H13: 0.112 | I13: 0.0625 | J13: 0.0119047619 | K13: 0.02564102564 | L13: 0.03614457831 | M13: 0.02222222222 | N13: 0.01123595506 | O13: 0.08045977011 | P13: 0.03571428571 | Q13: 0.05 | R13: 0.01587301587 | S13: 0.06779661017 | T13: 0.1584158416 | U13: 0.22 | V13: 0.07920792079 | W13: 0.07843137255 | X13: 0.01204819277 | Y13: 0.01204819277 | Z13: 0.007692307692 | AA13: 0.007633587786 | AB13: 0.007633587786 | AC13: 0.007575757576 | AD13: 0.02380952381 | AE13: 0.0234375 | AF13: 0.02459016393 | AG13: 0.0512945177 | AH13: 0.02388673195
A14: =_xlfn.XLOOKUP(B14,SEGMENTOS!B:B,SEGMENTOS!A:A) -> 17290 | B14: IAM - Latam - Aray - Fras-le | C14: 2025-06-02 | D14: 0.02272727273 | E14: 0.03529411765 | F14: 0.1162790698 | G14: 0.01785714286 | H14: 0.09302325581 | I14: 0.05681818182 | J14: 0.01785714286 | K14: 0.0350877193 | L14: 0.03571428571 | M14: 0.01785714286 | N14: 0.01785714286 | O14: 0.08928571429 | P14: 0.04347826087 | Q14: 0.0625 | R14: 0.02040816327 | S14: 0.08888888889 | T14: 0.1710526316 | U14: 0.2567567568 | V14: 0.06578947368 | W14: 0.06578947368 | X14: 0.01818181818 | Y14: 0.01818181818 | Z14: 0.01204819277 | AA14: 0.01176470588 | AB14: 0.0119047619 | AC14: 0.01176470588 | AD14: 0.03614457831 | AE14: 0.03529411765 | AF14: 0.03571428571 | AG14: 0.0561917663 | AH14: 0.03571617875
A15: =_xlfn.XLOOKUP(B15,SEGMENTOS!B:B,SEGMENTOS!A:A) -> 17291 | B15: IAM - Latam - Fapan - Fras-le | C15: 2025-06-02 | D15: 0.07142857143 | E15: 0.03571428571 | F15: 0 | G15: 0.1428571429 | H15: 0.25 | I15: 0.12 | J15: 0 | K15: 0 | L15: 0.06666666667 | M15: 0.05263157895 | N15: 0 | O15: 0.1111111111 | P15: 0 | Q15: 0 | R15: 0 | S15: 0 | T15: 0.1578947368 | U15: 0.1578947368 | V15: 0.1578947368 | W15: 0.15 | X15: 0 | Y15: 0 | Z15: 0 | AA15: 0 | AB15: 0 | AC15: 0 | AD15: 0 | AE15: 0 | AF15: 0 | AG15: 0.05726789086 | AH15: 0
A16: =_xlfn.XLOOKUP(B16,SEGMENTOS!B:B,SEGMENTOS!A:A) -> 17292 | B16: IAM - Latam - SSC - Fras-le | C16: 2025-06-02 | D16: 0 | E16: 0 | F16: 0 | G16: 0 | H16: 0 | I16: 0 | J16: 0 | K16: 0 | L16: 0 | M16: 0 | N16: 0 | O16: 0 | P16: 0 | Q16: 0 | R16: 0 | S16: 0 | T16: 0 | U16: 0 | V16: 0 | W16: 0 | X16: 0 | Y16: 0 | Z16: 0 | AA16: 0 | AB16: 0 | AC16: 0 | AD16: 0 | AE16: 0 | AF16: 0 | AG16: 0 | AH16: 0
A17: =_xlfn.XLOOKUP(B17,SEGMENTOS!B:B,SEGMENTOS!A:A) -> 17293 | B17: IAM - Latam - Fremax | C17: 2025-06-02 | D17: 0.01428571429 | E17: 0.02857142857 | F17: 0.1176470588 | G17: 0.02564102564 | H17: 0.07352941176 | I17: 0.05970149254 | J17: 0.025 | K17: 0.02564102564 | L17: 0.02631578947 | M17: 0.04761904762 | N17: 0.02380952381 | O17: 0.05 | P17: 0.03703703704 | Q17: 0.03333333333 | R17: 0.03448275862 | S17: 0.07142857143 | T17: 0.1403508772 | U17: 0.2142857143 | V17: 0.06896551724 | W17: 0.01754385965 | X17: 0.0243902439 | Y17: 0.025 | Z17: 0.01408450704 | AA17: 0.01449275362 | AB17: 0.01428571429 | AC17: 0.01388888889 | AD17: 0.04285714286 | AE17: 0.04285714286 | AF17: 0.03125 | AG17: 0.04930798762 | AH17: 0.03968712485
A18: =_xlfn.XLOOKUP(B18,SEGMENTOS!B:B,SEGMENTOS!A:A) -> 17294 | B18: IAM - Latam - Aray - Fremax | C18: 2025-06-02 | D18: 0.01724137931 | E18: 0.03448275862 | F18: 0.1034482759 | G18: 0.03225806452 | H18: 0.06779661017 | I18: 0.06896551724 | J18: 0.0303030303 | K18: 0.0303030303 | L18: 0.03125 | M18: 0.0625 | N18: 0.03125 | O18: 0.06451612903 | P18: 0.04166666667 | Q18: 0.03846153846 | R18: 0.04 | S18: 0.08333333333 | T18: 0.1538461538 | U18: 0.24 | V18: 0.07692307692 | W18: 0.01960784314 | X18: 0.0303030303 | Y18: 0.0303030303 | Z18: 0.01694915254 | AA18: 0.01754385965 | AB18: 0.01724137931 | AC18: 0.01666666667 | AD18: 0.03448275862 | AE18: 0.01724137931 | AF18: 0.03571428571 | AG18: 0.05524372786 | AH18: 0.02851657905
A19: =_xlfn.XLOOKUP(B19,SEGMENTOS!B:B,SEGMENTOS!A:A) -> 17295 | B19: IAM - Latam - SSC - Fremax | C19: 2025-06-02 | D19: 0 | E19: 0 | F19: 0.125 | G19: 0 | H19: 0.1428571429 | I19: 0 | J19: 0 | K19: 0 | L19: 0 | M19: 0 | N19: 0 | O19: 0 | P19: 0 | Q19: 0 | R19: 0 | S19: 0 | T19: 0 | U19: 0 | V19: 0 | W19: 0 | X19: 0 | Y19: 0 | Z19: 0 | AA19: 0 | AB19: 0 | AC19: 0 | AD19: 0.1111111111 | AE19: 0 | AF19: 0 | AG19: 0.01183172656 | AH19: 0.04014939309
A20: =_xlfn.XLOOKUP(B20,SEGMENTOS!B:B,SEGMENTOS!A:A) -> 17296 | B20: IAM - Latam - Nakata | C20: 2025-06-02 | D20: 0.04347826087 | E20: 0.03296703297 | F20: 0.06741573034 | G20: 0.04838709677 | H20: 0.1348314607 | I20: 0.2 | J20: 0.015625 | K20: 0 | L20: 0.03225806452 | M20: 0.04615384615 | N20: 0.01538461538 | O20: 0.03125 | P20: 0.03571428571 | Q20: 0.02631578947 | R20: 0.02702702703 | S20: 0.125 | T20: 0.15625 | U20: 0.2380952381 | V20: 0.140625 | W20: 0.046875 | X20: 0 | Y20: 0.01694915254 | Z20: 0 | AA20: 0 | AB20: 0 | AC20: 0 | AD20: 0.04761904762 | AE20: 0.01149425287 | AF20: 0 | AG20: 0.05883785932 | AH20: 0.02140856343
A21: =_xlfn.XLOOKUP(B21,SEGMENTOS!B:B,SEGMENTOS!A:A) -> 17297 | B21: IAM - Latam - Aray - Nakata | C21: 2025-06-02 | D21: 0.03174603175 | E21: 0.03225806452 | F21: 0.09677419355 | G21: 0.0243902439 | H21: 0.1428571429 | I21: 0.203125 | J21: 0.02325581395 | K21: 0 | L21: 0.04651162791 | M21: 0.07142857143 | N21: 0.02380952381 | O21: 0.04761904762 | P21: 0.04545454545 | Q21: 0.03448275862 | R21: 0.03703703704 | S21: 0.1363636364 | T21: 0.1632653061 | U21: 0.2916666667 | V21: 0.1428571429 | W21: 0.04081632653 | X21: 0 | Y21: 0.02564102564 | Z21: 0 | AA21: 0 | AB21: 0 | AC21: 0 | AD21: 0.01694915254 | AE21: 0.01666666667 | AF21: 0 | AG21: 0.06653647193 | AH21: 0.01221692067
A22: =_xlfn.XLOOKUP(B22,SEGMENTOS!B:B,SEGMENTOS!A:A) -> 17298 | B22: IAM - Latam - Fapan - Nakata | C22: 2025-06-02 | D22: 0.1538461538 | E22: 0.07692307692 | F22: 0 | G22: 0.25 | H22: 0.2142857143 | I22: 0.3571428571 | J22: 0 | K22: 0 | L22: 0 | M22: 0 | N22: 0 | O22: 0 | P22: 0 | Q22: 0 | R22: 0 | S22: 0.2 | T22: 0.2 | U22: 0.1 | V22: 0.2 | W22: 0.1 | X22: 0 | Y22: 0 | Z22: 0 | AA22: 0 | AB22: 0 | AC22: 0 | AD22: 0.09090909091 | AE22: 0 | AF22: 0 | AG22: 0.07136575081 | AH22: 0.03284950344
A23: =_xlfn.XLOOKUP(B23,SEGMENTOS!B:B,SEGMENTOS!A:A) -> 17299 | B23: IAM - Latam - SSC - Nakata | C23: 2025-06-02 | D23: 0 | E23: 0 | F23: 0 | G23: 0 | H23: 0 | I23: 0 | J23: 0 | K23: 0 | L23: 0 | M23: 0 | N23: 0 | O23: 0 | P23: 0 | Q23: 0 | R23: 0 | S23: 0 | T23: 0 | U23: 0 | V23: 0 | W23: 0 | X23: 0 | Y23: 0 | Z23: 0 | AA23: 0 | AB23: 0 | AC23: 0 | AD23: 0.1428571429 | AE23: 0 | AF23: 0 | AG23: 0 | AH23: 0.05162064826
A24: =_xlfn.XLOOKUP(B24,SEGMENTOS!B:B,SEGMENTOS!A:A) -> 17300 | B24: IAM - Latam - Aray - Agustin Barrutia / Leonardo Sanguinetti | C24: 2025-06-02 | D24: 0 | E24: 0 | F24: 0 | G24: 0 | H24: 0 | I24: 0 | J24: 0 | K24: 0 | L24: 0 | M24: 0 | N24: 0 | O24: 0 | P24: 0 | Q24: 0 | R24: 0 | S24: 0 | T24: 0.5 | U24: 0.375 | V24: 0 | W24: 0 | X24: 0 | Y24: 0 | Z24: 0 | AA24: 0 | AB24: 0 | AC24: 0 | AD24: 0 | AE24: 0 | AF24: 0 | AG24: 0.0324874512 | AH24: 0
A25: =_xlfn.XLOOKUP(B25,SEGMENTOS!B:B,SEGMENTOS!A:A) -> 17301 | B25: IAM - Latam - Aray - Alejandro Saud | C25: 2025-06-02 | D25: 0.02380952381 | E25: 0 | F25: 0.2142857143 | G25: 0 | H25: 0.1428571429 | I25: 0.2857142857 | J25: 0.03846153846 | K25: 0 | L25: 0.07692307692 | M25: 0.04 | N25: 0 | O25: 0 | P25: 0.05555555556 | Q25: 0.05 | R25: 0 | S25: 0.1052631579 | T25: 0.3428571429 | U25: 0.2 | V25: 0.1764705882 | W25: 0.1142857143 | X25: 0 | Y25: 0 | Z25: 0 | AA25: 0 | AB25: 0 | AC25: 0 | AD25: 0.05 | AE25: 0.05 | AF25: 0 | AG25: 0.07266673551 | AH25: 0.03634453782
A26: =_xlfn.XLOOKUP(B26,SEGMENTOS!B:B,SEGMENTOS!A:A) -> 17302 | B26: IAM - Latam - Aray - Esteban Gammacurta | C26: 2025-06-02 | D26: 0 | E26: 0 | F26: 0 | G26: 0 | H26: 0 | I26: 0.25 | J26: 0 | K26: 0 | L26: 0 | M26: 0 | N26: 0 | O26: 0.4285714286 | P26: 0 | Q26: 0 | R26: 0 | S26: 0 | T26: 0 | U26: 0.1428571429 | V26: 0.1428571429 | W26: 0.1428571429 | X26: 0 | Y26: 0 | Z26: 0 | AA26: 0 | AB26: 0 | AC26: 0 | AD26: 0 | AE26: 0 | AF26: 0 | AG26: 0.04443869014 | AH26: 0
A27: =_xlfn.XLOOKUP(B27,SEGMENTOS!B:B,SEGMENTOS!A:A) -> 17303 | B27: IAM - Latam - Aray - Franco Stagno | C27: 2025-06-02 | D27: 0.1290322581 | E27: 0.1290322581 | F27: 0.2258064516 | G27: 0.2105263158 | H27: 0.1935483871 | I27: 0.1612903226 | J27: 0.1578947368 | K27: 0.1764705882 | L27: 0.1578947368 | M27: 0.1578947368 | N27: 0.1578947368 | O27: 0.1578947368 | P27: 0.2666666667 | Q27: 0.1764705882 | R27: 0.2352941176 | S27: 0.3333333333 | T27: 0.2333333333 | U27: 0.4333333333 | V27: 0.3 | W27: 0.1 | X27: 0.15 | Y27: 0.2105263158 | Z27: 0.09375 | AA27: 0.09375 | AB27: 0.09375 | AC27: 0.09375 | AD27: 0.1290322581 | AE27: 0.09375 | AF27: 0.15625 | AG27: 0.1872711267 | AH27: 0.123568379
A28: =_xlfn.XLOOKUP(B28,SEGMENTOS!B:B,SEGMENTOS!A:A) -> 17304 | B28: IAM - Latam - Aray - Gaston Tula | C28: 2025-06-02 | D28: 0 | E28: 0 | F28: 0.03921568627 | G28: 0 | H28: 0.05555555556 | I28: 0.03703703704 | J28: 0 | K28: 0 | L28: 0.02702702703 | M28: 0.07894736842 | N28: 0.02631578947 | O28: 0.05263157895 | P28: 0 | Q28: 0 | R28: 0 | S28: 0.03846153846 | T28: 0.02222222222 | U28: 0.04444444444 | V28: 0 | W28: 0 | X28: 0 | Y28: 0 | Z28: 0 | AA28: 0 | AB28: 0 | AC28: 0 | AD28: 0 | AE28: 0.03846153846 | AF28: 0 | AG28: 0.01759306315 | AH28: 0.01405946994
A29: =_xlfn.XLOOKUP(B29,SEGMENTOS!B:B,SEGMENTOS!A:A) -> 17305 | B29: IAM - Latam - Aray - Mario Figola | C29: 2025-06-02 | D29: 0 | E29: 0 | F29: 0 | G29: 0 | H29: 0.08108108108 | I29: 0.07894736842 | J29: 0 | K29: 0 | L29: 0 | M29: 0.1111111111 | N29: 0 | O29: 0.2222222222 | P29: 0 | Q29: 0 | R29: 0 | S29: 0 | T29: 0.1818181818 | U29: 0.3225806452 | V29: 0 | W29: 0 | X29: 0 | Y29: 0 | Z29: 0 | AA29: 0 | AB29: 0 | AC29: 0 | AD29: 0 | AE29: 0.02631578947 | AF29: 0 | AG29: 0.04042105993 | AH29: 0.009619637329
A30: =_xlfn.XLOOKUP(B30,SEGMENTOS!B:B,SEGMENTOS!A:A) -> 17306 | B30: IAM - Latam - Aray - Martin Piparuolo | C30: 2025-06-02 | D30: 0.07142857143 | E30: 0.08641975309 | F30: 0.1785714286 | G30: 0 | H30: 0.1585365854 | I30: 0.02380952381 | J30: 0 | K30: 0.03921568627 | L30: 0 | M30: 0.02173913043 | N30: 0 | O30: 0.08695652174 | P30: 0 | Q30: 0.1 | R30: 0 | S30: 0.08571428571 | T30: 0.1527777778 | U30: 0.4029850746 | V30: 0.06944444444 | W30: 0.07042253521 | X30: 0 | Y30: 0 | Z30: 0 | AA30: 0 | AB30: 0.01204819277 | AC30: 0 | AD30: 0.03947368421 | AE30: 0 | AF30: 0.02666666667 | AG30: 0.06447214696 | AH30: 0.02154651334
A31: =_xlfn.XLOOKUP(B31,SEGMENTOS!B:B,SEGMENTOS!A:A) -> 17307 | B31: IAM - Latam - Dirección | C31: 2025-06-02 | D31: 0.03053435115 | E31: 0.01526717557 | F31: 0.1603053435 | H31: 0.1472868217 | I31: 0.1374045802 | T31: 0.2846153846 | U31: 0.3076923077 | V31: 0.1085271318 | W31: 0.06976744186 | Z31: 0 | AA31: 0 | AB31: 0.007692307692 | AC31: 0 | AD31: 0.046875 | AE31: 0.0234375 | AF31: 0 | AG31: 0.09572488738 | AH31: 0.02550551471
A32: =_xlfn.XLOOKUP(B32,SEGMENTOS!B:B,SEGMENTOS!A:A) -> 17308 | B32: IAM - Latam - Gestores de Marketing | C32: 2025-06-02 | D32: 0 | E32: 0 | R32: 0 | S32: 0 | T32: 0 | U32: 0 | V32: 0 | W32: 0 | Z32: 0 | AA32: 0 | AB32: 0 | AC32: 0 | AG32: 0
A33: =_xlfn.XLOOKUP(B33,SEGMENTOS!B:B,SEGMENTOS!A:A) -> 17309 | B33: IAM - Latam - Gestores de Vendas | C33: 2025-06-02 | D33: 0 | E33: 0 | M33: 0.1428571429 | N33: 0 | O33: 0.1666666667 | P33: 0 | Q33: 0 | R33: 0 | S33: 0 | T33: 0 | U33: 0 | V33: 0 | W33: 0 | Z33: 0 | AA33: 0 | AB33: 0 | AC33: 0 | AD33: 0.1666666667 | AE33: 0.1666666667 | AG33: 0.01921973609 | AH33: 0.1666666667
A34: =_xlfn.XLOOKUP(B34,SEGMENTOS!B:B,SEGMENTOS!A:A) -> 17310 | B34: IAM - Latam - Gestores de Compras | C34: 2025-06-02 | D34: 0.05333333333 | E34: 0.05479452055 | F34: 0.02702702703 | G34: 0.07462686567 | H34: 0.1168831169 | I34: 0.09090909091 | J34: 0 | K34: 0 | L34: 0.02857142857 | M34: 0.03947368421 | N34: 0.01298701299 | O34: 0.05633802817 | X34: 0 | Y34: 0 | Z34: 0 | AA34: 0 | AB34: 0 | AC34: 0 | AD34: 0.02816901408 | AE34: 0.02739726027 | AF34: 0 | AG34: 0.03232777323 | AH34: 0.02019368427
A35: =_xlfn.XLOOKUP(B35,SEGMENTOS!B:B,SEGMENTOS!A:A) -> 17311 | B35: IAM - Latam - Gestores de Logística | C35: 2025-06-02 | H35: 0 | I35: 0 | J35: 0 | K35: 0 | L35: 0 | Z35: 0 | AA35: 0 | AB35: 0 | AC35: 0 | AG35: 0
A36: =_xlfn.XLOOKUP(B36,SEGMENTOS!B:B,SEGMENTOS!A:A) -> 17312 | B36: IAM - Latam - Gestores de Negócios | C36: 2025-06-02 | D36: 0.0490797546 | E36: 0.04375 | F36: 0.07407407407 | G36: 0.0248447205 | H36: 0.1066666667 | I36: 0.09210526316 | J36: 0.02631578947 | K36: 0.03472222222 | L36: 0.03289473684 | M36: 0.04430379747 | N36: 0.01898734177 | O36: 0.08280254777 | P36: 0.03759398496 | Q36: 0.05194805195 | R36: 0.02631578947 | S36: 0.08633093525 | T36: 0.06666666667 | U36: 0.1888111888 | V36: 0.09271523179 | W36: 0.06666666667 | X36: 0.01910828025 | Y36: 0.02564102564 | Z36: 0.01948051948 | AA36: 0.01923076923 | AB36: 0.01960784314 | AC36: 0.01910828025 | AD36: 0.02597402597 | AE36: 0.02564102564 | AF36: 0.04575163399 | AG36: 0.0545958176 | AH36: 0.03125374653
A37: =_xlfn.XLOOKUP(B37,SEGMENTOS!B:B,SEGMENTOS!A:A) -> 17313 | B37: IAM - Latam - Aray - Dirección | C37: 2025-06-02 | D37: 0.02803738318 | E37: 0.009433962264 | F37: 0.1981132075 | H37: 0.1238095238 | I37: 0.1226415094 | T37: 0.2924528302 | U37: 0.3490566038 | V37: 0.1037735849 | W37: 0.03773584906 | Z37: 0 | AA37: 0 | AB37: 0.009433962264 | AC37: 0 | AD37: 0.04807692308 | AE37: 0.02884615385 | AF37: 0 | AG37: 0.09682750272 | AH37: 0.02791693601
A38: =_xlfn.XLOOKUP(B38,SEGMENTOS!B:B,SEGMENTOS!A:A) -> 17314 | B38: IAM - Latam - Aray - Gestores de Compras | C38: 2025-06-02 | D38: 0.0303030303 | E38: 0.125 | F38: 0 | G38: 0 | H38: 0.05714285714 | I38: 0.05714285714 | J38: 0 | K38: 0 | L38: 0.0303030303 | M38: 0.08823529412 | N38: 0.02857142857 | O38: 0.09375 | X38: 0 | Y38: 0 | Z38: 0 | AA38: 0 | AB38: 0 | AC38: 0 | AD38: 0 | AE38: 0.0303030303 | AF38: 0 | AG38: 0.03057954139 | AH38: 0.01107715814
A39: =_xlfn.XLOOKUP(B39,SEGMENTOS!B:B,SEGMENTOS!A:A) -> 17315 | B39: IAM - Latam - Aray - Gestores de Negócios | C39: 2025-06-02 | D39: 0.05384615385 | E39: 0.04724409449 | F39: 0.09302325581 | G39: 0.03076923077 | H39: 0.1300813008 | I39: 0.088 | J39: 0.032 | K39: 0.04032258065 | L39: 0.04 | M39: 0.056 | N39: 0.024 | O39: 0.104 | P39: 0.04385964912 | Q39: 0.06299212598 | R39: 0.032 | S39: 0.09821428571 | T39: 0.08064516129 | U39: 0.2222222222 | V39: 0.08064516129 | W39: 0.07317073171 | X39: 0.02419354839 | Y39: 0.0325203252 | Z39: 0.02459016393 | AA39: 0.0243902439 | AB39: 0.025 | AC39: 0.02419354839 | AD39: 0.03278688525 | AE39: 0.0325203252 | AF39: 0.05833333333 | AG39: 0.06339772625 | AH39: 0.03966641635
A40: =_xlfn.XLOOKUP(B40,SEGMENTOS!B:B,SEGMENTOS!A:A) -> 17316 | B40: IAM - Latam - Fapan — Dirección | C40: 2025-06-02 | D40: 0.05263157895 | E40: 0.05263157895 | F40: 0 | H40: 0.3333333333 | I40: 0.2631578947 | T40: 0.3333333333 | U40: 0.1666666667 | V40: 0.1666666667 | W40: 0.2222222222 | Z40: 0 | AA40: 0 | AB40: 0 | AC40: 0 | AD40: 0.05555555556 | AE40: 0 | AF40: 0 | AG40: 0.1160029704 | AH40: 0.02007469655
A41: =_xlfn.XLOOKUP(B41,SEGMENTOS!B:B,SEGMENTOS!A:A) -> 17317 | B41: IAM - Latam - Fapan - Gestores de Compras | C41: 2025-06-02 | D41: 0.1333333333 | E41: 0 | F41: 0.06666666667 | G41: 0.3333333333 | H41: 0.4 | I41: 0.3333333333 | J41: 0 | K41: 0 | L41: 0.07692307692 | M41: 0 | N41: 0 | O41: 0.07142857143 | X41: 0 | Y41: 0 | Z41: 0 | AA41: 0 | AB41: 0 | AC41: 0 | AD41: 0 | AE41: 0.07692307692 | AF41: 0 | AG41: 0.07977479311 | AH41: 0.02811893988
A42: =_xlfn.XLOOKUP(B42,SEGMENTOS!B:B,SEGMENTOS!A:A) -> 17318 | B42: IAM - Latam - Fapan - Gestores de Negócios | C42: 2025-06-02 | D42: 0.0625 | E42: 0.0625 | F42: 0 | G42: 0 | H42: 0 | I42: 0.2 | J42: 0 | K42: 0 | L42: 0 | M42: 0 | N42: 0 | O42: 0 | P42: 0 | Q42: 0 | R42: 0 | S42: 0.06666666667 | T42: 0 | U42: 0.06666666667 | V42: 0.2 | W42: 0 | X42: 0 | Y42: 0 | Z42: 0 | AA42: 0 | AB42: 0 | AC42: 0 | AD42: 0 | AE42: 0 | AF42: 0 | AG42: 0.02602249489 | AH42: 0
A43: =_xlfn.XLOOKUP(B43,SEGMENTOS!B:B,SEGMENTOS!A:A) -> 17319 | B43: IAM - Latam - SSC - Dirección | C43: 2025-06-02 | D43: 0 | E43: 0 | F43: 0 | H43: 0 | I43: 0 | T43: 0 | U43: 0 | V43: 0 | W43: 0.2 | Z43: 0 | AA43: 0 | AB43: 0 | AC43: 0 | AD43: 0 | AE43: 0 | AF43: 0 | AG43: 0.01523809524 | AH43: 0
A44: =_xlfn.XLOOKUP(B44,SEGMENTOS!B:B,SEGMENTOS!A:A) -> 17320 | B44: IAM - Latam - SSC - Gestores de Compras | C44: 2025-06-02 | D44: 0.03703703704 | E44: 0 | F44: 0.03703703704 | G44: 0 | H44: 0.03703703704 | I44: 0 | J44: 0 | K44: 0 | L44: 0 | M44: 0 | N44: 0 | O44: 0 | X44: 0 | Y44: 0 | Z44: 0 | AA44: 0 | AB44: 0 | AC44: 0 | AD44: 0.07692307692 | AE44: 0 | AF44: 0 | AG44: 0.007102575827 | AH44: 0.02779573368
A45: =_xlfn.XLOOKUP(B45,SEGMENTOS!B:B,SEGMENTOS!A:A) -> 17321 | B45: IAM - Latam - SSC - Gestores de Negócios | C45: 2025-06-02 | D45: 0 | E45: 0 | F45: 0 | G45: 0 | H45: 0 | I45: 0 | J45: 0 | K45: 0 | L45: 0 | M45: 0 | N45: 0 | O45: 0 | P45: 0 | Q45: 0 | R45: 0 | S45: 0 | T45: 0 | U45: 0 | V45: 0.08333333333 | W45: 0.08333333333 | X45: 0 | Y45: 0 | Z45: 0 | AA45: 0 | AB45: 0 | AC45: 0 | AD45: 0 | AE45: 0 | AF45: 0 | AG45: 0.006553262688 | AH45: 0
A46: =_xlfn.XLOOKUP(B46,SEGMENTOS!B:B,SEGMENTOS!A:A) -> 17322 | B46: IAM - Latam - Aray - Clientes A | C46: 2025-06-02 | D46: 0.01204819277 | E46: 0.04819277108 | F46: 0 | G46: 0 | H46: 0.03448275862 | I46: 0.09195402299 | J46: 0.02173913043 | K46: 0 | L46: 0.02272727273 | M46: 0.02380952381 | N46: 0 | O46: 0.125 | P46: 0 | Q46: 0.04545454545 | R46: 0 | S46: 0 | T46: 0.1774193548 | U46: 0.2258064516 | V46: 0.06451612903 | W46: 0 | X46: 0 | Y46: 0 | Z46: 0 | AA46: 0 | AB46: 0 | AC46: 0 | AD46: 0 | AE46: 0.0243902439 | AF46: 0 | AG46: 0.03471337589 | AH46: 0.008915761427
A47: =_xlfn.XLOOKUP(B47,SEGMENTOS!B:B,SEGMENTOS!A:A) -> 17323 | B47: IAM - Latam - Aray - Clientes B | C47: 2025-06-02 | D47: 0.04716981132 | E47: 0.01960784314 | F47: 0.1826923077 | G47: 0.01666666667 | H47: 0.193877551 | I47: 0.12 | J47: 0 | K47: 0.03636363636 | L47: 0.01818181818 | M47: 0.05454545455 | N47: 0 | O47: 0.05454545455 | P47: 0.02040816327 | Q47: 0.07272727273 | R47: 0.01886792453 | S47: 0.1489361702 | T47: 0.2156862745 | U47: 0.3979591837 | V47: 0.1078431373 | W47: 0.05940594059 | X47: 0 | Y47: 0.01724137931 | Z47: 0 | AA47: 0 | AB47: 0.009433962264 | AC47: 0 | AD47: 0.05882352941 | AE47: 0 | AF47: 0.0404040404 | AG47: 0.07388940039 | AH47: 0.03229027797
A48: =_xlfn.XLOOKUP(B48,SEGMENTOS!B:B,SEGMENTOS!A:A) -> 17324 | B48: IAM - Latam - Aray - Clientes C | C48: 2025-06-02 | D48: 0.06172839506 | E48: 0.0625 | F48: 0.175 | G48: 0.05 | H48: 0.1097560976 | I48: 0.07228915663 | J48: 0.04838709677 | K48: 0.04761904762 | L48: 0.06349206349 | M48: 0.09677419355 | N48: 0.06349206349 | O48: 0.1290322581 | P48: 0.09090909091 | Q48: 0.06 | R48: 0.05882352941 | S48: 0.09090909091 | T48: 0.1212121212 | U48: 0.1587301587 | V48: 0.09090909091 | W48: 0.1044776119 | X48: 0.05263157895 | Y48: 0.05263157895 | Z48: 0.04 | AA48: 0.04054054054 | AB48: 0.04 | AC48: 0.04 | AD48: 0.04 | AE48: 0.07894736842 | AF48: 0.03947368421 | AG48: 0.07979639855 | AH48: 0.05409332154
A49: =_xlfn.XLOOKUP(B49,SEGMENTOS!B:B,SEGMENTOS!A:A) -> 17325 | B49: IAM - Latam - Linea Liviana | C49: 2025-06-02 | D49: 0.06666666667 | E49: 0.07920792079 | F49: 0.07766990291 | G49: 0.06 | H49: 0.09900990099 | I49: 0.1584158416 | J49: 0.0396039604 | K49: 0.03191489362 | L49: 0.05940594059 | M49: 0.04854368932 | N49: 0.02912621359 | O49: 0.07920792079 | P49: 0.06349206349 | Q49: 0.05128205128 | R49: 0.05194805195 | S49: 0.07246376812 | T49: 0.06493506494 | U49: 0.1527777778 | V49: 0.08974358974 | W49: 0.07692307692 | X49: 0.02884615385 | Y49: 0.0396039604 | Z49: 0.02857142857 | AA49: 0.02857142857 | AB49: 0.02884615385 | AC49: 0.02803738318 | AD49: 0.03883495146 | AE49: 0.05714285714 | AF49: 0.05154639175 | AG49: 0.06411033203 | AH49: 0.04899894899
A50: =_xlfn.XLOOKUP(B50,SEGMENTOS!B:B,SEGMENTOS!A:A) -> 17326 | B50: IAM - Latam - Linea Pesada | C50: 2025-06-02 | D50: 0.06666666667 | E50: 0.06818181818 | F50: 0.04651162791 | G50: 0 | H50: 0.07894736842 | I50: 0 | J50: 0 | K50: 0 | L50: 0 | M50: 0.0652173913 | N50: 0.02173913043 | O50: 0.06976744186 | P50: 0.03846153846 | Q50: 0 | R50: 0 | S50: 0.07692307692 | T50: 0 | U50: 0.09090909091 | V50: 0.1363636364 | W50: 0 | X50: 0 | Y50: 0 | Z50: 0 | AA50: 0 | AB50: 0 | AC50: 0 | AD50: 0 | AE50: 0 | AF50: 0 | AG50: 0.03165226441 | AH50: 0
A51: =_xlfn.XLOOKUP(B51,SEGMENTOS!B:B,SEGMENTOS!A:A) -> 17327 | B51: IAM - Latam - Ambas líneas: Liviana y Pesada | C51: 2025-06-02 | D51: 0.02643171806 | E51: 0.008771929825 | F51: 0.1131221719 | G51: 0.03409090909 | H51: 0.1390134529 | I51: 0.1013215859 | J51: 0 | K51: 0.02469135802 | L51: 0.01086956522 | M51: 0.03260869565 | N51: 0 | O51: 0.07777777778 | P51: 0 | Q51: 0.07142857143 | R51: 0 | S51: 0.09433962264 | T51: 0.21875 | U51: 0.2842105263 | V51: 0.0942408377 | W51: 0.06770833333 | X51: 0 | Y51: 0 | Z51: 0 | AA51: 0 | AB51: 0.004329004329 | AC51: 0 | AD51: 0.04109589041 | AE51: 0.01818181818 | AF51: 0.009302325581 | AG51: 0.05633283593 | AH51: 0.02403662151
A52: =_xlfn.XLOOKUP(B52,SEGMENTOS!B:B,SEGMENTOS!A:A) -> 17328 | B52: IAM - Latam - Aray - Linea Liviana | C52: 2025-06-02 | D52: 0.06024096386 | E52: 0.1012658228 | F52: 0.08536585366 | G52: 0.05 | H52: 0.1125 | I52: 0.15 | J52: 0.05 | K52: 0.03846153846 | L52: 0.07407407407 | M52: 0.0625 | N52: 0.03703703704 | O52: 0.1 | P52: 0.07407407407 | Q52: 0.06153846154 | R52: 0.06349206349 | S52: 0.09090909091 | T52: 0.07692307692 | U52: 0.1833333333 | V52: 0.09230769231 | W52: 0.078125 | X52: 0.03614457831 | Y52: 0.0487804878 | Z52: 0.03614457831 | AA52: 0.03658536585 | AB52: 0.03703703704 | AC52: 0.03571428571 | AD52: 0.0487804878 | AE52: 0.04819277108 | AF52: 0.06329113924 | AG52: 0.07361688553 | AH52: 0.05252864322
A53: =_xlfn.XLOOKUP(B53,SEGMENTOS!B:B,SEGMENTOS!A:A) -> 17329 | B53: IAM - Latam - Aray - Linea Pesada | C53: 2025-06-02 | D53: 0.08695652174 | E53: 0.08695652174 | F53: 0.08695652174 | G53: 0 | H53: 0.08333333333 | I53: 0 | J53: 0 | K53: 0 | L53: 0 | M53: 0.08333333333 | N53: 0.04166666667 | O53: 0.04545454545 | P53: 0.05882352941 | Q53: 0 | R53: 0 | S53: 0.05882352941 | T53: 0 | U53: 0.1538461538 | V53: 0 | W53: 0 | X53: 0 | Y53: 0 | Z53: 0 | AA53: 0 | AB53: 0 | AC53: 0 | AD53: 0 | AE53: 0 | AF53: 0 | AG53: 0.03319131739 | AH53: 0
A54: =_xlfn.XLOOKUP(B54,SEGMENTOS!B:B,SEGMENTOS!A:A) -> 17330 | B54: IAM - Latam - Aray - Ambas líneas: Liviana y Pesada | C54: 2025-06-02 | D54: 0.0243902439 | E54: 0.006134969325 | F54: 0.1481481481 | G54: 0 | H54: 0.1226993865 | I54: 0.0843373494 | J54: 0 | K54: 0.03278688525 | L54: 0 | M54: 0.05454545455 | N54: 0 | O54: 0.1272727273 | P54: 0 | Q54: 0.08888888889 | R54: 0 | S54: 0.125 | T54: 0.2368421053 | U54: 0.3333333333 | V54: 0.09868421053 | W54: 0.05263157895 | X54: 0 | Y54: 0 | Z54: 0 | AA54: 0 | AB54: 0.006060606061 | AC54: 0 | AD54: 0.03125 | AE54: 0.025 | AF54: 0.01242236025 | AG54: 0.06274658499 | AH54: 0.02382333368
A55: =_xlfn.XLOOKUP(B55,SEGMENTOS!B:B,SEGMENTOS!A:A) -> 17331 | B55: IAM - Latam - Fapan - Linea Liviana | C55: 2025-06-02 | D55: 0.1333333333 | E55: 0 | F55: 0.07142857143 | G55: 0.1538461538 | H55: 0.07142857143 | I55: 0.2857142857 | J55: 0 | K55: 0 | L55: 0 | M55: 0 | N55: 0 | O55: 0 | P55: 0 | Q55: 0 | R55: 0 | S55: 0 | T55: 0 | U55: 0 | V55: 0 | W55: 0 | X55: 0 | Y55: 0 | Z55: 0 | AA55: 0 | AB55: 0 | AC55: 0 | AD55: 0 | AE55: 0.1333333333 | AF55: 0 | AG55: 0.02725720088 | AH55: 0.0487394958
A56: =_xlfn.XLOOKUP(B56,SEGMENTOS!B:B,SEGMENTOS!A:A) -> 17332 | B56: IAM - Latam - Fapan - Linea Pesada | C56: 2025-06-02 | D56: 0.09090909091 | E56: 0.09090909091 | F56: 0 | G56: 0 | H56: 0.125 | I56: 0 | J56: 0 | K56: 0 | L56: 0 | M56: 0.09090909091 | N56: 0 | O56: 0.1818181818 | P56: 0 | Q56: 0 | R56: 0 | S56: 0.1666666667 | T56: 0 | U56: 0 | V56: 0.5 | W56: 0 | X56: 0 | Y56: 0 | Z56: 0 | AA56: 0 | AB56: 0 | AC56: 0 | AD56: 0 | AE56: 0 | AF56: 0 | AG56: 0.05124938735 | AH56: 0
A57: =_xlfn.XLOOKUP(B57,SEGMENTOS!B:B,SEGMENTOS!A:A) -> 17333 | B57: IAM - Latam - Fapan - Ambas líneas: Liviana y Pesada | C57: 2025-06-02 | D57: 0.03571428571 | E57: 0.03571428571 | F57: 0 | G57: 0.375 | H57: 0.3571428571 | I57: 0.3103448276 | J57: 0 | K57: 0 | L57: 0.1111111111 | M57: 0 | N57: 0 | O57: 0 | P57: 0 | Q57: 0 | R57: 0 | S57: 0 | T57: 0.2608695652 | U57: 0.1739130435 | V57: 0.1304347826 | W57: 0.1739130435 | X57: 0 | Y57: 0 | Z57: 0 | AA57: 0 | AB57: 0 | AC57: 0 | AD57: 0.03846153846 | AE57: 0 | AF57: 0 | AG57: 0.07328705744 | AH57: 0.01389786684
A58: =_xlfn.XLOOKUP(B58,SEGMENTOS!B:B,SEGMENTOS!A:A) -> 17334 | B58: IAM - Latam - SSC - Linea Liviana | C58: 2025-06-02 | D58: 0 | E58: 0 | F58: 0 | G58: 0 | H58: 0 | I58: 0 | J58: 0 | K58: 0 | L58: 0 | M58: 0 | N58: 0 | O58: 0 | P58: 0 | Q58: 0 | R58: 0 | S58: 0 | T58: 0 | U58: 0 | V58: 0.5 | W58: 0.5 | X58: 0 | Y58: 0 | Z58: 0 | AA58: 0 | AB58: 0 | AC58: 0 | AD58: 0 | AE58: 0 | AF58: 0 | AG58: 0.03931957613 | AH58: 0
A59: =_xlfn.XLOOKUP(B59,SEGMENTOS!B:B,SEGMENTOS!A:A) -> 17335 | B59: IAM - Latam - SSC - Linea Pesada | C59: 2025-06-02 | D59: 0 | E59: 0 | F59: 0 | G59: 0 | H59: 0 | I59: 0 | J59: 0 | K59: 0 | L59: 0 | M59: 0 | N59: 0 | O59: 0 | P59: 0 | Q59: 0 | R59: 0 | S59: 0 | T59: 0 | U59: 0 | V59: 0 | W59: 0 | X59: 0 | Y59: 0 | Z59: 0 | AA59: 0 | AB59: 0 | AC59: 0 | AD59: 0 | AE59: 0 | AF59: 0 | AG59: 0 | AH59: 0
A60: =_xlfn.XLOOKUP(B60,SEGMENTOS!B:B,SEGMENTOS!A:A) -> 17336 | B60: IAM - Latam - SSC - Ambas líneas: Liviana y Pesada | C60: 2025-06-02 | D60: 0.02857142857 | E60: 0 | F60: 0.03125 | G60: 0 | H60: 0.03125 | I60: 0 | J60: 0 | K60: 0 | L60: 0 | M60: 0 | N60: 0 | O60: 0 | P60: 0 | Q60: 0 | R60: 0 | S60: 0 | T60: 0 | U60: 0 | V60: 0 | W60: 0.05882352941 | X60: 0 | Y60: 0 | Z60: 0 | AA60: 0 | AB60: 0 | AC60: 0 | AD60: 0.09090909091 | AE60: 0 | AF60: 0 | AG60: 0.006312509666 | AH60: 0.03284950344

Sheet APL_1_INSAT
A1: ID_Segmento | B1: Segmento | C1: Data | D1: 1 | E1: 2 | F1: 3 | G1: 4 | H1: 5 | I1: 6 | J1: 7 | K1: 8 | L1: 9 | M1: 10 | N1: 11 | O1: 12 | P1: 13 | Q1: 14 | R1: 15 | S1: 16 | T1: 17 | U1: 18 | V1: 19 | W1: 20 | X1: 21 | Y1: 22 | Z1: 23 | AA1: 24 | AB1: 25 | AC1: 26 | AD1: 27 | AE1: 28 | AF1: 29 | AG1: IIQP | AH1: II$P
A2: =_xlfn.XLOOKUP(B2,SEGMENTOS!B:B,SEGMENTOS!A:A) -> 2900 | B2: Mercado | C2: 2023-06-01
A3: 17337 | B3: IAM - Brasil + Latam | C3: 2023-06-01
A4: 17338 | B4: IAM - Brasil | C4: 2023-06-01 | D4: 0.09308176101 | E4: 0.0796460177 | F4: 0.04404145078 | G4: 0.02840909091 | H4: 0.05882352941 | I4: 0.03009259259 | J4: 0.03524229075 | K4: 0.05479452055 | L4: 0.1017699115 | M4: 0.01393728223 | N4: 0.01039861352 | O4: 0.02094240838 | P4: 0.0153256705 | Q4: 0.0545112782 | R4: 0.04909090909 | S4: 0.1033591731 | T4: 0.03350515464 | U4: 0.1026957638 | V4: 0.01904761905 | W4: 0.04227212682 | X4: 0 | Y4: 0.01851851852 | Z4: 0.004790419162 | AA4: 0.004756242568 | AB4: 0.005952380952 | AC4: 0.002372479241 | AD4: 0.01269393512 | AE4: 0.00956284153 | AF4: 0.07277628032 | AG4: 0.04126239246 | AH4: 0.02681074682
A5: 17281 | B5: IAM - Latam | C5: 2023-06-01
A6: 17282 | B6: IAM - Aray | C6: 2023-06-01
A7: 17283 | B7: IAM - Fapan | C7: 2023-06-01
A8: 17284 | B8: IAM - SSC | C8: 2023-06-01
A9: =_xlfn.XLOOKUP(B9,SEGMENTOS!B:B,SEGMENTOS!A:A) -> 17285 | B9: IAM - Latam - Controil | C9: 2023-06-01
A10: =_xlfn.XLOOKUP(B10,SEGMENTOS!B:B,SEGMENTOS!A:A) -> 17286 | B10: IAM - Latam - Aray - Controil | C10: 2023-06-01
A11: =_xlfn.XLOOKUP(B11,SEGMENTOS!B:B,SEGMENTOS!A:A) -> 17287 | B11: IAM - Latam - Fapan - Controil | C11: 2023-06-01
A12: =_xlfn.XLOOKUP(B12,SEGMENTOS!B:B,SEGMENTOS!A:A) -> 17288 | B12: IAM - Latam - SSC - Controil | C12: 2023-06-01
A13: =_xlfn.XLOOKUP(B13,SEGMENTOS!B:B,SEGMENTOS!A:A) -> 17289 | B13: IAM - Latam - Fras-le | C13: 2023-06-01
A14: =_xlfn.XLOOKUP(B14,SEGMENTOS!B:B,SEGMENTOS!A:A) -> 17290 | B14: IAM - Latam - Aray - Fras-le | C14: 2023-06-01
A15: =_xlfn.XLOOKUP(B15,SEGMENTOS!B:B,SEGMENTOS!A:A) -> 17291 | B15: IAM - Latam - Fapan - Fras-le | C15: 2023-06-01
A16: =_xlfn.XLOOKUP(B16,SEGMENTOS!B:B,SEGMENTOS!A:A) -> 17292 | B16: IAM - Latam - SSC - Fras-le | C16: 2023-06-01
A17: =_xlfn.XLOOKUP(B17,SEGMENTOS!B:B,SEGMENTOS!A:A) -> 17293 | B17: IAM - Latam - Fremax | C17: 2023-06-01
A18: =_xlfn.XLOOKUP(B18,SEGMENTOS!B:B,SEGMENTOS!A:A) -> 17294 | B18: IAM - Latam - Aray - Fremax | C18: 2023-06-01
A19: =_xlfn.XLOOKUP(B19,SEGMENTOS!B:B,SEGMENTOS!A:A) -> 17295 | B19: IAM - Latam - SSC - Fremax | C19: 2023-06-01
A20: =_xlfn.XLOOKUP(B20,SEGMENTOS!B:B,SEGMENTOS!A:A) -> 17296 | B20: IAM - Latam - Nakata | C20: 2023-06-01
A21: =_xlfn.XLOOKUP(B21,SEGMENTOS!B:B,SEGMENTOS!A:A) -> 17297 | B21: IAM - Latam - Aray - Nakata | C21: 2023-06-01
A22: =_xlfn.XLOOKUP(B22,SEGMENTOS!B:B,SEGMENTOS!A:A) -> 17298 | B22: IAM - Latam - Fapan - Nakata | C22: 2023-06-01
A23: =_xlfn.XLOOKUP(B23,SEGMENTOS!B:B,SEGMENTOS!A:A) -> 17299 | B23: IAM - Latam - SSC - Nakata | C23: 2023-06-01
A24: =_xlfn.XLOOKUP(B24,SEGMENTOS!B:B,SEGMENTOS!A:A) -> 17300 | B24: IAM - Latam - Aray - Agustin Barrutia / Leonardo Sanguinetti | C24: 2023-06-01
A25: =_xlfn.XLOOKUP(B25,SEGMENTOS!B:B,SEGMENTOS!A:A) -> 17301 | B25: IAM - Latam - Aray - Alejandro Saud | C25: 2023-06-01
A26: =_xlfn.XLOOKUP(B26,SEGMENTOS!B:B,SEGMENTOS!A:A) -> 17302 | B26: IAM - Latam - Aray - Esteban Gammacurta | C26: 2023-06-01
A27: =_xlfn.XLOOKUP(B27,SEGMENTOS!B:B,SEGMENTOS!A:A) -> 17303 | B27: IAM - Latam - Aray - Franco Stagno | C27: 2023-06-01
A28: =_xlfn.XLOOKUP(B28,SEGMENTOS!B:B,SEGMENTOS!A:A) -> 17304 | B28: IAM - Latam - Aray - Gaston Tula | C28: 2023-06-01
A29: =_xlfn.XLOOKUP(B29,SEGMENTOS!B:B,SEGMENTOS!A:A) -> 17305 | B29: IAM - Latam - Aray - Mario Figola | C29: 2023-06-01
A30: =_xlfn.XLOOKUP(B30,SEGMENTOS!B:B,SEGMENTOS!A:A) -> 17306 | B30: IAM - Latam - Aray - Martin Piparuolo | C30: 2023-06-01
A31: =_xlfn.XLOOKUP(B31,SEGMENTOS!B:B,SEGMENTOS!A:A) -> 17307 | B31: IAM - Latam - Dirección | C31: 2023-06-01
A32: =_xlfn.XLOOKUP(B32,SEGMENTOS!B:B,SEGMENTOS!A:A) -> 17308 | B32: IAM - Latam - Gestores de Marketing | C32: 2023-06-01
A33: =_xlfn.XLOOKUP(B33,SEGMENTOS!B:B,SEGMENTOS!A:A) -> 17309 | B33: IAM - Latam - Gestores de Vendas | C33: 2023-06-01
A34: =_xlfn.XLOOKUP(B34,SEGMENTOS!B:B,SEGMENTOS!A:A) -> 17310 | B34: IAM - Latam - Gestores de Compras | C34: 2023-06-01
A35: =_xlfn.XLOOKUP(B35,SEGMENTOS!B:B,SEGMENTOS!A:A) -> 17311 | B35: IAM - Latam - Gestores de Logística | C35: 2023-06-01
A36: =_xlfn.XLOOKUP(B36,SEGMENTOS!B:B,SEGMENTOS!A:A) -> 17312 | B36: IAM - Latam - Gestores de Negócios | C36: 2023-06-01
A37: =_xlfn.XLOOKUP(B37,SEGMENTOS!B:B,SEGMENTOS!A:A) -> 17313 | B37: IAM - Latam - Aray - Dirección | C37: 2023-06-01
A38: =_xlfn.XLOOKUP(B38,SEGMENTOS!B:B,SEGMENTOS!A:A) -> 17314 | B38: IAM - Latam - Aray - Gestores de Compras | C38: 2023-06-01
A39: =_xlfn.XLOOKUP(B39,SEGMENTOS!B:B,SEGMENTOS!A:A) -> 17315 | B39: IAM - Latam - Aray - Gestores de Negócios | C39: 2023-06-01
A40: =_xlfn.XLOOKUP(B40,SEGMENTOS!B:B,SEGMENTOS!A:A) -> 17316 | B40: IAM - Latam - Fapan — Dirección | C40: 2023-06-01
A41: =_xlfn.XLOOKUP(B41,SEGMENTOS!B:B,SEGMENTOS!A:A) -> 17317 | B41: IAM - Latam - Fapan - Gestores de Compras | C41: 2023-06-01
A42: =_xlfn.XLOOKUP(B42,SEGMENTOS!B:B,SEGMENTOS!A:A) -> 17318 | B42: IAM - Latam - Fapan - Gestores de Negócios | C42: 2023-06-01
A43: =_xlfn.XLOOKUP(B43,SEGMENTOS!B:B,SEGMENTOS!A:A) -> 17319 | B43: IAM - Latam - SSC - Dirección | C43: 2023-06-01
A44: =_xlfn.XLOOKUP(B44,SEGMENTOS!B:B,SEGMENTOS!A:A) -> 17320 | B44: IAM - Latam - SSC - Gestores de Compras | C44: 2023-06-01
A45: =_xlfn.XLOOKUP(B45,SEGMENTOS!B:B,SEGMENTOS!A:A) -> 17321 | B45: IAM - Latam - SSC - Gestores de Negócios | C45: 2023-06-01
A46: =_xlfn.XLOOKUP(B46,SEGMENTOS!B:B,SEGMENTOS!A:A) -> 17322 | B46: IAM - Latam - Aray - Clientes A | C46: 2023-06-01
A47: =_xlfn.XLOOKUP(B47,SEGMENTOS!B:B,SEGMENTOS!A:A) -> 17323 | B47: IAM - Latam - Aray - Clientes B | C47: 2023-06-01
A48: =_xlfn.XLOOKUP(B48,SEGMENTOS!B:B,SEGMENTOS!A:A) -> 17324 | B48: IAM - Latam - Aray - Clientes C | C48: 2023-06-01
A49: =_xlfn.XLOOKUP(B49,SEGMENTOS!B:B,SEGMENTOS!A:A) -> 17325 | B49: IAM - Latam - Linea Liviana | C49: 2023-06-01
A50: =_xlfn.XLOOKUP(B50,SEGMENTOS!B:B,SEGMENTOS!A:A) -> 17326 | B50: IAM - Latam - Linea Pesada | C50: 2023-06-01
A51: =_xlfn.XLOOKUP(B51,SEGMENTOS!B:B,SEGMENTOS!A:A) -> 17327 | B51: IAM - Latam - Ambas líneas: Liviana y Pesada | C51: 2023-06-01
A52: =_xlfn.XLOOKUP(B52,SEGMENTOS!B:B,SEGMENTOS!A:A) -> 17328 | B52: IAM - Latam - Aray - Linea Liviana | C52: 2023-06-01
A53: =_xlfn.XLOOKUP(B53,SEGMENTOS!B:B,SEGMENTOS!A:A) -> 17329 | B53: IAM - Latam - Aray - Linea Pesada | C53: 2023-06-01
A54: =_xlfn.XLOOKUP(B54,SEGMENTOS!B:B,SEGMENTOS!A:A) -> 17330 | B54: IAM - Latam - Aray - Ambas líneas: Liviana y Pesada | C54: 2023-06-01
A55: =_xlfn.XLOOKUP(B55,SEGMENTOS!B:B,SEGMENTOS!A:A) -> 17331 | B55: IAM - Latam - Fapan - Linea Liviana | C55: 2023-06-01
A56: =_xlfn.XLOOKUP(B56,SEGMENTOS!B:B,SEGMENTOS!A:A) -> 17332 | B56: IAM - Latam - Fapan - Linea Pesada | C56: 2023-06-01
A57: =_xlfn.XLOOKUP(B57,SEGMENTOS!B:B,SEGMENTOS!A:A) -> 17333 | B57: IAM - Latam - Fapan - Ambas líneas: Liviana y Pesada | C57: 2023-06-01
A58: =_xlfn.XLOOKUP(B58,SEGMENTOS!B:B,SEGMENTOS!A:A) -> 17334 | B58: IAM - Latam - SSC - Linea Liviana | C58: 2023-06-01
A59: =_xlfn.XLOOKUP(B59,SEGMENTOS!B:B,SEGMENTOS!A:A) -> 17335 | B59: IAM - Latam - SSC - Linea Pesada | C59: 2023-06-01
A60: =_xlfn.XLOOKUP(B60,SEGMENTOS!B:B,SEGMENTOS!A:A) -> 17336 | B60: IAM - Latam - SSC - Ambas líneas: Liviana y Pesada | C60: 2023-06-01

Sheet APL_2_FIDEL
A1: ID_Segmento | B1: Segmento | C1: Data | D1: Frasle Mobility | E1: Frasle Mobility | F1: Frasle Mobility | G1: Frasle Mobility | H1: Frasle Mobility | I1: Frasle Mobility | J1: Frasle Mobility | K1: Frasle Mobility | L1: Frasle Mobility | M1: Frasle Mobility | N1: Frasle Mobility | O1: Frasle Mobility | P1: Frasle Mobility | Q1: Frasle Mobility | R1: Frasle Mobility | S1: Frasle Mobility | T1: Frasle Mobility | U1: Frasle Mobility | V1: Frasle Mobility | W1: Frasle Mobility | X1: Frasle Mobility
A2: - | B2: - | C2: - | D2: Satisfación general | E2: Satisfación general | F2: Satisfación general | G2: Satisfación general | H2: Satisfación general | I2: Propensión a continuar | J2: Propensión a continuar | K2: Propensión a continuar | L2: Propensión a continuar | M2: Propensión a continuar | N2: Distancia del ideal | O2: Distancia del ideal | P2: Distancia del ideal | Q2: Distancia del ideal | R2: Distancia del ideal | S2: Grado de Fidelidad | T2: Grado de Fidelidad | U2: Grado de Fidelidad | V2: Grado de Fidelidad | W2: Grado de Fidelidad | X2: IFC
A3: - | B3: - | C3: - | D3: Muy satisfechos | E3: Satisfechos | F3: Ni satisfechos tampoco insatisfechos | G3: Insatisfechos | H3: Muy instisfechos | I3: Definitivamente sí | J3: Provabablemente sí | K3: Talvez sim talvez no | L3: Probablemente no | M3: Definitivamente no | N3: Cerca del ideal - 1 | O3: Cerca del ideal - 2 | P3: A medio camino del ideal | Q3: Longe do ideal - 2 | R3: Lejo del ideal - 1 | S3: Primes | T3: Favorables | U3: Vulnerables | V3: Insatisfechos | W3: Alto riesgo | X3: IFC
A4: =_xlfn.XLOOKUP(B4,SEGMENTOS!B:B,SEGMENTOS!A:A) -> 2900 | B4: Mercado | C4: 2025-06-02 | S4: 0.3582076537 | T4: 0.297076793 | U4: 0.1893813806 | V4: 0.09478942644 | W4: 0.06054474622 | X4: 0.4999502741
A5: 17337 | B5: IAM - Brasil + Latam | C5: 2025-06-02 | D5: 0.4865616311 | E5: 0.4198331789 | F5: 0.07321594069 | G5: 0.01760889713 | H5: 0.002780352178 | I5: 0.7979610751 | J5: 0.1705282669 | K5: 0.0250231696 | L5: 0.002780352178 | M5: 0.003707136237 | N5: 0.4772937905 | O5: 0.3781278962 | P5: 0.1149212234 | Q5: 0.02316960148 | R5: 0.006487488415 | S5: 0.593141798 | T5: 0.3447636701 | U5: 0.05375347544 | V5: 0.004633920297 | W5: 0.003707136237 | X5: 0.9295644115
A6: 17338 | B6: IAM - Brasil | C6: 2025-06-02 | D6: 0.5197740113 | E6: 0.3757062147 | F6: 0.07768361582 | G6: 0.02259887006 | H6: 0.004237288136 | I6: 0.7923728814 | J6: 0.1751412429 | K6: 0.02259887006 | L6: 0.004237288136 | M6: 0.005649717514 | N6: 0.4858757062 | O6: 0.3813559322 | P6: 0.0988700565 | Q6: 0.02683615819 | R6: 0.007062146893 | S6: 0.6002824859 | T6: 0.3389830508 | U6: 0.04943502825 | V6: 0.005649717514 | W6: 0.005649717514 | X6: 0.9279661017
A7: 17281 | B7: IAM - Latam | C7: 2025-06-02 | D7: 0.423180593 | E7: 0.5040431267 | F7: 0.06469002695 | G7: 0.008086253369 | H7: 0 | I7: 0.8086253369 | J7: 0.1617250674 | K7: 0.02964959569 | L7: 0 | M7: 0 | N7: 0.460916442 | O7: 0.371967655 | P7: 0.1455525606 | Q7: 0.01617250674 | R7: 0.00539083558 | S7: 0.5795148248 | T7: 0.3557951482 | U7: 0.06199460916 | V7: 0.00269541779 | W7: 0 | X7: 0.9326145553
A8: 17282 | B8: IAM - Aray | C8: 2025-06-02 | D8: 0.4106463878 | E8: 0.5209125475 | F8: 0.05703422053 | G8: 0.01140684411 | H8: 0 | I8: 0.8288973384 | J8: 0.1406844106 | K8: 0.03041825095 | L8: 0 | M8: 0 | N8: 0.4030418251 | O8: 0.4144486692 | P8: 0.1558935361 | Q8: 0.01901140684 | R8: 0.007604562738 | S8: 0.5703422053 | T8: 0.36121673 | U8: 0.06463878327 | V8: 0.003802281369 | W8: 0 | X8: 0.927756654
A9: 17283 | B9: IAM - Fapan | C9: 2025-06-02 | D9: 0.4074074074 | E9: 0.5185185185 | F9: 0.07407407407 | G9: 0 | H9: 0 | I9: 0.7222222222 | J9: 0.2777777778 | K9: 0 | L9: 0 | M9: 0 | N9: 0.5185185185 | O9: 0.2962962963 | P9: 0.1666666667 | Q9: 0.01851851852 | R9: 0 | S9: 0.5555555556 | T9: 0.3888888889 | U9: 0.05555555556 | V9: 0 | W9: 0 | X9: 0.9444444444
A10: 17284 | B10: IAM - SSC | C10: 2025-06-02 | D10: 0.5 | E10: 0.4074074074 | F10: 0.09259259259 | G10: 0 | H10: 0 | I10: 0.7962962963 | J10: 0.1481481481 | K10: 0.05555555556 | L10: 0 | M10: 0 | N10: 0.6851851852 | O10: 0.2407407407 | P10: 0.07407407407 | Q10: 0 | R10: 0 | S10: 0.6481481481 | T10: 0.2962962963 | U10: 0.05555555556 | V10: 0 | W10: 0 | X10: 0.9444444444
A11: =_xlfn.XLOOKUP(B11,SEGMENTOS!B:B,SEGMENTOS!A:A) -> 17285 | B11: IAM - Latam - Controil | C11: 2025-06-02 | D11: 0.3209876543 | E11: 0.5802469136 | F11: 0.08641975309 | G11: 0.01234567901 | H11: 0 | I11: 0.7777777778 | J11: 0.1851851852 | K11: 0.03703703704 | L11: 0 | M11: 0 | N11: 0.4074074074 | O11: 0.3827160494 | P11: 0.1604938272 | Q11: 0.04938271605 | R11: 0 | S11: 0.5061728395 | T11: 0.3950617284 | U11: 0.0987654321 | V11: 0 | W11: 0 | X11: 0.9012345679
A12: =_xlfn.XLOOKUP(B12,SEGMENTOS!B:B,SEGMENTOS!A:A) -> 17286 | B12: IAM - Latam - Aray - Controil | C12: 2025-06-02 | D12: 0.3050847458 | E12: 0.5762711864 | F12: 0.1016949153 | G12: 0.01694915254 | H12: 0 | I12: 0.7966101695 | J12: 0.1525423729 | K12: 0.05084745763 | L12: 0 | M12: 0 | N12: 0.3559322034 | O12: 0.406779661 | P12: 0.1694915254 | Q12: 0.06779661017 | R12: 0 | S12: 0.5084745763 | T12: 0.3728813559 | U12: 0.1186440678 | V12: 0 | W12: 0 | X12: 0.8813559322
A13: =_xlfn.XLOOKUP(B13,SEGMENTOS!B:B,SEGMENTOS!A:A) -> 17287 | B13: IAM - Latam - Fapan - Controil | C13: 2025-06-02 | D13: 0.3636363636 | E13: 0.5454545455 | F13: 0.09090909091 | G13: 0 | H13: 0 | I13: 0.6363636364 | J13: 0.3636363636 | K13: 0 | L13: 0 | M13: 0 | N13: 0.4545454545 | O13: 0.3636363636 | P13: 0.1818181818 | Q13: 0 | R13: 0 | S13: 0.4545454545 | T13: 0.4545454545 | U13: 0.09090909091 | V13: 0 | W13: 0 | X13: 0.9090909091
A14: =_xlfn.XLOOKUP(B14,SEGMENTOS!B:B,SEGMENTOS!A:A) -> 17288 | B14: IAM - Latam - SSC - Controil | C14: 2025-06-02 | D14: 0.3636363636 | E14: 0.6363636364 | F14: 0 | G14: 0 | H14: 0 | I14: 0.8181818182 | J14: 0.1818181818 | K14: 0 | L14: 0 | M14: 0 | N14: 0.6363636364 | O14: 0.2727272727 | P14: 0.09090909091 | Q14: 0 | R14: 0 | S14: 0.5454545455 | T14: 0.4545454545 | U14: 0 | V14: 0 | W14: 0 | X14: 1
A15: =_xlfn.XLOOKUP(B15,SEGMENTOS!B:B,SEGMENTOS!A:A) -> 17289 | B15: IAM - Latam - Fras-le | C15: 2025-06-02 | D15: 0.4496124031 | E15: 0.496124031 | F15: 0.04651162791 | G15: 0.007751937984 | H15: 0 | I15: 0.8294573643 | J15: 0.1550387597 | K15: 0.01550387597 | L15: 0 | M15: 0 | N15: 0.503875969 | O15: 0.3565891473 | P15: 0.1240310078 | Q15: 0.007751937984 | R15: 0.007751937984 | S15: 0.6356589147 | T15: 0.2945736434 | U15: 0.06976744186 | V15: 0 | W15: 0 | X15: 0.9302325581
A16: =_xlfn.XLOOKUP(B16,SEGMENTOS!B:B,SEGMENTOS!A:A) -> 17290 | B16: IAM - Latam - Aray - Fras-le | C16: 2025-06-02 | D16: 0.4117647059 | E16: 0.5294117647 | F16: 0.04705882353 | G16: 0.01176470588 | H16: 0 | I16: 0.8235294118 | J16: 0.1529411765 | K16: 0.02352941176 | L16: 0 | M16: 0 | N16: 0.4117647059 | O16: 0.4117647059 | P16: 0.1647058824 | Q16: 0 | R16: 0.01176470588 | S16: 0.6117647059 | T16: 0.3058823529 | U16: 0.08235294118 | V16: 0 | W16: 0 | X16: 0.9176470588
A17: =_xlfn.XLOOKUP(B17,SEGMENTOS!B:B,SEGMENTOS!A:A) -> 17291 | B17: IAM - Latam - Fapan - Fras-le | C17: 2025-06-02 | D17: 0.5 | E17: 0.4615384615 | F17: 0.03846153846 | G17: 0 | H17: 0 | I17: 0.8076923077 | J17: 0.1923076923 | K17: 0 | L17: 0 | M17: 0 | N17: 0.6153846154 | O17: 0.2692307692 | P17: 0.07692307692 | Q17: 0.03846153846 | R17: 0 | S17: 0.6538461538 | T17: 0.2692307692 | U17: 0.07692307692 | V17: 0 | W17: 0 | X17: 0.9230769231
A18: =_xlfn.XLOOKUP(B18,SEGMENTOS!B:B,SEGMENTOS!A:A) -> 17292 | B18: IAM - Latam - SSC - Fras-le | C18: 2025-06-02 | D18: 0.5555555556 | E18: 0.3888888889 | F18: 0.05555555556 | G18: 0 | H18: 0 | I18: 0.8888888889 | J18: 0.1111111111 | K18: 0 | L18: 0 | M18: 0 | N18: 0.7777777778 | O18: 0.2222222222 | P18: 0 | Q18: 0 | R18: 0 | S18: 0.7222222222 | T18: 0.2777777778 | U18: 0 | V18: 0 | W18: 0 | X18: 1
A19: =_xlfn.XLOOKUP(B19,SEGMENTOS!B:B,SEGMENTOS!A:A) -> 17293 | B19: IAM - Latam - Fremax | C19: 2025-06-02 | D19: 0.4571428571 | E19: 0.4714285714 | F19: 0.07142857143 | G19: 0 | H19: 0 | I19: 0.8142857143 | J19: 0.1714285714 | K19: 0.01428571429 | L19: 0 | M19: 0 | N19: 0.4571428571 | O19: 0.4285714286 | P19: 0.1142857143 | Q19: 0 | R19: 0 | S19: 0.6 | T19: 0.3714285714 | U19: 0.02857142857 | V19: 0 | W19: 0 | X19: 0.9714285714
A20: =_xlfn.XLOOKUP(B20,SEGMENTOS!B:B,SEGMENTOS!A:A) -> 17294 | B20: IAM - Latam - Aray - Fremax | C20: 2025-06-02 | D20: 0.5 | E20: 0.4827586207 | F20: 0.01724137931 | G20: 0 | H20: 0 | I20: 0.8620689655 | J20: 0.1379310345 | K20: 0 | L20: 0 | M20: 0 | N20: 0.4655172414 | O20: 0.4137931034 | P20: 0.1206896552 | Q20: 0 | R20: 0 | S20: 0.6379310345 | T20: 0.3448275862 | U20: 0.01724137931 | V20: 0 | W20: 0 | X20: 0.9827586207
A21: =_xlfn.XLOOKUP(B21,SEGMENTOS!B:B,SEGMENTOS!A:A) -> 17295 | B21: IAM - Latam - SSC - Fremax | C21: 2025-06-02 | D21: 0.3333333333 | E21: 0.4444444444 | F21: 0.2222222222 | G21: 0 | H21: 0 | I21: 0.6666666667 | J21: 0.2222222222 | K21: 0.1111111111 | L21: 0 | M21: 0 | N21: 0.5555555556 | O21: 0.3333333333 | P21: 0.1111111111 | Q21: 0 | R21: 0 | S21: 0.5555555556 | T21: 0.3333333333 | U21: 0.1111111111 | V21: 0 | W21: 0 | X21: 0.8888888889
A22: =_xlfn.XLOOKUP(B22,SEGMENTOS!B:B,SEGMENTOS!A:A) -> 17296 | B22: IAM - Latam - Nakata | C22: 2025-06-02 | D22: 0.4505494505 | E22: 0.4725274725 | F22: 0.06593406593 | G22: 0.01098901099 | H22: 0 | I22: 0.8021978022 | J22: 0.1428571429 | K22: 0.05494505495 | L22: 0 | M22: 0 | N22: 0.4505494505 | O22: 0.3406593407 | P22: 0.1868131868 | Q22: 0.01098901099 | R22: 0.01098901099 | S22: 0.5494505495 | T22: 0.3956043956 | U22: 0.04395604396 | V22: 0.01098901099 | W22: 0 | X22: 0.9340659341
A23: =_xlfn.XLOOKUP(B23,SEGMENTOS!B:B,SEGMENTOS!A:A) -> 17297 | B23: IAM - Latam - Aray - Nakata | C23: 2025-06-02 | D23: 0.4262295082 | E23: 0.4918032787 | F23: 0.06557377049 | G23: 0.01639344262 | H23: 0 | I23: 0.8360655738 | J23: 0.1147540984 | K23: 0.04918032787 | L23: 0 | M23: 0 | N23: 0.3770491803 | O23: 0.4262295082 | P23: 0.1639344262 | Q23: 0.01639344262 | R23: 0.01639344262 | S23: 0.5081967213 | T23: 0.4426229508 | U23: 0.03278688525 | V23: 0.01639344262 | W23: 0 | X23: 0.9344262295
A24: =_xlfn.XLOOKUP(B24,SEGMENTOS!B:B,SEGMENTOS!A:A) -> 17298 | B24: IAM - Latam - Fapan - Nakata | C24: 2025-06-02 | D24: 0.3571428571 | E24: 0.6428571429 | F24: 0 | G24: 0 | H24: 0 | I24: 0.7142857143 | J24: 0.2857142857 | K24: 0 | L24: 0 | M24: 0 | N24: 0.5 | O24: 0.1428571429 | P24: 0.3571428571 | Q24: 0 | R24: 0 | S24: 0.5714285714 | T24: 0.4285714286 | U24: 0 | V24: 0 | W24: 0 | X24: 1
A25: =_xlfn.XLOOKUP(B25,SEGMENTOS!B:B,SEGMENTOS!A:A) -> 17299 | B25: IAM - Latam - SSC - Nakata | C25: 2025-06-02 | D25: 0.625 | E25: 0.25 | F25: 0.125 | G25: 0 | H25: 0 | I25: 0.75 | J25: 0.125 | K25: 0.125 | L25: 0 | M25: 0 | N25: 0.6875 | O25: 0.1875 | P25: 0.125 | Q25: 0 | R25: 0 | S25: 0.6875 | T25: 0.1875 | U25: 0.125 | V25: 0 | W25: 0 | X25: 0.875
A26: =_xlfn.XLOOKUP(B26,SEGMENTOS!B:B,SEGMENTOS!A:A) -> 17300 | B26: IAM - Latam - Aray - Agustin Barrutia / Leonardo Sanguinetti | C26: 2025-06-02 | D26: 0.3846153846 | E26: 0.5384615385 | F26: 0.07692307692 | G26: 0 | H26: 0 | I26: 0.8461538462 | J26: 0.1538461538 | K26: 0 | L26: 0 | M26: 0 | N26: 0.5384615385 | O26: 0.3846153846 | P26: 0.07692307692 | Q26: 0 | R26: 0 | S26: 0.7692307692 | T26: 0.2307692308 | U26: 0 | V26: 0 | W26: 0 | X26: 1
A27: =_xlfn.XLOOKUP(B27,SEGMENTOS!B:B,SEGMENTOS!A:A) -> 17301 | B27: IAM - Latam - Aray - Alejandro Saud | C27: 2025-06-02 | D27: 0.675 | E27: 0.225 | F27: 0.1 | G27: 0 | H27: 0 | I27: 0.925 | J27: 0.05 | K27: 0.025 | L27: 0 | M27: 0 | N27: 0.5 | O27: 0.25 | P27: 0.2 | Q27: 0.05 | R27: 0 | S27: 0.7 | T27: 0.225 | U27: 0.075 | V27: 0 | W27: 0 | X27: 0.925
A28: =_xlfn.XLOOKUP(B28,SEGMENTOS!B:B,SEGMENTOS!A:A) -> 17302 | B28: IAM - Latam - Aray - Esteban Gammacurta | C28: 2025-06-02 | D28: 0.375 | E28: 0.625 | F28: 0 | G28: 0 | H28: 0 | I28: 0.625 | J28: 0.375 | K28: 0 | L28: 0 | M28: 0 | N28: 0.375 | O28: 0.25 | P28: 0.375 | Q28: 0 | R28: 0 | S28: 0.375 | T28: 0.625 | U28: 0 | V28: 0 | W28: 0 | X28: 1
A29: =_xlfn.XLOOKUP(B29,SEGMENTOS!B:B,SEGMENTOS!A:A) -> 17303 | B29: IAM - Latam - Aray - Franco Stagno | C29: 2025-06-02 | D29: 0.375 | E29: 0.5625 | F29: 0.03125 | G29: 0.03125 | H29: 0 | I29: 0.875 | J29: 0.03125 | K29: 0.09375 | L29: 0 | M29: 0 | N29: 0.4375 | O29: 0.34375 | P29: 0.15625 | Q29: 0.03125 | R29: 0.03125 | S29: 0.40625 | T29: 0.53125 | U29: 0.03125 | V29: 0.03125 | W29: 0 | X29: 0.90625
A30: =_xlfn.XLOOKUP(B30,SEGMENTOS!B:B,SEGMENTOS!A:A) -> 17304 | B30: IAM - Latam - Aray - Gaston Tula | C30: 2025-06-02 | D30: 0.3076923077 | E30: 0.5961538462 | F30: 0.07692307692 | G30: 0.01923076923 | H30: 0 | I30: 0.6923076923 | J30: 0.25 | K30: 0.05769230769 | L30: 0 | M30: 0 | N30: 0.4038461538 | O30: 0.3846153846 | P30: 0.2115384615 | Q30: 0 | R30: 0 | S30: 0.4038461538 | T30: 0.5384615385 | U30: 0.05769230769 | V30: 0 | W30: 0 | X30: 0.9423076923
A31: =_xlfn.XLOOKUP(B31,SEGMENTOS!B:B,SEGMENTOS!A:A) -> 17305 | B31: IAM - Latam - Aray - Mario Figola | C31: 2025-06-02 | D31: 0.5277777778 | E31: 0.4722222222 | F31: 0 | G31: 0 | H31: 0 | I31: 0.9166666667 | J31: 0.08333333333 | K31: 0 | L31: 0 | M31: 0 | N31: 0.4722222222 | O31: 0.3888888889 | P31: 0.1388888889 | Q31: 0 | R31: 0 | S31: 0.6388888889 | T31: 0.3611111111 | U31: 0 | V31: 0 | W31: 0 | X31: 1
A32: =_xlfn.XLOOKUP(B32,SEGMENTOS!B:B,SEGMENTOS!A:A) -> 17306 | B32: IAM - Latam - Aray - Martin Piparuolo | C32: 2025-06-02 | D32: 0.3170731707 | E32: 0.6097560976 | F32: 0.06097560976 | G32: 0.01219512195 | H32: 0 | I32: 0.8292682927 | J32: 0.1585365854 | K32: 0.01219512195 | L32: 0 | M32: 0 | N32: 0.2926829268 | O32: 0.5731707317 | P32: 0.09756097561 | Q32: 0.0243902439 | R32: 0.01219512195 | S32: 0.6341463415 | T32: 0.243902439 | U32: 0.1219512195 | V32: 0 | W32: 0 | X32: 0.8780487805
A33: =_xlfn.XLOOKUP(B33,SEGMENTOS!B:B,SEGMENTOS!A:A) -> 17307 | B33: IAM - Latam - Dirección | C33: 2025-06-02 | D33: 0.3875968992 | E33: 0.5426356589 | F33: 0.05426356589 | G33: 0.01550387597 | H33: 0 | I33: 0.8604651163 | J33: 0.1085271318 | K33: 0.03100775194 | L33: 0 | M33: 0 | N33: 0.4263565891 | O33: 0.4186046512 | P33: 0.1317829457 | Q33: 0.02325581395 | R33: 0 | S33: 0.6434108527 | T33: 0.2868217054 | U33: 0.06976744186 | V33: 0 | W33: 0 | X33: 0.9302325581
A34: =_xlfn.XLOOKUP(B34,SEGMENTOS!B:B,SEGMENTOS!A:A) -> 17308 | B34: IAM - Latam - Gestores de Marketing | C34: 2025-06-02 | D34: 0.6 | E34: 0.4 | F34: 0 | G34: 0 | H34: 0 | I34: 1 | J34: 0 | K34: 0 | L34: 0 | M34: 0 | N34: 0.6 | O34: 0.4 | P34: 0 | Q34: 0 | R34: 0 | S34: 1 | T34: 0 | U34: 0 | V34: 0 | W34: 0 | X34: 1
A35: =_xlfn.XLOOKUP(B35,SEGMENTOS!B:B,SEGMENTOS!A:A) -> 17309 | B35: IAM - Latam - Gestores de Vendas | C35: 2025-06-02 | D35: 0.25 | E35: 0.25 | F35: 0.5 | G35: 0 | H35: 0 | I35: 0.25 | J35: 0.5 | K35: 0.25 | L35: 0 | M35: 0 | N35: 0.25 | O35: 0.5 | P35: 0.25 | Q35: 0 | R35: 0 | S35: 0.25 | T35: 0.5 | U35: 0.25 | V35: 0 | W35: 0 | X35: 0.75
A36: =_xlfn.XLOOKUP(B36,SEGMENTOS!B:B,SEGMENTOS!A:A) -> 17310 | B36: IAM - Latam - Gestores de Compras | C36: 2025-06-02 | D36: 0.4794520548 | E36: 0.4520547945 | F36: 0.06849315068 | G36: 0 | H36: 0 | I36: 0.8219178082 | J36: 0.1506849315 | K36: 0.02739726027 | L36: 0 | M36: 0 | N36: 0.6164383562 | O36: 0.1917808219 | P36: 0.1780821918 | Q36: 0.01369863014 | R36: 0 | S36: 0.602739726 | T36: 0.3424657534 | U36: 0.05479452055 | V36: 0 | W36: 0 | X36: 0.9452054795
A37: =_xlfn.XLOOKUP(B37,SEGMENTOS!B:B,SEGMENTOS!A:A) -> 17311 | B37: IAM - Latam - Gestores de Logística | C37: 2025-06-02 | D37: 0.6666666667 | E37: 0.3333333333 | F37: 0 | G37: 0 | H37: 0 | I37: 1 | J37: 0 | K37: 0 | L37: 0 | M37: 0 | N37: 0.6666666667 | O37: 0.3333333333 | P37: 0 | Q37: 0 | R37: 0 | S37: 0.6666666667 | T37: 0.3333333333 | U37: 0 | V37: 0 | W37: 0 | X37: 1
A38: =_xlfn.XLOOKUP(B38,SEGMENTOS!B:B,SEGMENTOS!A:A) -> 17312 | B38: IAM - Latam - Gestores de Negócios | C38: 2025-06-02 | D38: 0.4155844156 | E38: 0.512987013 | F38: 0.06493506494 | G38: 0.006493506494 | H38: 0 | I38: 0.7597402597 | J38: 0.2142857143 | K38: 0.02597402597 | L38: 0 | M38: 0 | N38: 0.4090909091 | O38: 0.4155844156 | P38: 0.1493506494 | Q38: 0.01298701299 | R38: 0.01298701299 | S38: 0.5064935065 | T38: 0.4285714286 | U38: 0.05844155844 | V38: 0.006493506494 | W38: 0 | X38: 0.9285714286
A39: =_xlfn.XLOOKUP(B39,SEGMENTOS!B:B,SEGMENTOS!A:A) -> 17313 | B39: IAM - Latam - Aray - Dirección | C39: 2025-06-02 | D39: 0.4 | E39: 0.5238095238 | F39: 0.05714285714 | G39: 0.01904761905 | H39: 0 | I39: 0.8952380952 | J39: 0.06666666667 | K39: 0.0380952381 | L39: 0 | M39: 0 | N39: 0.4095238095 | O39: 0.4476190476 | P39: 0.1238095238 | Q39: 0.01904761905 | R39: 0 | S39: 0.6761904762 | T39: 0.2571428571 | U39: 0.06666666667 | V39: 0 | W39: 0 | X39: 0.9333333333
A40: =_xlfn.XLOOKUP(B40,SEGMENTOS!B:B,SEGMENTOS!A:A) -> 17314 | B40: IAM - Latam - Aray - Gestores de Compras | C40: 2025-06-02 | D40: 0.5151515152 | E40: 0.4242424242 | F40: 0.06060606061 | G40: 0 | H40: 0 | I40: 0.9090909091 | J40: 0.09090909091 | K40: 0 | L40: 0 | M40: 0 | N40: 0.5757575758 | O40: 0.2121212121 | P40: 0.1818181818 | Q40: 0.0303030303 | R40: 0 | S40: 0.6363636364 | T40: 0.3333333333 | U40: 0.0303030303 | V40: 0 | W40: 0 | X40: 0.9696969697
A41: =_xlfn.XLOOKUP(B41,SEGMENTOS!B:B,SEGMENTOS!A:A) -> 17315 | B41: IAM - Latam - Aray - Gestores de Negócios | C41: 2025-06-02 | D41: 0.3801652893 | E41: 0.5537190083 | F41: 0.05785123967 | G41: 0.00826446281 | H41: 0 | I41: 0.7438016529 | J41: 0.2231404959 | K41: 0.03305785124 | L41: 0 | M41: 0 | N41: 0.3388429752 | O41: 0.4462809917 | P41: 0.1818181818 | Q41: 0.01652892562 | R41: 0.01652892562 | S41: 0.4545454545 | T41: 0.4628099174 | U41: 0.07438016529 | V41: 0.00826446281 | W41: 0 | X41: 0.9090909091
A42: =_xlfn.XLOOKUP(B42,SEGMENTOS!B:B,SEGMENTOS!A:A) -> 17316 | B42: IAM - Latam - Fapan — Dirección | C42: 2025-06-02 | D42: 0.3333333333 | E42: 0.6111111111 | F42: 0.05555555556 | G42: 0 | H42: 0 | I42: 0.6111111111 | J42: 0.3888888889 | K42: 0 | L42: 0 | M42: 0 | N42: 0.3888888889 | O42: 0.3888888889 | P42: 0.1666666667 | Q42: 0.05555555556 | R42: 0 | S42: 0.3888888889 | T42: 0.5 | U42: 0.1111111111 | V42: 0 | W42: 0 | X42: 0.8888888889
A43: =_xlfn.XLOOKUP(B43,SEGMENTOS!B:B,SEGMENTOS!A:A) -> 17317 | B43: IAM - Latam - Fapan - Gestores de Compras | C43: 2025-06-02 | D43: 0.2307692308 | E43: 0.6153846154 | F43: 0.1538461538 | G43: 0 | H43: 0 | I43: 0.6153846154 | J43: 0.3846153846 | K43: 0 | L43: 0 | M43: 0 | N43: 0.3846153846 | O43: 0.2307692308 | P43: 0.3846153846 | Q43: 0 | R43: 0 | S43: 0.3846153846 | T43: 0.5384615385 | U43: 0.07692307692 | V43: 0 | W43: 0 | X43: 0.9230769231
A44: =_xlfn.XLOOKUP(B44,SEGMENTOS!B:B,SEGMENTOS!A:A) -> 17318 | B44: IAM - Latam - Fapan - Gestores de Negócios | C44: 2025-06-02 | D44: 0.5 | E44: 0.5 | F44: 0 | G44: 0 | H44: 0 | I44: 0.875 | J44: 0.125 | K44: 0 | L44: 0 | M44: 0 | N44: 0.6875 | O44: 0.25 | P44: 0.0625 | Q44: 0 | R44: 0 | S44: 0.8125 | T44: 0.1875 | U44: 0 | V44: 0 | W44: 0 | X44: 1
A45: =_xlfn.XLOOKUP(B45,SEGMENTOS!B:B,SEGMENTOS!A:A) -> 17319 | B45: IAM - Latam - SSC - Dirección | C45: 2025-06-02 | D45: 0.3333333333 | E45: 0.6666666667 | F45: 0 | G45: 0 | H45: 0 | I45: 1 | J45: 0 | K45: 0 | L45: 0 | M45: 0 | N45: 0.8333333333 | O45: 0 | P45: 0.1666666667 | Q45: 0 | R45: 0 | S45: 0.8333333333 | T45: 0.1666666667 | U45: 0 | V45: 0 | W45: 0 | X45: 1
A46: =_xlfn.XLOOKUP(B46,SEGMENTOS!B:B,SEGMENTOS!A:A) -> 17320 | B46: IAM - Latam - SSC - Gestores de Compras | C46: 2025-06-02 | D46: 0.5555555556 | E46: 0.4074074074 | F46: 0.03703703704 | G46: 0 | H46: 0 | I46: 0.8148148148 | J46: 0.1111111111 | K46: 0.07407407407 | L46: 0 | M46: 0 | N46: 0.7777777778 | O46: 0.1481481481 | P46: 0.07407407407 | Q46: 0 | R46: 0 | S46: 0.6666666667 | T46: 0.2592592593 | U46: 0.07407407407 | V46: 0 | W46: 0 | X46: 0.9259259259
A47: =_xlfn.XLOOKUP(B47,SEGMENTOS!B:B,SEGMENTOS!A:A) -> 17321 | B47: IAM - Latam - SSC - Gestores de Negócios | C47: 2025-06-02 | D47: 0.5882352941 | E47: 0.2352941176 | F47: 0.1764705882 | G47: 0 | H47: 0 | I47: 0.7647058824 | J47: 0.2352941176 | K47: 0 | L47: 0 | M47: 0 | N47: 0.6470588235 | O47: 0.3529411765 | P47: 0 | Q47: 0 | R47: 0 | S47: 0.5882352941 | T47: 0.4117647059 | U47: 0 | V47: 0 | W47: 0 | X47: 1
A48: =_xlfn.XLOOKUP(B48,SEGMENTOS!B:B,SEGMENTOS!A:A) -> 17322 | B48: IAM - Latam - Aray - Clientes A | C48: 2025-06-02 | D48: 0.5238095238 | E48: 0.4285714286 | F48: 0.03571428571 | G48: 0.0119047619 | H48: 0 | I48: 0.880952381 | J48: 0.09523809524 | K48: 0.02380952381 | L48: 0 | M48: 0 | N48: 0.5 | O48: 0.369047619 | P48: 0.119047619 | Q48: 0.0119047619 | R48: 0 | S48: 0.630952381 | T48: 0.3452380952 | U48: 0.02380952381 | V48: 0 | W48: 0 | X48: 0.9761904762
A49: =_xlfn.XLOOKUP(B49,SEGMENTOS!B:B,SEGMENTOS!A:A) -> 17323 | B49: IAM - Latam - Aray - Clientes B | C49: 2025-06-02 | D49: 0.3786407767 | E49: 0.5145631068 | F49: 0.08737864078 | G49: 0.01941747573 | H49: 0 | I49: 0.7961165049 | J49: 0.1553398058 | K49: 0.04854368932 | L49: 0 | M49: 0 | N49: 0.3203883495 | O49: 0.4174757282 | P49: 0.2233009709 | Q49: 0.02912621359 | R49: 0.009708737864 | S49: 0.5048543689 | T49: 0.3689320388 | U49: 0.1165048544 | V49: 0.009708737864 | W49: 0 | X49: 0.8640776699
A50: =_xlfn.XLOOKUP(B50,SEGMENTOS!B:B,SEGMENTOS!A:A) -> 17324 | B50: IAM - Latam - Aray - Clientes C | C50: 2025-06-02 | D50: 0.3289473684 | E50: 0.6315789474 | F50: 0.03947368421 | G50: 0 | H50: 0 | I50: 0.8157894737 | J50: 0.1710526316 | K50: 0.01315789474 | L50: 0 | M50: 0 | N50: 0.4078947368 | O50: 0.4605263158 | P50: 0.1052631579 | Q50: 0.01315789474 | R50: 0.01315789474 | S50: 0.5921052632 | T50: 0.3684210526 | U50: 0.03947368421 | V50: 0 | W50: 0 | X50: 0.9605263158
A51: =_xlfn.XLOOKUP(B51,SEGMENTOS!B:B,SEGMENTOS!A:A) -> 17325 | B51: IAM - Latam - Linea Liviana | C51: 2025-06-02 | D51: 0.3689320388 | E51: 0.5436893204 | F51: 0.07766990291 | G51: 0.009708737864 | H51: 0 | I51: 0.6990291262 | J51: 0.2621359223 | K51: 0.03883495146 | L51: 0 | M51: 0 | N51: 0.3883495146 | O51: 0.3980582524 | P51: 0.1844660194 | Q51: 0.01941747573 | R51: 0.009708737864 | S51: 0.4757281553 | T51: 0.4563106796 | U51: 0.05825242718 | V51: 0.009708737864 | W51: 0 | X51: 0.9223300971
A52: =_xlfn.XLOOKUP(B52,SEGMENTOS!B:B,SEGMENTOS!A:A) -> 17326 | B52: IAM - Latam - Linea Pesada | C52: 2025-06-02 | D52: 0.4594594595 | E52: 0.4324324324 | F52: 0.1081081081 | G52: 0 | H52: 0 | I52: 0.7837837838 | J52: 0.2162162162 | K52: 0 | L52: 0 | M52: 0 | N52: 0.6486486486 | O52: 0.2432432432 | P52: 0.1081081081 | Q52: 0 | R52: 0 | S52: 0.5945945946 | T52: 0.3783783784 | U52: 0.02702702703 | V52: 0 | W52: 0 | X52: 0.972972973
A53: =_xlfn.XLOOKUP(B53,SEGMENTOS!B:B,SEGMENTOS!A:A) -> 17327 | B53: IAM - Latam - Ambas líneas: Liviana y Pesada | C53: 2025-06-02 | D53: 0.4415584416 | E53: 0.4978354978 | F53: 0.05194805195 | G53: 0.008658008658 | H53: 0 | I53: 0.8614718615 | J53: 0.1082251082 | K53: 0.0303030303 | L53: 0 | M53: 0 | N53: 0.4632034632 | O53: 0.380952381 | P53: 0.1341991342 | Q53: 0.01731601732 | R53: 0.004329004329 | S53: 0.6233766234 | T53: 0.3073593074 | U53: 0.06926406926 | V53: 0 | W53: 0 | X53: 0.9307359307
A54: =_xlfn.XLOOKUP(B54,SEGMENTOS!B:B,SEGMENTOS!A:A) -> 17328 | B54: IAM - Latam - Aray - Linea Liviana | C54: 2025-06-02 | D54: 0.3580246914 | E54: 0.5555555556 | F54: 0.07407407407 | G54: 0.01234567901 | H54: 0 | I54: 0.6790123457 | J54: 0.2716049383 | K54: 0.04938271605 | L54: 0 | M54: 0 | N54: 0.3456790123 | O54: 0.4074074074 | P54: 0.2098765432 | Q54: 0.02469135802 | R54: 0.01234567901 | S54: 0.4197530864 | T54: 0.4938271605 | U54: 0.07407407407 | V54: 0.01234567901 | W54: 0 | X54: 0.9012345679
A55: =_xlfn.XLOOKUP(B55,SEGMENTOS!B:B,SEGMENTOS!A:A) -> 17329 | B55: IAM - Latam - Aray - Linea Pesada | C55: 2025-06-02 | D55: 0.3529411765 | E55: 0.6470588235 | F55: 0 | G55: 0 | H55: 0 | I55: 0.8823529412 | J55: 0.1176470588 | K55: 0 | L55: 0 | M55: 0 | N55: 0.5294117647 | O55: 0.3529411765 | P55: 0.1176470588 | Q55: 0 | R55: 0 | S55: 0.5294117647 | T55: 0.4705882353 | U55: 0 | V55: 0 | W55: 0 | X55: 1
A56: =_xlfn.XLOOKUP(B56,SEGMENTOS!B:B,SEGMENTOS!A:A) -> 17330 | B56: IAM - Latam - Aray - Ambas líneas: Liviana y Pesada | C56: 2025-06-02 | D56: 0.4424242424 | E56: 0.4909090909 | F56: 0.05454545455 | G56: 0.01212121212 | H56: 0 | I56: 0.896969697 | J56: 0.07878787879 | K56: 0.02424242424 | L56: 0 | M56: 0 | N56: 0.4181818182 | O56: 0.4242424242 | P56: 0.1333333333 | Q56: 0.01818181818 | R56: 0.006060606061 | S56: 0.6484848485 | T56: 0.2848484848 | U56: 0.06666666667 | V56: 0 | W56: 0 | X56: 0.9333333333
A57: =_xlfn.XLOOKUP(B57,SEGMENTOS!B:B,SEGMENTOS!A:A) -> 17331 | B57: IAM - Latam - Fapan - Linea Liviana | C57: 2025-06-02 | D57: 0.4 | E57: 0.4666666667 | F57: 0.1333333333 | G57: 0 | H57: 0 | I57: 0.7333333333 | J57: 0.2666666667 | K57: 0 | L57: 0 | M57: 0 | N57: 0.4 | O57: 0.4666666667 | P57: 0.1333333333 | Q57: 0 | R57: 0 | S57: 0.6 | T57: 0.4 | U57: 0 | V57: 0 | W57: 0 | X57: 1
A58: =_xlfn.XLOOKUP(B58,SEGMENTOS!B:B,SEGMENTOS!A:A) -> 17332 | B58: IAM - Latam - Fapan - Linea Pesada | C58: 2025-06-02 | D58: 0.4444444444 | E58: 0.4444444444 | F58: 0.1111111111 | G58: 0 | H58: 0 | I58: 0.6666666667 | J58: 0.3333333333 | K58: 0 | L58: 0 | M58: 0 | N58: 0.7777777778 | O58: 0 | P58: 0.2222222222 | Q58: 0 | R58: 0 | S58: 0.6666666667 | T58: 0.2222222222 | U58: 0.1111111111 | V58: 0 | W58: 0 | X58: 0.8888888889
A59: =_xlfn.XLOOKUP(B59,SEGMENTOS!B:B,SEGMENTOS!A:A) -> 17333 | B59: IAM - Latam - Fapan - Ambas líneas: Liviana y Pesada | C59: 2025-06-02 | D59: 0.4 | E59: 0.5666666667 | F59: 0.03333333333 | G59: 0 | H59: 0 | I59: 0.7333333333 | J59: 0.2666666667 | K59: 0 | L59: 0 | M59: 0 | N59: 0.5 | O59: 0.3 | P59: 0.1666666667 | Q59: 0.03333333333 | R59: 0 | S59: 0.5 | T59: 0.4333333333 | U59: 0.06666666667 | V59: 0 | W59: 0 | X59: 0.9333333333
A60: =_xlfn.XLOOKUP(B60,SEGMENTOS!B:B,SEGMENTOS!A:A) -> 17334 | B60: IAM - Latam - SSC - Linea Liviana | C60: 2025-06-02 | D60: 0.4285714286 | E60: 0.5714285714 | F60: 0 | G60: 0 | H60: 0 | I60: 0.8571428571 | J60: 0.1428571429 | K60: 0 | L60: 0 | M60: 0 | N60: 0.8571428571 | O60: 0.1428571429 | P60: 0 | Q60: 0 | R60: 0 | S60: 0.8571428571 | T60: 0.1428571429 | U60: 0 | V60: 0 | W60: 0 | X60: 1
A61: =_xlfn.XLOOKUP(B61,SEGMENTOS!B:B,SEGMENTOS!A:A) -> 17335 | B61: IAM - Latam - SSC - Linea Pesada | C61: 2025-06-02 | D61: 0.6363636364 | E61: 0.09090909091 | F61: 0.2727272727 | G61: 0 | H61: 0 | I61: 0.7272727273 | J61: 0.2727272727 | K61: 0 | L61: 0 | M61: 0 | N61: 0.7272727273 | O61: 0.2727272727 | P61: 0 | Q61: 0 | R61: 0 | S61: 0.6363636364 | T61: 0.3636363636 | U61: 0 | V61: 0 | W61: 0 | X61: 1
A62: =_xlfn.XLOOKUP(B62,SEGMENTOS!B:B,SEGMENTOS!A:A) -> 17336 | B62: IAM - Latam - SSC - Ambas líneas: Liviana y Pesada | C62: 2025-06-02 | D62: 0.4722222222 | E62: 0.4722222222 | F62: 0.05555555556 | G62: 0 | H62: 0 | I62: 0.8055555556 | J62: 0.1111111111 | K62: 0.08333333333 | L62: 0 | M62: 0 | N62: 0.6388888889 | O62: 0.25 | P62: 0.1111111111 | Q62: 0 | R62: 0 | S62: 0.6111111111 | T62: 0.3055555556 | U62: 0.08333333333 | V62: 0 | W62: 0 | X62: 0.9166666667

Sheet APL_1_FIDEL
A1: ID_Segmento | B1: Segmento | C1: Data | D1: Frasle Mobility | E1: Frasle Mobility | F1: Frasle Mobility | G1: Frasle Mobility | H1: Frasle Mobility | I1: Frasle Mobility | J1: Frasle Mobility | K1: Frasle Mobility | L1: Frasle Mobility | M1: Frasle Mobility | N1: Frasle Mobility | O1: Frasle Mobility | P1: Frasle Mobility | Q1: Frasle Mobility | R1: Frasle Mobility | S1: Frasle Mobility | T1: Frasle Mobility | U1: Frasle Mobility | V1: Frasle Mobility | W1: Frasle Mobility | X1: Frasle Mobility
A2: - | B2: - | C2: - | D2: Satisfación general | E2: Satisfación general | F2: Satisfación general | G2: Satisfación general | H2: Satisfación general | I2: Propensión a continuar | J2: Propensión a continuar | K2: Propensión a continuar | L2: Propensión a continuar | M2: Propensión a continuar | N2: Distancia del ideal | O2: Distancia del ideal | P2: Distancia del ideal | Q2: Distancia del ideal | R2: Distancia del ideal | S2: Grado de Fidelidad | T2: Grado de Fidelidad | U2: Grado de Fidelidad | V2: Grado de Fidelidad | W2: Grado de Fidelidad | X2: IFC
A3: - | B3: - | C3: - | D3: Muy satisfechos | E3: Satisfechos | F3: Ni satisfechos tampoco insatisfechos | G3: Insatisfechos | H3: Muy instisfechos | I3: Definitivamente sí | J3: Provabablemente sí | K3: Talvez sim talvez no | L3: Probablemente no | M3: Definitivamente no | N3: Cerca del ideal - 1 | O3: Cerca del ideal - 2 | P3: A medio camino del ideal | Q3: Longe do ideal - 2 | R3: Lejo del ideal - 1 | S3: Primes | T3: Favorables | U3: Vulnerables | V3: Insatisfechos | W3: Alto riesgo | X3: IFC
A4: =_xlfn.XLOOKUP(B4,SEGMENTOS!B:B,SEGMENTOS!A:A) -> 2900 | B4: Mercado | C4: 2023-06-01
A5: 17337 | B5: IAM - Brasil + Latam | C5: 2023-06-01
A6: 17338 | B6: IAM - Brasil | C6: 2023-06-01 | D6: 0.4821002387 | E6: 0.4105011933 | F6: 0.07398568019 | G6: 0.02267303103 | H6: 0.0107398568 | I6: 0.7804295943 | J6: 0.1778042959 | K6: 0.02863961814 | L6: 0.01312649165 | M6: 0 | S6: 0.5250596659 | T6: 0.3985680191 | U6: 0.05489260143 | V6: 0.02028639618 | W6: 0.001193317422 | X6: 0.9021479714
A7: 17281 | B7: IAM - Latam | C7: 2023-06-01
A8: 17282 | B8: IAM - Aray | C8: 2023-06-01
A9: 17283 | B9: IAM - Fapan | C9: 2023-06-01
A10: 17284 | B10: IAM - SSC | C10: 2023-06-01
A11: =_xlfn.XLOOKUP(B11,SEGMENTOS!B:B,SEGMENTOS!A:A) -> 17285 | B11: IAM - Latam - Controil | C11: 2023-06-01
A12: =_xlfn.XLOOKUP(B12,SEGMENTOS!B:B,SEGMENTOS!A:A) -> 17286 | B12: IAM - Latam - Aray - Controil | C12: 2023-06-01
A13: =_xlfn.XLOOKUP(B13,SEGMENTOS!B:B,SEGMENTOS!A:A) -> 17287 | B13: IAM - Latam - Fapan - Controil | C13: 2023-06-01
A14: =_xlfn.XLOOKUP(B14,SEGMENTOS!B:B,SEGMENTOS!A:A) -> 17288 | B14: IAM - Latam - SSC - Controil | C14: 2023-06-01
A15: =_xlfn.XLOOKUP(B15,SEGMENTOS!B:B,SEGMENTOS!A:A) -> 17289 | B15: IAM - Latam - Fras-le | C15: 2023-06-01
A16: =_xlfn.XLOOKUP(B16,SEGMENTOS!B:B,SEGMENTOS!A:A) -> 17290 | B16: IAM - Latam - Aray - Fras-le | C16: 2023-06-01
A17: =_xlfn.XLOOKUP(B17,SEGMENTOS!B:B,SEGMENTOS!A:A) -> 17291 | B17: IAM - Latam - Fapan - Fras-le | C17: 2023-06-01
A18: =_xlfn.XLOOKUP(B18,SEGMENTOS!B:B,SEGMENTOS!A:A) -> 17292 | B18: IAM - Latam - SSC - Fras-le | C18: 2023-06-01
A19: =_xlfn.XLOOKUP(B19,SEGMENTOS!B:B,SEGMENTOS!A:A) -> 17293 | B19: IAM - Latam - Fremax | C19: 2023-06-01
A20: =_xlfn.XLOOKUP(B20,SEGMENTOS!B:B,SEGMENTOS!A:A) -> 17294 | B20: IAM - Latam - Aray - Fremax | C20: 2023-06-01
A21: =_xlfn.XLOOKUP(B21,SEGMENTOS!B:B,SEGMENTOS!A:A) -> 17295 | B21: IAM - Latam - SSC - Fremax | C21: 2023-06-01
A22: =_xlfn.XLOOKUP(B22,SEGMENTOS!B:B,SEGMENTOS!A:A) -> 17296 | B22: IAM - Latam - Nakata | C22: 2023-06-01
A23: =_xlfn.XLOOKUP(B23,SEGMENTOS!B:B,SEGMENTOS!A:A) -> 17297 | B23: IAM - Latam - Aray - Nakata | C23: 2023-06-01
A24: =_xlfn.XLOOKUP(B24,SEGMENTOS!B:B,SEGMENTOS!A:A) -> 17298 | B24: IAM - Latam - Fapan - Nakata | C24: 2023-06-01
A25: =_xlfn.XLOOKUP(B25,SEGMENTOS!B:B,SEGMENTOS!A:A) -> 17299 | B25: IAM - Latam - SSC - Nakata | C25: 2023-06-01
A26: =_xlfn.XLOOKUP(B26,SEGMENTOS!B:B,SEGMENTOS!A:A) -> 17300 | B26: IAM - Latam - Aray - Agustin Barrutia / Leonardo Sanguinetti | C26: 2023-06-01
A27: =_xlfn.XLOOKUP(B27,SEGMENTOS!B:B,SEGMENTOS!A:A) -> 17301 | B27: IAM - Latam - Aray - Alejandro Saud | C27: 2023-06-01
A28: =_xlfn.XLOOKUP(B28,SEGMENTOS!B:B,SEGMENTOS!A:A) -> 17302 | B28: IAM - Latam - Aray - Esteban Gammacurta | C28: 2023-06-01
A29: =_xlfn.XLOOKUP(B29,SEGMENTOS!B:B,SEGMENTOS!A:A) -> 17303 | B29: IAM - Latam - Aray - Franco Stagno | C29: 2023-06-01
A30: =_xlfn.XLOOKUP(B30,SEGMENTOS!B:B,SEGMENTOS!A:A) -> 17304 | B30: IAM - Latam - Aray - Gaston Tula | C30: 2023-06-01
A31: =_xlfn.XLOOKUP(B31,SEGMENTOS!B:B,SEGMENTOS!A:A) -> 17305 | B31: IAM - Latam - Aray - Mario Figola | C31: 2023-06-01
A32: =_xlfn.XLOOKUP(B32,SEGMENTOS!B:B,SEGMENTOS!A:A) -> 17306 | B32: IAM - Latam - Aray - Martin Piparuolo | C32: 2023-06-01
A33: =_xlfn.XLOOKUP(B33,SEGMENTOS!B:B,SEGMENTOS!A:A) -> 17307 | B33: IAM - Latam - Dirección | C33: 2023-06-01
A34: =_xlfn.XLOOKUP(B34,SEGMENTOS!B:B,SEGMENTOS!A:A) -> 17308 | B34: IAM - Latam - Gestores de Marketing | C34: 2023-06-01
A35: =_xlfn.XLOOKUP(B35,SEGMENTOS!B:B,SEGMENTOS!A:A) -> 17309 | B35: IAM - Latam - Gestores de Vendas | C35: 2023-06-01
A36: =_xlfn.XLOOKUP(B36,SEGMENTOS!B:B,SEGMENTOS!A:A) -> 17310 | B36: IAM - Latam - Gestores de Compras | C36: 2023-06-01
A37: =_xlfn.XLOOKUP(B37,SEGMENTOS!B:B,SEGMENTOS!A:A) -> 17311 | B37: IAM - Latam - Gestores de Logística | C37: 2023-06-01
A38: =_xlfn.XLOOKUP(B38,SEGMENTOS!B:B,SEGMENTOS!A:A) -> 17312 | B38: IAM - Latam - Gestores de Negócios | C38: 2023-06-01
A39: =_xlfn.XLOOKUP(B39,SEGMENTOS!B:B,SEGMENTOS!A:A) -> 17313 | B39: IAM - Latam - Aray - Dirección | C39: 2023-06-01
A40: =_xlfn.XLOOKUP(B40,SEGMENTOS!B:B,SEGMENTOS!A:A) -> 17314 | B40: IAM - Latam - Aray - Gestores de Compras | C40: 2023-06-01
A41: =_xlfn.XLOOKUP(B41,SEGMENTOS!B:B,SEGMENTOS!A:A) -> 17315 | B41: IAM - Latam - Aray - Gestores de Negócios | C41: 2023-06-01
A42: =_xlfn.XLOOKUP(B42,SEGMENTOS!B:B,SEGMENTOS!A:A) -> 17316 | B42: IAM - Latam - Fapan — Dirección | C42: 2023-06-01
A43: =_xlfn.XLOOKUP(B43,SEGMENTOS!B:B,SEGMENTOS!A:A) -> 17317 | B43: IAM - Latam - Fapan - Gestores de Compras | C43: 2023-06-01
A44: =_xlfn.XLOOKUP(B44,SEGMENTOS!B:B,SEGMENTOS!A:A) -> 17318 | B44: IAM - Latam - Fapan - Gestores de Negócios | C44: 2023-06-01
A45: =_xlfn.XLOOKUP(B45,SEGMENTOS!B:B,SEGMENTOS!A:A) -> 17319 | B45: IAM - Latam - SSC - Dirección | C45: 2023-06-01
A46: =_xlfn.XLOOKUP(B46,SEGMENTOS!B:B,SEGMENTOS!A:A) -> 17320 | B46: IAM - Latam - SSC - Gestores de Compras | C46: 2023-06-01
A47: =_xlfn.XLOOKUP(B47,SEGMENTOS!B:B,SEGMENTOS!A:A) -> 17321 | B47: IAM - Latam - SSC - Gestores de Negócios | C47: 2023-06-01
A48: =_xlfn.XLOOKUP(B48,SEGMENTOS!B:B,SEGMENTOS!A:A) -> 17322 | B48: IAM - Latam - Aray - Clientes A | C48: 2023-06-01
A49: =_xlfn.XLOOKUP(B49,SEGMENTOS!B:B,SEGMENTOS!A:A) -> 17323 | B49: IAM - Latam - Aray - Clientes B | C49: 2023-06-01
A50: =_xlfn.XLOOKUP(B50,SEGMENTOS!B:B,SEGMENTOS!A:A) -> 17324 | B50: IAM - Latam - Aray - Clientes C | C50: 2023-06-01
A51: =_xlfn.XLOOKUP(B51,SEGMENTOS!B:B,SEGMENTOS!A:A) -> 17325 | B51: IAM - Latam - Linea Liviana | C51: 2023-06-01
A52: =_xlfn.XLOOKUP(B52,SEGMENTOS!B:B,SEGMENTOS!A:A) -> 17326 | B52: IAM - Latam - Linea Pesada | C52: 2023-06-01
A53: =_xlfn.XLOOKUP(B53,SEGMENTOS!B:B,SEGMENTOS!A:A) -> 17327 | B53: IAM - Latam - Ambas líneas: Liviana y Pesada | C53: 2023-06-01
A54: =_xlfn.XLOOKUP(B54,SEGMENTOS!B:B,SEGMENTOS!A:A) -> 17328 | B54: IAM - Latam - Aray - Linea Liviana | C54: 2023-06-01
A55: =_xlfn.XLOOKUP(B55,SEGMENTOS!B:B,SEGMENTOS!A:A) -> 17329 | B55: IAM - Latam - Aray - Linea Pesada | C55: 2023-06-01
A56: =_xlfn.XLOOKUP(B56,SEGMENTOS!B:B,SEGMENTOS!A:A) -> 17330 | B56: IAM - Latam - Aray - Ambas líneas: Liviana y Pesada | C56: 2023-06-01
A57: =_xlfn.XLOOKUP(B57,SEGMENTOS!B:B,SEGMENTOS!A:A) -> 17331 | B57: IAM - Latam - Fapan - Linea Liviana | C57: 2023-06-01
A58: =_xlfn.XLOOKUP(B58,SEGMENTOS!B:B,SEGMENTOS!A:A) -> 17332 | B58: IAM - Latam - Fapan - Linea Pesada | C58: 2023-06-01
A59: =_xlfn.XLOOKUP(B59,SEGMENTOS!B:B,SEGMENTOS!A:A) -> 17333 | B59: IAM - Latam - Fapan - Ambas líneas: Liviana y Pesada | C59: 2023-06-01
A60: =_xlfn.XLOOKUP(B60,SEGMENTOS!B:B,SEGMENTOS!A:A) -> 17334 | B60: IAM - Latam - SSC - Linea Liviana | C60: 2023-06-01
A61: =_xlfn.XLOOKUP(B61,SEGMENTOS!B:B,SEGMENTOS!A:A) -> 17335 | B61: IAM - Latam - SSC - Linea Pesada | C61: 2023-06-01
A62: =_xlfn.XLOOKUP(B62,SEGMENTOS!B:B,SEGMENTOS!A:A) -> 17336 | B62: IAM - Latam - SSC - Ambas líneas: Liviana y Pesada | C62: 2023-06-01

Sheet COMENTARIOS
A1: Area_dimensao | B1: Comentário | C1: Classificacao | D1: Segmento | E1: Macrorregião | F1: BU | G1: VISUALIZA01 | H1: VISUALIZA02
A2: Compra | B2: A modo de crítica unicamente el tema de stock de algunas referencias, tenemos pieza que no ingresaron en el ultimo año por ejemplo. | D2: Aftermarket | E2: Latam | F2: ARAY | G2: 17281 | H2: 17282
A3: Compra | B3: Elogios con Frasle todos, solo que en el último tiempo tambien estuvieron un poco flojos respecto del stock de referencias de alta rotación. Asi como tambien el lanzamiento tardio de algunos modelos que son top en venta dentro de nuestro mercado, como por ejemplo la pastillas del cronos nuevo. | D3: Aftermarket | E3: Latam | F3: ARAY | G3: 17281 | H3: 17282
A4: Compra | B4: A nuestro criterio una de las lineas que mejor se posiciona. Seria ideal copiar la politica de lanzamientos para el resto de las marcas. | D4: Aftermarket | E4: Latam | F4: ARAY | G4: 17281 | H4: 17282
A5: Compra | B5: Nakata en lineas generales está muy bien, pero tambien nos encontramos con momentos de escaces de referencias importantes. | D5: Aftermarket | E5: Latam | F5: ARAY | G5: 17281 | H5: 17282
A6: Compra | B6: El cliente evalúa que Frasle Mobility lanza muchos productos al mercado y concluye que es casi imposible que el vendedor siga la evolución de este proceso, conociendo en detalle cualquiera de los productos. Por esta razón, el cliente otorga una puntuación satisfactoria como 7 o 8. En términos de flexibilidad en la negociación, el cliente evalúa que no hay una persona de contacto dentro de Frasle Mobility que preste algo de atención al mercado uruguayo. Comenta que muchas veces queda sin respuestas a sus preguntas. Y, con excepción de Fremax, la falta de una persona de contacto en las otras marcas lo deja perdido sobre cómo resolver un tema que necesita negociar. | D6: Aftermarket | E6: Latam | F6: ARAY | G6: 17281 | H6: 17282
A7: Compra | B7: El cliente evalúa que Frasle Mobility lanza muchos productos al mercado y concluye que es casi imposible que el vendedor siga la evolución de este proceso, conociendo en detalle cualquiera de los productos. Por esta razón, el cliente otorga una puntuación satisfactoria como 7 o 8. En términos de flexibilidad en la negociación, el cliente evalúa que no hay una persona de contacto dentro de Frasle Mobility que preste algo de atención al mercado uruguayo. Comenta que muchas veces queda sin respuestas a sus preguntas. Y, con excepción de Fremax, la falta de una persona de contacto en las otras marcas lo deja perdido sobre cómo resolver un tema que necesita negociar. | D7: Aftermarket | E7: Latam | F7: ARAY | G7: 17281 | H7: 17282
A8: Compra | B8: El cliente evalúa que Frasle Mobility lanza muchos productos al mercado y concluye que es casi imposible que el vendedor siga la evolución de este proceso, conociendo en detalle cualquiera de los productos. Por esta razón, el cliente otorga una puntuación satisfactoria como 7 o 8. | D8: Aftermarket | E8: Latam | F8: ARAY | G8: 17281 | H8: 17282
A9: Compra | B9: El cliente evalúa que Frasle Mobility lanza muchos productos al mercado y concluye que es casi imposible que el vendedor siga la evolución de este proceso, conociendo en detalle cualquiera de los productos. Por esta razón, el cliente otorga una puntuación satisfactoria como 7 o 8. En términos de flexibilidad en la negociación, el cliente evalúa que no hay una persona de contacto dentro de Frasle Mobility que preste algo de atención al mercado uruguayo. Comenta que muchas veces queda sin respuestas a sus preguntas. Y, con excepción de Fremax, la falta de una persona de contacto en las otras marcas lo deja perdido sobre cómo resolver un tema que necesita negociar. | D9: Aftermarket | E9: Latam | F9: ARAY | G9: 17281 | H9: 17282
A10: Compra | B10: Cliente informa que compra muy poco piezas Fras-le. Case nada. | D10: Aftermarket | E10: Latam | F10: FAPAN | G10: 17281 | H10: 17283
A11: Compra | B11: El cliente informa que Fremax no tenía un distribuidor en Guatemala y estaba buscando uno, pero cuando cerraron el negocio, se dieron cuenta de que los precios de otro distribuidor eran mucho mejores, entre un 20% y un 30% más baratos que los precios que estaban aplicando, lo que les dio una mala reputación como distribuidores muy caros. Realizaron una reunión muy directiva para alinear los precios. | D11: Aftermarket | E11: Latam | F11: FAPAN | G11: 17281 | H11: 17283
A12: Compra | B12: Actualmente con el cambio de asesor esperamos evaluar esos resultados, sin embrago la comunicación es fluida, esperamos más orden y mejor información brindada por la persona de ventas que atiende nuestra cuenta | D12: Aftermarket | E12: Latam | F12: FAPAN | G12: 17281 | H12: 17283
A13: Compra | B13: Actualmente con el cambio de asesor esperamos evaluar esos resultados, sin embrago la comunicación es fluida, esperamos más orden y mejor información brindada por la persona de ventas que atiende nuestra cuenta | D13: Aftermarket | E13: Latam | F13: FAPAN | G13: 17281 | H13: 17283
A14: Compra | B14: Actualmente con el cambio de asesor esperamos evaluar esos resultados, sin embrago la comunicación es fluida, esperamos más orden y mejor información brindada por la persona de ventas que atiende nuestra cuenta | D14: Aftermarket | E14: Latam | F14: FAPAN | G14: 17281 | H14: 17283
A15: Compra | B15: El cliente informa que tiene audiencia directa con el vendedor de Frasle que atiende a la empresa y que, cualquier consulta o tema que necesite resolver, siempre obtiene respuestas rápidas y efectivas. En términos de flexibilidad, en la situación en que tuvieron que sortear y negociar con Frasle Mobility, la empresa fue bastante flexible y aceptó ajustar los términos del acuerdo. No tienen soporte tecnico en Chile. | D15: Aftermarket | E15: Latam | F15: SSC | G15: 17281 | H15: 17284
A16: Compra | B16: De manera general, no solo para Controil, cuando se pasa el pedido al depósito o a otra área, la respuesta no es muy rápida. La única persona que responde rápido es Martín (área comercial). Si se pasa la necesidad o duda a él, todo se resuelve rápidamente. Además, entiende que la empresa no ofrece flexibilidad en el proceso de Compras. Siempre es de la misma manera, tanto en términos de precio como de plazo de pago. | D16: Aftermarket | E16: Latam | F16: ARAY | G16: 17281 | H16: 17282
A17: Compra | B17: De manera general, no solo para Frasle, cuando se pasa el pedido al depósito o a otra área, la respuesta no es muy rápida. La única persona que responde rápido es Martín (área comercial). Si se pasa la necesidad o duda a él, todo se resuelve rápidamente. Además, entiende que la empresa no ofrece flexibilidad en el proceso de Compras. Siempre es de la misma manera, tanto en términos de precio como de plazo de pago. | D17: Aftermarket | E17: Latam | F17: ARAY | G17: 17281 | H17: 17282
A18: Compra | B18: De manera general, no solo para Fremax, cuando se pasa el pedido al depósito o a otra área, la respuesta no es muy rápida. La única persona que responde rápido es Martín (área comercial). Si se pasa la necesidad o duda a él, todo se resuelve rápidamente. Además, entiende que la empresa no ofrece flexibilidad en el proceso de Compras. Siempre es de la misma manera, tanto en términos de precio como de plazo de pago. | D18: Aftermarket | E18: Latam | F18: ARAY | G18: 17281 | H18: 17282
A19: Compra | B19: Siempre en tiempo y forma, excelente. | D19: Aftermarket | E19: Latam | F19: ARAY | G19: 17281 | H19: 17282
A20: Compra | B20: EN EL PROCESO DE COMPRA DE FRASLE HAY MUCHOS ERRORES EN LA CARGA DEL PEDIDO,EN LA ENTREGA DEL PEDIDO,LA ATENCION DE VENTAS ES REGULAR,REFERIDO AL TIEMPO DE RESPUESTA,NO HAY MANERA SE SABER LO QUE QUEDA PENDIENTE PORQUE MUCHOS ARTICULOS DESAPARECEN DEL SISTEMA Y NADIE SABE PORQUE. MUCHO FALTANTE Y SIN RESPUESTA RAPIDA,DEMORA EN NUEVOS PRODUCTOS. | D20: Aftermarket | E20: Latam | F20: ARAY | G20: 17281 | H20: 17282
A21: Compra | B21: poco stock | D21: Aftermarket | E21: Latam | F21: ARAY | G21: 17281 | H21: 17282
A22: Compra | B22: faltan completar nuevas pastillas | D22: Aftermarket | E22: Latam | F22: ARAY | G22: 17281 | H22: 17282
A23: Compra | B23: algunos kits estan mas caros que comprandolo x separado | D23: Aftermarket | E23: Latam | F23: ARAY | G23: 17281 | H23: 17282
A24: Compra | B24: En este tiempo han mejorado en el stock de productos. Pero hemos tenido muchos faltantes. Me gustaria me permiran vender ademas de los discos tensa los fremax... | D24: Aftermarket | E24: Latam | F24: ARAY | G24: 17281 | H24: 17282
A25: Compra | B25: La linea de productos que nosotros comercializamos son las mazas de rueda y las homocineticas. Han mejorado un monton en el stock y el precio calidad y precios es muy bueno. Hemos logrado insertar muy bien en el mercado de nuestra zona las mazas . Pero debemos ajustar aun mas la disponibilidad de stock. | D25: Aftermarket | E25: Latam | F25: ARAY | G25: 17281 | H25: 17282
A26: Compra | B26: El cliente considera que la atención comercial es muy buena, tanto en términos de la frecuencia de visitas del vendedor como en la dedicación que ofrece a la empresa, así como por el conocimiento y la especialización que posee. En cuanto a la flexibilidad en la negociación, es claro al señalar que Frasle no muestra ninguna flexibilidad. Es muy burocrática, ya sea en la forma de pago, descuentos, plazos, etc., sin aceptar ninguna de las solicitudes del cliente, lo cual considera un impacto negativo, ya que no ve oportunidades para realizar compras mayores ni para estrechar aún más los negocios. | D26: Aftermarket | E26: Latam | F26: ARAY | G26: 17281 | H26: 17282
A27: Compra | B27: El cliente considera que la atención comercial es muy buena, tanto en términos de la frecuencia de visitas del vendedor como en la dedicación que ofrece a la empresa, así como por el conocimiento y la especialización que posee. En cuanto a la flexibilidad en la negociación, es claro al señalar que Frasle no muestra ninguna flexibilidad. Es muy burocrática, ya sea en la forma de pago, descuentos, plazos, etc., sin aceptar ninguna de las solicitudes del cliente, lo cual considera un impacto negativo, ya que no ve oportunidades para realizar compras mayores ni para estrechar aún más los negocios. | D27: Aftermarket | E27: Latam | F27: ARAY | G27: 17281 | H27: 17282
A28: Compra | B28: El cliente considera que la atención comercial es muy buena, tanto en términos de la frecuencia de visitas del vendedor como en la dedicación que ofrece a la empresa, así como por el conocimiento y la especialización que posee. En cuanto a la flexibilidad en la negociación, es claro al señalar que Frasle no muestra ninguna flexibilidad. Es muy burocrática, ya sea en la forma de pago, descuentos, plazos, etc., sin aceptar ninguna de las solicitudes del cliente, lo cual considera un impacto negativo, ya que no ve oportunidades para realizar compras mayores ni para estrechar aún más los negocios. | D28: Aftermarket | E28: Latam | F28: ARAY | G28: 17281 | H28: 17282
A29: Compra | B29: EXCELENTE RESPUESTA Y ATENCION | D29: Aftermarket | E29: Latam | F29: ARAY | G29: 17281 | H29: 17282
A30: Compra | B30: EXCELENTE RESPUESTA Y ATENCION | D30: Aftermarket | E30: Latam | F30: ARAY | G30: 17281 | H30: 17282
A31: Compra | B31: El cliente comenta que Frasle representa dos momentos para él: la primera Frasle les enseñó a pensar, a hacer negocios, a pasar de un comerciante a convertirse en un distribuidor, un gran socio comercial. La segunda Frasle es la que está hoy: una empresa que se preocupa mucho por su resultado financiero y que es deshumanizada. Esto hace que la relación entre las empresas del cliente y Frasle sea una condición más fría actualmente, lo cual es malo para todos, según el cliente. | D31: Aftermarket | E31: Latam | F31: ARAY | G31: 17281 | H31: 17282
A32: Compra | B32: El cliente comenta que Frasle representa dos momentos para él: la primera Frasle les enseñó a pensar, a hacer negocios, a pasar de un comerciante a convertirse en un distribuidor, un gran socio comercial. La segunda Frasle es la que está hoy: una empresa que se preocupa mucho por su resultado financiero y que es deshumanizada. Esto hace que la relación entre las empresas del cliente y Frasle sea una condición más fría actualmente, lo cual es malo para todos, según el cliente. | D32: Aftermarket | E32: Latam | F32: ARAY | G32: 17281 | H32: 17282
A33: Compra | B33: El cliente comenta que Frasle representa dos momentos para él: la primera Frasle les enseñó a pensar, a hacer negocios, a pasar de un comerciante a convertirse en un distribuidor, un gran socio comercial. La segunda Frasle es la que está hoy: una empresa que se preocupa mucho por su resultado financiero y que es deshumanizada. Esto hace que la relación entre las empresas del cliente y Frasle sea una condición más fría actualmente, lo cual es malo para todos, según el cliente. | D33: Aftermarket | E33: Latam | F33: ARAY | G33: 17281 | H33: 17282
A34: Compra | B34: Buena calidad. Mejoraría El packaging Faltan propuestas de ofertas plazos etc | D34: Aftermarket | E34: Latam | F34: ARAY | G34: 17281 | H34: 17282
A35: Compra | B35: Excelente producto Faltan promociones de venta y propuestas comerciales | D35: Aftermarket | E35: Latam | F35: ARAY | G35: 17281 | H35: 17282
A36: Compra | B36: En la mayoría de los casos encuentro en el equipo de Fras-le una atención y una respuesta muy ágil y atenta. El conocimiento del equipo en la mayoría de los casos es excelente, tienen conocimiento de la mayoría de los casos. Encuentro en los comerciales de Fras-le flexibilidad y apoyo a la hora de negociar. | D36: Aftermarket | E36: Latam | F36: FAPAN | G36: 17281 | H36: 17283
A37: Compra | B37: Como critica o sugerencia seria adecuar un poco los precios para ser mas competitivos en el mercado. Como elogio el producto es exelente, lo mejor. en cuanto a la atencion del vendedor ( sr Gaston Tula ) lo mejor, siempre muy cordial y predispuesto a solucionar y responder todas nuestras inquietudes. | D37: Aftermarket | E37: Latam | F37: ARAY | G37: 17281 | H37: 17282
A38: Compra | B38: Durante muchos años, el cliente fue atendido por un vendedor altamente especializado, con gran proactividad y excelencia en el trabajo realizado. Sin embargo, actualmente, el vendedor que los atiende aún no tiene el mismo nivel de conocimiento que el anterior, aunque ha evolucionado considerablemente y está acercándose a las expectativas. Es importante resaltar que este período de adaptación ha sido bastante desafiante. El cliente mencionó varios puntos, como la necesidad de respuestas más rápidas y la realización de consultas frecuentes sobre condiciones comerciales, entre otros. En cuanto a la flexibilidad, el cliente no considera que Frasle sea lo suficientemente abierta para negociar. Entiende que la política de la empresa ha sido establecida, pero considera que hay poco margen para ajustes. Teniendo en cuenta la situación económica desafiante en Argentina, con frecuentes altibajos, el cliente cree que sería esencial que la empresa ofrezca mayor flexibilidad en las negociaciones | D38: Aftermarket | E38: Latam | F38: ARAY | G38: 17281 | H38: 17282
A39: Compra | B39: Durante muchos años, el cliente fue atendido por un vendedor altamente especializado, con gran proactividad y excelencia en el trabajo realizado. Sin embargo, actualmente, el vendedor que los atiende aún no tiene el mismo nivel de conocimiento que el anterior, aunque ha evolucionado considerablemente y está acercándose a las expectativas. Es importante resaltar que este período de adaptación ha sido bastante desafiante. El cliente mencionó varios puntos, como la necesidad de respuestas más rápidas y la realización de consultas frecuentes sobre condiciones comerciales, entre otros. En cuanto a la flexibilidad, el cliente no considera que Frasle sea lo suficientemente abierta para negociar. Entiende que la política de la empresa ha sido establecida, pero considera que hay poco margen para ajustes. Teniendo en cuenta la situación económica desafiante en Argentina, con frecuentes altibajos, el cliente cree que sería esencial que la empresa ofrezca mayor flexibilidad en las negociaciones | D39: Aftermarket | E39: Latam | F39: ARAY | G39: 17281 | H39: 17282
A40: Compra | B40: Durante muchos años, el cliente fue atendido por un vendedor altamente especializado, con gran proactividad y excelencia en el trabajo realizado. Sin embargo, actualmente, el vendedor que los atiende aún no tiene el mismo nivel de conocimiento que el anterior, aunque ha evolucionado considerablemente y está acercándose a las expectativas. Es importante resaltar que este período de adaptación ha sido bastante desafiante. El cliente mencionó varios puntos, como la necesidad de respuestas más rápidas y la realización de consultas frecuentes sobre condiciones comerciales, entre otros. En cuanto a la flexibilidad, el cliente no considera que Frasle sea lo suficientemente abierta para negociar. Entiende que la política de la empresa ha sido establecida, pero considera que hay poco margen para ajustes. Teniendo en cuenta la situación económica desafiante en Argentina, con frecuentes altibajos, el cliente cree que sería esencial que la empresa ofrezca mayor flexibilidad en las negociaciones | D40: Aftermarket | E40: Latam | F40: ARAY | G40: 17281 | H40: 17282
A41: Compra | B41: Nos sentimos muy defraudados con la negociación inicial por haber obtenido precios muy superiores a un competidor local, pero la reacción de Fras-le ha sido lo suficientemente alentadora para seguir con la marca. | D41: Aftermarket | E41: Latam | F41: FAPAN | G41: 17281 | H41: 17283
A42: Compra | B42: tem uma comunicação direta e bo. Foram flexibilidade. Não tem suporte em Chile. | D42: Aftermarket | E42: Latam | F42: ARAY | G42: 17281 | H42: 17282
A43: Compra | B43: NECESITAMOS MEJORES CONDICIONES COMERCIALES PARA COMPETIR EN NUESTRO MERCADO | D43: Aftermarket | E43: Latam | F43: ARAY | G43: 17281 | H43: 17282
A44: Compra | B44: En general, para todas las marcas - y no solo para Controil -, sería mejor tener menos visitas personales y más contacto telefónico, ya que las personas en la empresa del Sr. Cristian siempre están muy ocupadas y muchas veces tienen que dejar lo que están haciendo para atender a los vendedores. Todo esto agilizaría mucho el proceso de conocimiento de nuevos productos o incluso de solución ante cualquier inconveniente/necesidad que se tenga en la empresa. | D44: Aftermarket | E44: Latam | F44: ARAY | G44: 17281 | H44: 17282
A45: Compra | B45: Para el Señor Cristian, Fremax es la marca con mayor expresión. | D45: Aftermarket | E45: Latam | F45: ARAY | G45: 17281 | H45: 17282
A46: Compra | B46: El cliente elogia a Frasle Mobility por su flexibilidad, destacando la colaboración eficaz entre los equipos técnico y comercial, lo que resulta en soluciones rápidas y eficientes. Este enfoque colaborativo ha sido fundamental para la empresa, permitiendo la personalización de soluciones según las necesidades específicas de cada cliente, fortaleciendo así la relación de larga data. | D46: Aftermarket | E46: Latam | F46: SSC | G46: 17281 | H46: 17284
A47: Compra | B47: El cliente elogia a Frasle Mobility por su flexibilidad, destacando la colaboración eficaz entre los equipos técnico y comercial, lo que resulta en soluciones rápidas y eficientes. Este enfoque colaborativo ha sido fundamental para la empresa, permitiendo la personalización de soluciones según las necesidades específicas de cada cliente, fortaleciendo así la relación de larga data. | D47: Aftermarket | E47: Latam | F47: SSC | G47: 17281 | H47: 17284
A48: Compra | B48: El cliente elogia a Frasle Mobility por su flexibilidad, destacando la colaboración eficaz entre los equipos técnico y comercial, lo que resulta en soluciones rápidas y eficientes. Este enfoque colaborativo ha sido fundamental para la empresa, permitiendo la personalización de soluciones según las necesidades específicas de cada cliente, fortaleciendo así la relación de larga data. | D48: Aftermarket | E48: Latam | F48: SSC | G48: 17281 | H48: 17284
A49: Compra | B49: El cliente comenta que el vendedor prácticamente no se presenta. Normalmente lo visita una vez al año. En cuanto a la comunicación, se da una vez al mes. Es decir, no está presente... y el problema no es la distancia, ya que no hace el esfuerzo por establecer contacto. Sobre la flexibilidad en la negociación, menciona que no es flexible. El cliente cree que la inestabilidad de la economía del país hace que Frasle no sea flexible en las negociaciones. Dice que ya ha intentado negociar diversos temas en varias ocasiones y nunca han tenido nada aceptado por parte de Frasle. | D49: Aftermarket | E49: Latam | F49: ARAY | G49: 17281 | H49: 17282
A50: Compra | B50: El cliente comenta que el vendedor prácticamente no se presenta. Normalmente lo visita una vez al año. En cuanto a la comunicación, se da una vez al mes. Es decir, no está presente... y el problema no es la distancia, ya que no hace el esfuerzo por establecer contacto. Sobre la flexibilidad en la negociación, menciona que no es flexible. El cliente cree que la inestabilidad de la economía del país hace que Frasle no sea flexible en las negociaciones. Dice que ya ha intentado negociar diversos temas en varias ocasiones y nunca han tenido nada aceptado por parte de Frasle. | D50: Aftermarket | E50: Latam | F50: ARAY | G50: 17281 | H50: 17282
A51: Compra | B51: El cliente comenta que el vendedor prácticamente no se presenta. Normalmente lo visita una vez al año. En cuanto a la comunicación, se da una vez al mes. Es decir, no está presente... y el problema no es la distancia, ya que no hace el esfuerzo por establecer contacto. Sobre la flexibilidad en la negociación, menciona que no es flexible. El cliente cree que la inestabilidad de la economía del país hace que Frasle no sea flexible en las negociaciones. Dice que ya ha intentado negociar diversos temas en varias ocasiones y nunca han tenido nada aceptado por parte de Frasle. | D51: Aftermarket | E51: Latam | F51: ARAY | G51: 17281 | H51: 17282
A52: Compra | B52: El cliente considera que el número de visitas es adecuado. Menciona que no son muchas, pero suficientes. En cuanto a la competencia del vendedor, informa que el vendedor que lo atiende actualmente no es muy especializado/capacitado, ya que siempre que se hace una pregunta, el vendedor tiene que consultar algo, es decir, no tiene la respuesta inmediata. Algunos ejemplos son sobre la aplicación para qué vehículo va, cuál es la mejor pastilla para cada vehículo, en resumen, términos técnicos específicos. En cuanto a la flexibilidad en la negociación, considera que Frasle no es muy rígida, pero tampoco flexible, ya que las propuestas ya están determinadas por la empresa, con precios y plazos definidos, sin hacer ninguna concesión. | D52: Aftermarket | E52: Latam | F52: ARAY | G52: 17281 | H52: 17282
A53: Compra | B53: El cliente considera que el número de visitas es adecuado. Menciona que no son muchas, pero suficientes. En cuanto a la competencia del vendedor, informa que el vendedor que lo atiende actualmente no es muy especializado/capacitado, ya que siempre que se hace una pregunta, el vendedor tiene que consultar algo, es decir, no tiene la respuesta inmediata. Algunos ejemplos son sobre la aplicación para qué vehículo va, cuál es la mejor pastilla para cada vehículo, en resumen, términos técnicos específicos. En cuanto a la flexibilidad en la negociación, considera que Frasle no es muy rígida, pero tampoco flexible, ya que las propuestas ya están determinadas por la empresa, con precios y plazos definidos, sin hacer ninguna concesión. | D53: Aftermarket | E53: Latam | F53: ARAY | G53: 17281 | H53: 17282
A54: Compra | B54: El cliente considera que el número de visitas es adecuado. Menciona que no son muchas, pero suficientes. En cuanto a la competencia del vendedor, informa que el vendedor que lo atiende actualmente no es muy especializado/capacitado, ya que siempre que se hace una pregunta, el vendedor tiene que consultar algo, es decir, no tiene la respuesta inmediata. Algunos ejemplos son sobre la aplicación para qué vehículo va, cuál es la mejor pastilla para cada vehículo, en resumen, términos técnicos específicos. En cuanto a la flexibilidad en la negociación, considera que Frasle no es muy rígida, pero tampoco flexible, ya que las propuestas ya están determinadas por la empresa, con precios y plazos definidos, sin hacer ninguna concesión. | D54: Aftermarket | E54: Latam | F54: ARAY | G54: 17281 | H54: 17282
A55: Compra | B55: El cliente considera que el número de visitas es adecuado. Menciona que no son muchas, pero suficientes. En cuanto a la competencia del vendedor, informa que el vendedor que lo atiende actualmente no es muy especializado/capacitado, ya que siempre que se hace una pregunta, el vendedor tiene que consultar algo, es decir, no tiene la respuesta inmediata. Algunos ejemplos son sobre la aplicación para qué vehículo va, cuál es la mejor pastilla para cada vehículo, en resumen, términos técnicos específicos. En cuanto a la flexibilidad en la negociación, considera que Frasle no es muy rígida, pero tampoco flexible, ya que las propuestas ya están determinadas por la empresa, con precios y plazos definidos, sin hacer ninguna concesión. | D55: Aftermarket | E55: Latam | F55: ARAY | G55: 17281 | H55: 17282
A56: Compra | B56: EL SOPORTE DE LAS PERSONAS ES ESMERADO Y EFICAZ PERO FALTA EL SOPORTE INFORMATICO (SEMAFORO CON STOCK PARA AGILIZAR LA CONSULTA) SEGUIMIENTO DEL ESTADO DE LOS PEDIDOS EN COLA DE PREPARACION EN PROCESO DESPACHADO AL EXPRESO. | D56: Aftermarket | E56: Latam | F56: ARAY | G56: 17281 | H56: 17282
A57: Compra | B57: EL SOPORTE DE LAS PERSONAS ES ESMERADO Y EFICAZ PERO FALTA EL SOPORTE INFORMATICO (SEMAFORO CON STOCK PARA AGILIZAR LA CONSULTA) SEGUIMIENTO DEL ESTADO DE LOS PEDIDOS EN COLA DE PREPARACION EN PROCESO DESPACHADO AL EXPRESO. | D57: Aftermarket | E57: Latam | F57: ARAY | G57: 17281 | H57: 17282
A58: Compra | B58: Empresa sería y muy atenta con el cliente pero hay muchos art del grupo que ya no los comercializan y es lamentable ya que se pierde la venta | D58: Aftermarket | E58: Latam | F58: ARAY | G58: 17281 | H58: 17282
A59: Compra | B59: Falta de supervisión en el embalado de producto (ítems incompletos). | D59: Aftermarket | E59: Latam | F59: SSC | G59: 17281 | H59: 17284
A60: Compra | B60: ​El cliente comenta que recibe un excelente servicio por parte del vendedor y todo el equipo comercial. Sin embargo, menciona que existe poca flexibilidad en los plazos de pago, ya que solo dispone de 30 días para abonar las facturas, plazo que considera corto. Informa que la competencia ofrece plazos más largos, por lo que utiliza este aspecto como referencia. Además, señala que los precios son competitivos en todas las marcas. | D60: Aftermarket | E60: Latam | F60: ARAY | G60: 17281 | H60: 17282
A61: Compra | B61: ​El cliente comenta que recibe un excelente servicio por parte del vendedor y todo el equipo comercial. Sin embargo, menciona que existe poca flexibilidad en los plazos de pago, ya que solo dispone de 30 días para abonar las facturas, plazo que considera corto. Informa que la competencia ofrece plazos más largos, por lo que utiliza este aspecto como referencia. Además, señala que los precios son competitivos en todas las marcas. | D61: Aftermarket | E61: Latam | F61: ARAY | G61: 17281 | H61: 17282
A62: Compra | B62: ​El cliente comenta que recibe un excelente servicio por parte del vendedor y todo el equipo comercial. Sin embargo, menciona que existe poca flexibilidad en los plazos de pago, ya que solo dispone de 30 días para abonar las facturas, plazo que considera corto. Informa que la competencia ofrece plazos más largos, por lo que utiliza este aspecto como referencia. Además, señala que los precios son competitivos en todas las marcas. | D62: Aftermarket | E62: Latam | F62: ARAY | G62: 17281 | H62: 17282
A63: Compra | B63: R/ EN ALGUNAS OCASIONES SE PRESENTAN AJUSTES DE PRECIOS INDIVIDUALES QUE NO SON NOTIFICADOS DE FORMA PREVIA | D63: Aftermarket | E63: Latam | F63: FAPAN | G63: 17281 | H63: 17283
A64: Compra | B64: R/ EN ALGUNAS OCASIONES SE PRESENTAN AJUSTES DE PRECIOS INDIVIDUALES QUE NO SON NOTIFICADOS DE FORMA PREVIA | D64: Aftermarket | E64: Latam | F64: FAPAN | G64: 17281 | H64: 17283
A65: Compra | B65: R/ EN ALGUNAS OCASIONES SE PRESENTAN AJUSTES DE PRECIOS INDIVIDUALES QUE NO SON NOTIFICADOS DE FORMA PREVIA | D65: Aftermarket | E65: Latam | F65: FAPAN | G65: 17281 | H65: 17283
A66: Compra | B66: mal abastecimiento de NAKATA principalmente, sobre todo la familia amortiguadores | D66: Aftermarket | E66: Latam | F66: ARAY | G66: 17281 | H66: 17282
A67: Compra | B67: Falta disponibilidad del producto al momento del despacho | D67: Aftermarket | E67: Latam | F67: FAPAN | G67: 17281 | H67: 17283
A68: Compra | B68: Falta disponibilidad del producto al momento del despacho | D68: Aftermarket | E68: Latam | F68: FAPAN | G68: 17281 | H68: 17283
A69: Compra | B69: faltaria ampliar cantidad de productos del mercado argentino | D69: Aftermarket | E69: Latam | F69: ARAY | G69: 17281 | H69: 17282
A70: Compra | B70: hoy por hoy excelente disponibilidad de stock salvo algunos productos de pastillas que hace mucho tiempo vienen pendiente como el tema de patines de camionetas | D70: Aftermarket | E70: Latam | F70: ARAY | G70: 17281 | H70: 17282
A71: Compra | B71: hoy el stock es excelente, pocos pendientes | D71: Aftermarket | E71: Latam | F71: ARAY | G71: 17281 | H71: 17282
A72: Compra | B72: bajo margen para el distribuidopr, faltant constante de stock y variedad de productos. se podria trabajar mucho mejor pero no hay stock ni incentivos. | D72: Aftermarket | E72: Latam | F72: ARAY | G72: 17281 | H72: 17282
A73: Compra | B73: La compañia maneja un sistema de comercializacion que al distribuidor no le deja rentabilidad, es un producto de alta calidad pero no es representativo en la rentabilidad de una empresa. | D73: Aftermarket | E73: Latam | F73: ARAY | G73: 17281 | H73: 17282
A74: Compra | B74: A Favor: Rápida recepción y carga de pedidos. Muy buen control de artículos pendientes de entrega. En Contra: Faltante de algunos articulos. | D74: Aftermarket | E74: Latam | F74: ARAY | G74: 17281 | H74: 17282
A75: Compra | B75: Buen servicio. | D75: Aftermarket | E75: Latam | F75: ARAY | G75: 17281 | H75: 17282
A76: Compra | B76: La frecuencia de visitas de los vendedores es muy baja. Sin embargo, cuando necesitan hacer un pedido, la frecuencia aumenta, mostrando que Frasle se mueve cuando tiene interés. En resumen, no hay proactividad. Cuando tenemos nuevos productos, etc., no son muy flexibles. El cliente cree que esto ocurre tal vez porque no operan como una distribuidora, sino como un pequeño comercio. Por ejemplo, cuando hay una devolución de productos, normalmente tienen que pagar la factura primero para que luego vengan a retirar los productos, lo que implica mucho tiempo entre el pago de la factura y el momento en que reciben los valores de los clientes, lo que pesa demasiado para una empresa pequeña como la suya. | D76: Aftermarket | E76: Latam | F76: ARAY | G76: 17281 | H76: 17282
A77: Compra | B77: La frecuencia de visitas de los vendedores es muy baja. Sin embargo, cuando necesitan hacer un pedido, la frecuencia aumenta, mostrando que Frasle se mueve cuando tiene interés. En resumen, no hay proactividad. Cuando tenemos nuevos productos, etc., no son muy flexibles. El cliente cree que esto ocurre tal vez porque no operan como una distribuidora, sino como un pequeño comercio. Por ejemplo, cuando hay una devolución de productos, normalmente tienen que pagar la factura primero para que luego vengan a retirar los productos, lo que implica mucho tiempo entre el pago de la factura y el momento en que reciben los valores de los clientes, lo que pesa demasiado para una empresa pequeña como la suya. | D77: Aftermarket | E77: Latam | F77: ARAY | G77: 17281 | H77: 17282
A78: Compra | B78: La frecuencia de visitas de los vendedores es muy baja. Sin embargo, cuando necesitan hacer un pedido, la frecuencia aumenta, mostrando que Frasle se mueve cuando tiene interés. En resumen, no hay proactividad. Cuando tenemos nuevos productos, etc., no son muy flexibles. El cliente cree que esto ocurre tal vez porque no operan como una distribuidora, sino como un pequeño comercio. Por ejemplo, cuando hay una devolución de productos, normalmente tienen que pagar la factura primero para que luego vengan a retirar los productos, lo que implica mucho tiempo entre el pago de la factura y el momento en que reciben los valores de los clientes, lo que pesa demasiado para una empresa pequeña como la suya. | D78: Aftermarket | E78: Latam | F78: ARAY | G78: 17281 | H78: 17282
A79: Compra | B79: Falta de promocion de productos de acuerdo a nuestra necesidad de mercado | D79: Aftermarket | E79: Latam | F79: FAPAN | G79: 17281 | H79: 17283
A80: Compra | B80: Informar los desarrollos que son de interes en nuestro mercado o las diferencias de precios entre AF/700 Y AF/557 | D80: Aftermarket | E80: Latam | F80: FAPAN | G80: 17281 | H80: 17283
A81: Compra | B81: Cruce de referencias según la necesidad de componentes de dirección y amortiguadores visibilizar las diferentes calidades que tiene el proveedor en su principa linea de produccion y nuevos desarrollos. | D81: Aftermarket | E81: Latam | F81: FAPAN | G81: 17281 | H81: 17283
A82: Compra | B82: El cliente informa que el vendedor ofrece un excelente servicio y posee un gran conocimiento. Sin embargo, considera que lo que le falta al vendedor es autonomía. Complementa que siempre existe la necesidad de recibir una respuesta más inmediata sobre el precio, por ejemplo, pero el vendedor no puede proporcionar el precio ni algunas condiciones de negociación. Observamos que el problema radica más en la empresa, que no le ofrece al vendedor la autonomía necesaria. Flexibilidad: El cliente menciona que Frasle no escucha al cliente cuando la propuesta de negociación parte del cliente, y que solo buscan negociar cuando es Frasle quien lo necesita o cuando les conviene. | D82: Aftermarket | E82: Latam | F82: ARAY | G82: 17281 | H82: 17282
A83: Compra | B83: PRONTA ATENCION Y RESPUESTA A LAS CONSULTAS REALIZADAS SOBRE PRODUCTOS. CORDIALIDAD | D83: Aftermarket | E83: Latam | F83: ARAY | G83: 17281 | H83: 17282
A84: Compra | B84: Necesitamos una entrega mas rapida y un porcentaje mayor en la cantidad entregada. Seguimos teniendo muchos pendientes. | D84: Aftermarket | E84: Latam | F84: ARAY | G84: 17281 | H84: 17282
A85: Compra | B85: Según el cliente, el vendedor siempre está presente y posee un amplio conocimiento, suficiente para responder adecuadamente en cada situación. Alega que el vendedor no tiene autonomía para resolver ciertos temas, pero afirma que esto no es culpa de él, sino de la estructura de la empresa Frasle. En cuanto a la flexibilidad de Frasle, considera que no son flexibles. Informa que no existen bonificaciones por volumen de compras, por ejemplo. Las promociones, cuando ocurren, requieren la compra de una determinada cantidad y no se ofrecen alternativas. Además, cuando intenta negociar cualquier otro asunto, tampoco le brindan espacio para ello. | D85: Aftermarket | E85: Latam | F85: ARAY | G85: 17281 | H85: 17282
A86: Compra | B86: Mejorar su catalogo virtual | D86: Aftermarket | E86: Latam | F86: FAPAN | G86: 17281 | H86: 17283
A87: Compra | B87: Mejorar su catalogo virtual | D87: Aftermarket | E87: Latam | F87: FAPAN | G87: 17281 | H87: 17283
A88: Compra | B88: Me atiende el Sr.José Castillo un excelente vendedor, sabe muy bien lo que vende y su atención es de 5 estrellas. Ahora bien una sugerencia o critica constructiva sería un poco más comunicación. En el pedido anterior que hicimos hubo una falla de comunicación de ambas partes con respecto a un tema del Certificado de Origen, sin embargo, logramos llegar a un convenio. | D88: Aftermarket | E88: Latam | F88: FAPAN | G88: 17281 | H88: 17283
A89: Compra | B89: COMPLETAR LINEA . PRODUSCTOS MUY RECONOCIDOS PERO HOY FUERA DE PRECIOS.... | D89: Aftermarket | E89: Latam | F89: ARAY | G89: 17281 | H89: 17282
A90: Compra | B90: MEJORAR % DE ENTREGA, MUY BUENA RELACION PRECIO CALIDAD!! | D90: Aftermarket | E90: Latam | F90: ARAY | G90: 17281 | H90: 17282
A91: Compra | B91: PRODUCTO LIDER EN CALIDAD, Deberían ajustar precios dado que hoy hay muchas alternativas... | D91: Aftermarket | E91: Latam | F91: ARAY | G91: 17281 | H91: 17282
A92: Compra | B92: La comunicación de las listas de precios son muy engorrosas. El manejo de la mercadería pendiente es confuso. | D92: Aftermarket | E92: Latam | F92: ARAY | G92: 17281 | H92: 17282
A93: Compra | B93: La comunicación de las listas de precios son muy engorrosas. El manejo de la mercadería pendiente es confuso. | D93: Aftermarket | E93: Latam | F93: ARAY | G93: 17281 | H93: 17282
A94: Compra | B94: El cliente comenta que recibe visitas y contactos regularmente del vendedor de Frasle y del equipo comercial, pero que el momento requiere una mayor presencia de Frasle, con más contactos personales principalmente – aunque también pueden ser virtuales – con el objetivo de obtener respuestas más rápidas y visualizar una colaboración para hacer negocios más efectivos y directos. El vendedor responde rápidamente y tiene bastante conocimiento. Las negociaciones son normales con Frasle. Sin embargo, debido a las normas que tiene Frasle, normalmente no hay mucha flexibilidad. El cliente es claro al decir que, cuando las condiciones no son favorables para ambas partes y no hay flexibilidad, busca alternativas en el mercado competidor. Brindan un excelente servicio de soporte. | D94: Aftermarket | E94: Latam | F94: ARAY | G94: 17281 | H94: 17282
A95: Compra | B95: El cliente comenta que recibe visitas y contactos regularmente del vendedor de Frasle y del equipo comercial, pero que el momento requiere una mayor presencia de Frasle, con más contactos personales principalmente – aunque también pueden ser virtuales – con el objetivo de obtener respuestas más rápidas y visualizar una colaboración para hacer negocios más efectivos y directos. El vendedor responde rápidamente y tiene bastante conocimiento. Las negociaciones son normales con Frasle. Sin embargo, debido a las normas que tiene Frasle, normalmente no hay mucha flexibilidad. El cliente es claro al decir que, cuando las condiciones no son favorables para ambas partes y no hay flexibilidad, busca alternativas en el mercado competidor. Brindan un excelente servicio de soporte. | D95: Aftermarket | E95: Latam | F95: ARAY | G95: 17281 | H95: 17282
A96: Compra | B96: El cliente comenta que recibe visitas y contactos regularmente del vendedor de Frasle y del equipo comercial, pero que el momento requiere una mayor presencia de Frasle, con más contactos personales principalmente – aunque también pueden ser virtuales – con el objetivo de obtener respuestas más rápidas y visualizar una colaboración para hacer negocios más efectivos y directos. El vendedor responde rápidamente y tiene bastante conocimiento. Las negociaciones son normales con Frasle. Sin embargo, debido a las normas que tiene Frasle, normalmente no hay mucha flexibilidad. El cliente es claro al decir que, cuando las condiciones no son favorables para ambas partes y no hay flexibilidad, busca alternativas en el mercado competidor. Brindan un excelente servicio de soporte. | D96: Aftermarket | E96: Latam | F96: ARAY | G96: 17281 | H96: 17282
A97: Compra | B97: proceso de compra ágil. | D97: Aftermarket | E97: Latam | F97: FAPAN | G97: 17281 | H97: 17283
A98: Compra | B98: Es muy importante para el proceso de Abastecimiento tener flexibilidad en las compras, que no se exijan mínimos de compra màs aun cuando los repuestos se tienen disponibles en ZF, adicionalmente, tenemos perdida de ventas y clientes por los incumplimientos constantes con las entregas | D98: Aftermarket | E98: Latam | F98: FAPAN | G98: 17281 | H98: 17283
A99: Compra | B99: a veces envian codigos no pedidos y envian pendientes yyno los dan de baja | D99: Aftermarket | E99: Latam | F99: ARAY | G99: 17281 | H99: 17282
A100: Compra | B100: El vendedor es muy eficaz y activo en la relación con el cliente. Ha recibido muchos elogios. En cuanto al tema de la flexibilidad, el cliente entiende que, en muchas ocasiones, el vendedor no tiene autonomía para negociar, siempre teniendo que consultar a sus superiores para tomar decisiones. Sin embargo, el cliente reconoce que Frasle sí negocia, aunque algunas veces no tiene éxito en las negociaciones, especialmente cuando el tema es el precio. | D100: Aftermarket | E100: Latam | F100: ARAY | G100: 17281 | H100: 17282
A101: Compra | B101: El vendedor es muy eficaz y activo en la relación con el cliente. Ha recibido muchos elogios. En cuanto al tema de la flexibilidad, el cliente entiende que, en muchas ocasiones, el vendedor no tiene autonomía para negociar, siempre teniendo que consultar a sus superiores para tomar decisiones. Sin embargo, el cliente reconoce que Frasle sí negocia, aunque algunas veces no tiene éxito en las negociaciones, especialmente cuando el tema es el precio. | D101: Aftermarket | E101: Latam | F101: ARAY | G101: 17281 | H101: 17282
A102: Compra | B102: El vendedor es muy eficaz y activo en la relación con el cliente. Ha recibido muchos elogios. En cuanto al tema de la flexibilidad, el cliente entiende que, en muchas ocasiones, el vendedor no tiene autonomía para negociar, siempre teniendo que consultar a sus superiores para tomar decisiones. Sin embargo, el cliente reconoce que Frasle sí negocia, aunque algunas veces no tiene éxito en las negociaciones, especialmente cuando el tema es el precio. | D102: Aftermarket | E102: Latam | F102: ARAY | G102: 17281 | H102: 17282
A103: Compra | B103: buena relacion con el vendedor , proceso de entrega regular , precios de la mercaderia muy poco competitivos con respecto a la competencia | D103: Aftermarket | E103: Latam | F103: ARAY | G103: 17281 | H103: 17282
A104: Compra | B104: El cliente informa que tiene muchos problemas con el proceso de compra y el control de inventario con Frasle. Considera que, debido a estar a 1200 km de Buenos Aires, el motivo por el cual el vendedor lo visita cada 60 a 90 días es comprensible. Sin embargo, entiende que esto no debería ser una justificación para tener tantos inconvenientes con los pedidos. Además, menciona que cuando solicita información técnica, la respuesta tarda mucho tiempo. Y cuando realizan las visitas, solo proporcionan información sobre lo que ya ha ocurrido, sin presentar un plan de trabajo, es decir, sin indicar cómo se podría mejorar el resultado. En cuanto a flexibilidad, es tajante al afirmar que Frasle no tiene ninguna. Solo operan de acuerdo con las reglas establecidas, sin considerar ninguna alternativa. | D104: Aftermarket | E104: Latam | F104: ARAY | G104: 17281 | H104: 17282
A105: Compra | B105: El cliente informa que tiene muchos problemas con el proceso de compra y el control de inventario con Frasle. Considera que, debido a estar a 1200 km de Buenos Aires, el motivo por el cual el vendedor lo visita cada 60 a 90 días es comprensible. Sin embargo, entiende que esto no debería ser una justificación para tener tantos inconvenientes con los pedidos. Además, menciona que cuando solicita información técnica, la respuesta tarda mucho tiempo. Y cuando realizan las visitas, solo proporcionan información sobre lo que ya ha ocurrido, sin presentar un plan de trabajo, es decir, sin indicar cómo se podría mejorar el resultado. En cuanto a flexibilidad, es tajante al afirmar que Frasle no tiene ninguna. Solo operan de acuerdo con las reglas establecidas, sin considerar ninguna alternativa. | D105: Aftermarket | E105: Latam | F105: ARAY | G105: 17281 | H105: 17282
A106: Compra | B106: El cliente informa que tiene muchos problemas con el proceso de compra y el control de inventario con Frasle. Considera que, debido a estar a 1200 km de Buenos Aires, el motivo por el cual el vendedor lo visita cada 60 a 90 días es comprensible. Sin embargo, entiende que esto no debería ser una justificación para tener tantos inconvenientes con los pedidos. Además, menciona que cuando solicita información técnica, la respuesta tarda mucho tiempo. Y cuando realizan las visitas, solo proporcionan información sobre lo que ya ha ocurrido, sin presentar un plan de trabajo, es decir, sin indicar cómo se podría mejorar el resultado. En cuanto a flexibilidad, es tajante al afirmar que Frasle no tiene ninguna. Solo operan de acuerdo con las reglas establecidas, sin considerar ninguna alternativa. | D106: Aftermarket | E106: Latam | F106: ARAY | G106: 17281 | H106: 17282
A107: Compra | B107: El cliente informa que tiene muchos problemas con el proceso de compra y el control de inventario con Frasle. Considera que, debido a estar a 1200 km de Buenos Aires, el motivo por el cual el vendedor lo visita cada 60 a 90 días es comprensible. Sin embargo, entiende que esto no debería ser una justificación para tener tantos inconvenientes con los pedidos. Además, menciona que cuando solicita información técnica, la respuesta tarda mucho tiempo. Y cuando realizan las visitas, solo proporcionan información sobre lo que ya ha ocurrido, sin presentar un plan de trabajo, es decir, sin indicar cómo se podría mejorar el resultado. En cuanto a flexibilidad, es tajante al afirmar que Frasle no tiene ninguna. Solo operan de acuerdo con las reglas establecidas, sin considerar ninguna alternativa. | D107: Aftermarket | E107: Latam | F107: ARAY | G107: 17281 | H107: 17282
A108: Compra | B108: Controil es una marca reconocida en Chile por su calidad, sin embargo hace años que no se actualizan en desarrollos para el parque Chileno, y en lo que si tienen, queda muy por sobre el precio del producto chino | D108: Aftermarket | E108: Latam | F108: SSC | G108: 17281 | H108: 17284
A109: Compra | B109: El proceso funciona 100 %, tienen un excelente fillrate, despachan 100 %, buena atención y logística | D109: Aftermarket | E109: Latam | F109: SSC | G109: 17281 | H109: 17284
A110: Compra | B110: QUIERO AGRADECER LA ATENCION BRINDADA DEL EQUIPO DE VENTAS , SOBRE TODO DE DANIEL CEBALLOS, UNA PERSONA SIEMPRE DISPUESTA A AYUDAR Y SOLUCIONAR PROBLEMAS , MUY RESPETUOSA | D110: Aftermarket | E110: Latam | F110: ARAY | G110: 17281 | H110: 17282
A111: Compra | B111: Los productos son muy agresivos | D111: Aftermarket | E111: Latam | F111: SSC | G111: 17281 | H111: 17284
A112: Compra | B112: LOS PEDIDOS VIENEN INCOMPLETOS- NO PODEMOS SABER SI HAY EN STOCK Y CUANDO ENTRARIAN ESOS PRODUCTOS. HAY QUE ESTAN LLAMANDO Y CONSULTANDO. | D112: Aftermarket | E112: Latam | F112: ARAY | G112: 17281 | H112: 17282
A113: Compra | B113: LOS PEDIDOS VIENEN INCOMPLETOS- NO PODEMOS SABER SI HAY EN STOCK Y CUANDO ENTRARIAN ESOS PRODUCTOS. HAY QUE ESTAN LLAMANDO Y CONSULTANDO. | D113: Aftermarket | E113: Latam | F113: ARAY | G113: 17281 | H113: 17282
A114: Compra | B114: LOS PEDIDOS VIENEN INCOMPLETOS- NO PODEMOS SABER SI HAY EN STOCK Y CUANDO ENTRARIAN ESOS PRODUCTOS. HAY QUE ESTAN LLAMANDO Y CONSULTANDO. | D114: Aftermarket | E114: Latam | F114: ARAY | G114: 17281 | H114: 17282
A115: Compra | B115: El cliente entiende que las decisiones políticas y económicas que Frasle ha adoptado, cambiando constantemente, han impactado mucho en lo que el vendedor puede ayudar o responder en los procesos comerciales con Frasle. Esto ha hecho que el asesoramiento se vea más afectado actualmente, ya que las respuestas muchas veces no son automáticas... pero no demoran mucho. Frasle es bastante conversable, bastante flexible, donde las inquietudes son transmitidas y Frasle siempre es atenta y escucha al cliente. | D115: Aftermarket | E115: Latam | F115: ARAY | G115: 17281 | H115: 17282
A116: Compra | B116: El cliente entiende que las decisiones políticas y económicas que Frasle ha adoptado, cambiando constantemente, han impactado mucho en lo que el vendedor puede ayudar o responder en los procesos comerciales con Frasle. Esto ha hecho que el asesoramiento se vea más afectado actualmente, ya que las respuestas muchas veces no son automáticas... pero no demoran mucho. Frasle es bastante conversable, bastante flexible, donde las inquietudes son transmitidas y Frasle siempre es atenta y escucha al cliente. | D116: Aftermarket | E116: Latam | F116: ARAY | G116: 17281 | H116: 17282
A117: Compra | B117: El cliente entiende que las decisiones políticas y económicas que Frasle ha adoptado, cambiando constantemente, han impactado mucho en lo que el vendedor puede ayudar o responder en los procesos comerciales con Frasle. Esto ha hecho que el asesoramiento se vea más afectado actualmente, ya que las respuestas muchas veces no son automáticas... pero no demoran mucho. Frasle es bastante conversable, bastante flexible, donde las inquietudes son transmitidas y Frasle siempre es atenta y escucha al cliente. | D117: Aftermarket | E117: Latam | F117: ARAY | G117: 17281 | H117: 17282
A118: Compra | B118: El cliente considera que tiene una excelente relación con el proceso comercial de Frasle. El ejecutivo que lo atiende lo hace bien. El único punto a destacar está relacionado con el vendedor, que realiza visitas personales solo dos veces al año. También tiene algunos problemas cuando debe resolver el tema de importación. | D118: Aftermarket | E118: Latam | F118: SSC | G118: 17281 | H118: 17284
A119: Compra | B119: seria mas rapido poder consultar si hay stock y que las entregas sean mas rapidas | D119: Aftermarket | E119: Latam | F119: ARAY | G119: 17281 | H119: 17282
A120: Compra | B120: seria mas rapido poder consultar si hay stock y que las entregas sean mas rapidas | D120: Aftermarket | E120: Latam | F120: ARAY | G120: 17281 | H120: 17282
A121: Compra | B121: NO considero necesario dejar pendientes los productos que no hay en stock, con baches prolongaados de producto se van amontonado sin recordarlo y al ingresar el producto como despachan todos los pedidos pendientes se genera un sobrestock inecesario para mi. Entiendo que mejoraran las entregas en el transcurso de este año, no fue Frasle el origen de ese problema. Ya han corregido la politica de precios que tambien nos habia dejado fuera de mercado, ahora hace falta remontarlo nuevamente. | D121: Aftermarket | E121: Latam | F121: ARAY | G121: 17281 | H121: 17282
A122: Compra | B122: MUY BUENA ATENCIÓN | D122: Aftermarket | E122: Latam | F122: ARAY | G122: 17281 | H122: 17282
A123: Compra | B123: MUY BUENA ATENCIÓN | D123: Aftermarket | E123: Latam | F123: ARAY | G123: 17281 | H123: 17282
A124: Compra | B124: Con respecto al proceso de compra, los stock son insuficientes; lo cual no permite atender correctamente nuestra demanda. Por otra parte, realizamos una proyección junto con Controil en la que se comprometieron a despachar producto en determinadas fechas y esto no se cumplió. Lo cual nos afecta ya que tenemos sobre stock en algunos productos y continuando con la escasez en otros. | D124: Aftermarket | E124: Latam | F124: FAPAN | G124: 17281 | H124: 17283
A125: Compra | B125: Estamos en apertura de la línea de BLOQUE y a la expectativa de la gestión. | D125: Aftermarket | E125: Latam | F125: FAPAN | G125: 17281 | H125: 17283
A126: Compra | B126: Con respecto al proceso de compra, los stock son insuficientes; lo cual no permite atender correctamente nuestra demanda. Por otra parte, realizamos una proyección junto con Nakata en la que se comprometieron a despachar producto en determinadas fechas y esto no se cumplió. Lo cual nos afecta ya que tenemos sobre stock en algunos productos y continuando con la escasez en otros. | D126: Aftermarket | E126: Latam | F126: FAPAN | G126: 17281 | H126: 17283
A127: Compra | B127: ampliar stock y mejorar las entregas | D127: Aftermarket | E127: Latam | F127: ARAY | G127: 17281 | H127: 17282
A128: Compra | B128: ampliar stock y mejorar las entregas | D128: Aftermarket | E128: Latam | F128: ARAY | G128: 17281 | H128: 17282
A129: Compra | B129: El cliente señala que la relación con el área comercial es buena. Hay puntos a mejorar, como el incumplimiento de algunas entregas de pedidos realizados. Añade que, actualmente, en promedio, solo cumplen con los plazos en un 60%. Al hablar sobre la flexibilidad en la negociación, considera que hay momentos en los que Frasle flexibiliza, y otros no. Analiza que respeta la postura de la empresa cuando no flexibiliza, ya que la empresa tiene sus motivos y también debe velar por sus resultados financieros. | D129: Aftermarket | E129: Latam | F129: FAPAN | G129: 17281 | H129: 17283
A130: Compra | B130: El cliente señala que la relación con el área comercial es buena. Hay puntos a mejorar, como el incumplimiento de algunas entregas de pedidos realizados. Añade que, actualmente, en promedio, solo cumplen con los plazos en un 60%. Al hablar sobre la flexibilidad en la negociación, considera que hay momentos en los que Frasle flexibiliza, y otros no. Analiza que respeta la postura de la empresa cuando no flexibiliza, ya que la empresa tiene sus motivos y también debe velar por sus resultados financieros. | D130: Aftermarket | E130: Latam | F130: FAPAN | G130: 17281 | H130: 17283
A131: Compra | B131: El cliente señala que la relación con el área comercial es buena. Hay puntos a mejorar, como el incumplimiento de algunas entregas de pedidos realizados. Añade que, actualmente, en promedio, solo cumplen con los plazos en un 60%. Al hablar sobre la flexibilidad en la negociación, considera que hay momentos en los que Frasle flexibiliza, y otros no. Analiza que respeta la postura de la empresa cuando no flexibiliza, ya que la empresa tiene sus motivos y también debe velar por sus resultados financieros. | D131: Aftermarket | E131: Latam | F131: FAPAN | G131: 17281 | H131: 17283
A132: Compra | B132: LA MAEJOR ATENCION DEL SEÑOR ALEJANDRO SAUD, DEBERIA HABER MAS COMERCIALES COMO EL | D132: Aftermarket | E132: Latam | F132: ARAY | G132: 17281 | H132: 17282
A133: Compra | B133: Con urgencia debe mejorar el tiempo de entrega de los productos . Los discos nos entregaron con 6 meses de retraso. | D133: Aftermarket | E133: Latam | F133: SSC | G133: 17281 | H133: 17284
A134: Compra | B134: Definir una politica de ventas clara para el pais.. Cantidad de importadores autorizados objetivos a nivel de mercado Productos que va comercializar cada distribuidor | D134: Aftermarket | E134: Latam | F134: SSC | G134: 17281 | H134: 17284
A135: Compra | B135: Por lo general todo muy fluido, sin muchos inconvenientes | D135: Aftermarket | E135: Latam | F135: SSC | G135: 17281 | H135: 17284
A136: Compra | B136: Necesitamos mayor apoyo en los precios por volumen de compra teniendo en cuenta la gran cantidad de importadores de la marca | D136: Aftermarket | E136: Latam | F136: SSC | G136: 17281 | H136: 17284
A137: Compra | B137: Muy bueno | D137: Aftermarket | E137: Latam | F137: ARAY | G137: 17281 | H137: 17282
A138: Compra | B138: Informe de Pendientes deficiente | D138: Aftermarket | E138: Latam | F138: ARAY | G138: 17281 | H138: 17282
A139: Compra | B139: MUY DISCONFORME CON LAS ENTREGAS DE TODOS LOS PRODUCTOS MARCA NAKATA- EL FALTANTE ES IMPRESIONANTE, SE ME HHACE IMPOSIBLE SATISFACER A MIS CLIENTES. | D139: Aftermarket | E139: Latam | F139: ARAY | G139: 17281 | H139: 17282
A140: Compra | B140: Faltantes, velocidad de entrega normal | D140: Aftermarket | E140: Latam | F140: ARAY | G140: 17281 | H140: 17282
A141: Compra | B141: Rápido y dinámico. | D141: Aftermarket | E141: Latam | F141: ARAY | G141: 17281 | H141: 17282
A142: Compra | B142: El proceso es sencillo y rápido. | D142: Aftermarket | E142: Latam | F142: FAPAN | G142: 17281 | H142: 17283
A143: Compra | B143: MEJORAR EL SISTEMA DE ENTREGAS | D143: Aftermarket | E143: Latam | F143: ARAY | G143: 17281 | H143: 17282
A144: Compra | B144: buen servicio y rápido | D144: Aftermarket | E144: Latam | F144: SSC | G144: 17281 | H144: 17284
A145: Compra | B145: buen servicio y rápido | D145: Aftermarket | E145: Latam | F145: SSC | G145: 17281 | H145: 17284
A146: Compra | B146: buen servicio y rápido. pero poco desarrollo en productos | D146: Aftermarket | E146: Latam | F146: SSC | G146: 17281 | H146: 17284
A147: Compra | B147: Los discos de freno FREMAX cubren todas las aplicaciones del mercado, de mayor calidad respecto a la gran cantidad de piezas importadas. | D147: Aftermarket | E147: Latam | F147: ARAY | G147: 17281 | H147: 17282
A148: Compra | B148: No hace mucho tiempo nos reunimos con el Sr. Eduardo, con la intención de incorporar las piezas Nakata de suspensión, rótulas, extremos, axiales, etc. Lamentablemente no han podido satisfacer nuestra propuesta por estar sobre vendidos. | D148: Aftermarket | E148: Latam | F148: ARAY | G148: 17281 | H148: 17282
A149: Compra | B149: El cliente comenta que todo el proceso de compra es muy bueno, que el vendedor es excelente, y que también recibe un buen servicio por parte de todo el equipo de soporte. | D149: Aftermarket | E149: Latam | F149: SSC | G149: 17281 | H149: 17284
A150: Compra | B150: El proceso de compra es agil y confiable. Enviamos el pedido con las tres marcas y la mercadería llega perfectamente. La atención es rápida y cordial. | D150: Aftermarket | E150: Latam | F150: ARAY | G150: 17281 | H150: 17282
A151: Compra | B151: El proceso de compra es agil y confiable. Enviamos el pedido con las tres marcas y la mercadería llega perfectamente. La atención es rápida y cordial. | D151: Aftermarket | E151: Latam | F151: ARAY | G151: 17281 | H151: 17282
A152: Compra | B152: El proceso de compra es agil y confiable. Enviamos el pedido con las tres marcas y la mercadería llega perfectamente. La atención es rápida y cordial. | D152: Aftermarket | E152: Latam | F152: ARAY | G152: 17281 | H152: 17282
A153: Compra | B153: El cliente informa que las visitas ocurren y que también hay comunicación de todas las formas y de manera rápida, siempre con mucho conocimiento y asesoramiento. | D153: Aftermarket | E153: Latam | F153: FAPAN | G153: 17281 | H153: 17283
A154: Compra | B154: El cliente informa que las visitas ocurren y que también hay comunicación de todas las formas y de manera rápida, siempre con mucho conocimiento y asesoramiento. | D154: Aftermarket | E154: Latam | F154: FAPAN | G154: 17281 | H154: 17283
A155: Compra | B155: muy buena calidad y precio , no bajen la calidad. | D155: Aftermarket | E155: Latam | F155: SSC | G155: 17281 | H155: 17284
A156: Compra | B156: E comprado CONTROIL en varias ocasiones, pero tengo entendido que ya no la comercializan | D156: Aftermarket | E156: Latam | F156: ARAY | G156: 17281 | H156: 17282
A157: Compra | B157: Excelente marca. Muy buen posicionamiento en el mercado. Hace muchos años que la comercializa y siempre con mucho éxito. La relación precio calidad va de la mano | D157: Aftermarket | E157: Latam | F157: ARAY | G157: 17281 | H157: 17282
A158: Compra | B158: Mucha Demora en tener STock Disponible. | D158: Aftermarket | E158: Latam | F158: FAPAN | G158: 17281 | H158: 17283
A159: Compra | B159: Mucha Demora en tener Stock Disponible. | D159: Aftermarket | E159: Latam | F159: FAPAN | G159: 17281 | H159: 17283
A160: Compra | B160: Mucha Demora en tener Stock Disponible. | D160: Aftermarket | E160: Latam | F160: FAPAN | G160: 17281 | H160: 17283
A161: Compra | B161: La atención recibida por nuestro vendedor es muy buena y el proceso de compra también | D161: Aftermarket | E161: Latam | F161: ARAY | G161: 17281 | H161: 17282
A162: Compra | B162: NOS ENCONTRAMOS CON DISPARIDAD DE COSTOS CON OTRO DISTRIBUIDOR ALEGANDO QUE COMPRA MAYOR VOLUMEN PERO SIEMPRE HEMOS PARTICIPADO EN NEGOCIOS CON PROMOCIONES CON PRODUCTOS POR PALLETS POR EJEMPLO Y DEBIDO A LOS COMENTARIOS DE LOS CLIENTES NOS ENTERAMOS QUE DIFERENCIABAN DTOS SIENDO QUE EN EL PAQUETE EL OTRO DISTRIBUIDOR TRABAJA TAMBIEN LINEAS COMO FRASLE NAKATA QUE VENIMOS PIDIENDO PARA DISTRIBUIR Y NO SE NOS DIO LA OPORTUNIDAD PERO EL TEMA ES QUE TOMAN LA DIMENSION DE LAS COMPRAS POR EL CONJUNTO Y NUNCA VAMOS A PODER COMPETIR TENIENDO SOLO UNA LINEA | D162: Aftermarket | E162: Latam | F162: ARAY | G162: 17281 | H162: 17282
A163: Compra | B163: Muy bien! | D163: Aftermarket | E163: Latam | F163: ARAY | G163: 17281 | H163: 17282
A164: Compra | B164: Todo muy positivo una excelente atención del comercial Alejandro Saud muy profesional, expeditivo y con los mismos valores que profesamos en nuestra empresa | D164: Aftermarket | E164: Latam | F164: ARAY | G164: 17281 | H164: 17282
A165: Compra | B165: recién ahora está algo más competitivo. | D165: Aftermarket | E165: Latam | F165: ARAY | G165: 17281 | H165: 17282
A166: Compra | B166: no podemos entender la limitación de no tener todo el portfolio de sus productos, cosa que no nos pasa con otras empresas( por ejemplo Sachs/trw) y se hace difícil no competir con otros disrtibuidores y sólo buscar nuevas ventas genuinas | D166: Aftermarket | E166: Latam | F166: ARAY | G166: 17281 | H166: 17282
A167: Compra | B167: línea completa , muy buena calidad. lento en leer el mercado en cuanto a precios y ´rapidos para aumentar los precios. | D167: Aftermarket | E167: Latam | F167: ARAY | G167: 17281 | H167: 17282
A168: Compra | B168: El cliente firmó recientemente un contrato con Frasle y aún no tiene claro el comportamiento de todos los temas relacionados con el proceso de Compras. Sin embargo, el cliente puede evaluar que Frasle tiene un buen producto, aunque no tiene un precio bajo. Tiene claridad sobre este tema, ya que tiene contratos con otros competidores locales. En opinión del cliente, Frasle no negocia precios, lo cual impacta en la calificación de flexibilidad en las negociaciones. En cuanto a otras condiciones comerciales, son muy competitivos. | D168: Aftermarket | E168: Latam | F168: SSC | G168: 17281 | H168: 17284
A169: Compra | B169: Tiempo de entrega del pedido en cuanto a una critica obviamente constructiva Lanzamiento de productos de manera muy correcta, con imagenes, equivalencias, etc etc, como elogio. | D169: Aftermarket | E169: Latam | F169: ARAY | G169: 17281 | H169: 17282
A170: Compra | B170: tener una pagina en donde nos permita ver el stock, cuenta corriente, precios de compra, listado de todos los articulos, imagenes faciles de descargar y acceso a una base de datos para poder descargar toda la información de manera sistemática y asi cargarla a nuestra web y generar más ventas | D170: Aftermarket | E170: Latam | F170: ARAY | G170: 17281 | H170: 17282
A171: Compra | B171: tener una pagina en donde nos permita ver el stock, cuenta corriente, precios de compra, listado de todos los articulos, imagenes faciles de descargar y acceso a una base de datos para poder descargar toda la información de manera sistemática y asi cargarla a nuestra web y generar más ventas | D171: Aftermarket | E171: Latam | F171: ARAY | G171: 17281 | H171: 17282
A172: Compra | B172: tener una pagina en donde nos permita ver el stock, cuenta corriente, precios de compra, listado de todos los articulos, imagenes faciles de descargar y acceso a una base de datos para poder descargar toda la información de manera sistemática y asi cargarla a nuestra web y generar más ventas | D172: Aftermarket | E172: Latam | F172: ARAY | G172: 17281 | H172: 17282
A173: Compra | B173: criticas: faltan piezas nuevas, ampliar el portfolio, poco stock para la reposicion elogio, la marca esta muy bien posicionada y reconocida por su calidad sugerencia: ampliar las piezas y nuevos autos con mayor celeridad | D173: Aftermarket | E173: Latam | F173: ARAY | G173: 17281 | H173: 17282
A174: Compra | B174: elogios: la marca esta muy bien posicionada sugerencia: ampliar las piezas y nuevos autos con mayor celeridad criticas: muchos faltantes para la reposicion y tardan demasiado en solucionarlo | D174: Aftermarket | E174: Latam | F174: ARAY | G174: 17281 | H174: 17282
A175: Compra | B175: elogios: la marca esta muy bien posicionada, y tiene buena celeridad en la produccion de nuevos productos sugerencia: ampliar portfolio criticas: mayor celeridad en la reposicion | D175: Aftermarket | E175: Latam | F175: ARAY | G175: 17281 | H175: 17282
A176: Compra | B176: El cliente informa que tiene contacto frecuente con Frasle Mobility y considera que tanto la frecuencia como el conocimiento de los vendedores son consistentes. Por otro lado, la gestión de Frasle, a la hora de negociar, prácticamente no demuestra flexibilidad, actuando con bastante rigidez en relación a cualquier tema que el cliente proponga para modificar, ya sea en términos de precio, plazos o incluso en procesos que podrían ayudar a aumentar la productividad y ahorrar tiempo. | D176: Aftermarket | E176: Latam | F176: ARAY | G176: 17281 | H176: 17282
A177: Compra | B177: El cliente informa que tiene contacto frecuente con Frasle Mobility y considera que tanto la frecuencia como el conocimiento de los vendedores son consistentes. Por otro lado, la gestión de Frasle, a la hora de negociar, prácticamente no demuestra flexibilidad, actuando con bastante rigidez en relación a cualquier tema que el cliente proponga para modificar, ya sea en términos de precio, plazos o incluso en procesos que podrían ayudar a aumentar la productividad y ahorrar tiempo. | D177: Aftermarket | E177: Latam | F177: ARAY | G177: 17281 | H177: 17282
A178: Compra | B178: El cliente informa que tiene contacto frecuente con Frasle Mobility y considera que tanto la frecuencia como el conocimiento de los vendedores son consistentes. Por otro lado, la gestión de Frasle, a la hora de negociar, prácticamente no demuestra flexibilidad, actuando con bastante rigidez en relación a cualquier tema que el cliente proponga para modificar, ya sea en términos de precio, plazos o incluso en procesos que podrían ayudar a aumentar la productividad y ahorrar tiempo. | D178: Aftermarket | E178: Latam | F178: ARAY | G178: 17281 | H178: 17282
A179: Compra | B179: El cliente informa que tiene contacto frecuente con Frasle Mobility y considera que tanto la frecuencia como el conocimiento de los vendedores son consistentes. Por otro lado, la gestión de Frasle, a la hora de negociar, prácticamente no demuestra flexibilidad, actuando con bastante rigidez en relación a cualquier tema que el cliente proponga para modificar, ya sea en términos de precio, plazos o incluso en procesos que podrían ayudar a aumentar la productividad y ahorrar tiempo. | D179: Aftermarket | E179: Latam | F179: ARAY | G179: 17281 | H179: 17282
A180: Compra | B180: Los agentes comerciales que nos asignaron siempre fuero claros y ocupados en la atencion.- | D180: Aftermarket | E180: Latam | F180: ARAY | G180: 17281 | H180: 17282
A181: Compra | B181: Hace un año era muy eficiente consultar precios, en un excel encontrabas todo lo necesario. Después de un tiempo deje de comprender dónde podiamos encontrar los excel con los precios ya que hay varios y nunca envian todos por email. Los vendedores no pasan precios al momento inmediato que es lo que necesitamos ya que se vende en mostrador y debe ser agil | D181: Aftermarket | E181: Latam | F181: ARAY | G181: 17281 | H181: 17282
A182: Compra | B182: Es muy fácil hacer pedidos, rara vez se equivocan. El problema está en los plazos para pasar a retirar lo que envian mal. En estos mismos momentos tengp una devolcion pendiente de retiro de hace mas de un mes | D182: Aftermarket | E182: Latam | F182: ARAY | G182: 17281 | H182: 17282
A183: Compra | B183: Inicialmente hicieron un excelente trabajo que luego no tuvimos entrega y perdimos gran parte del mercado....hoy en dia no hay regularidad de entregas | D183: Aftermarket | E183: Latam | F183: ARAY | G183: 17281 | H183: 17282
A184: Compra | B184: Hace muchos años que compramos no tenemos problemas de garantias, la entrega podria ser mejor y necesitamos los discos de frenos...venderiamos mas pastillas si tuviesemos los discos para vender | D184: Aftermarket | E184: Latam | F184: ARAY | G184: 17281 | H184: 17282
A185: Compra | B185: LINEA INCOMPLETA,MUY BUENA CALIDAD | D185: Aftermarket | E185: Latam | F185: ARAY | G185: 17281 | H185: 17282
A186: Compra | B186: BUENA CALIDAD,DEMORAS Y FALTANTES DE MERCADERIA | D186: Aftermarket | E186: Latam | F186: ARAY | G186: 17281 | H186: 17282
A187: Compra | B187: Totalmente conforme con los procesos de compra y tiempos de respuesta. Destaco y valoro la atención y compromiso con el cliente de alfonso Orban y Alejandro Saud | D187: Aftermarket | E187: Latam | F187: ARAY | G187: 17281 | H187: 17282
A188: Compra | B188: Excelente | D188: Aftermarket | E188: Latam | F188: ARAY | G188: 17281 | H188: 17282
A189: Compra | B189: Sería bueno que se pueda consultar si hay o no stock online sin tener que llamar a un operador | D189: Aftermarket | E189: Latam | F189: ARAY | G189: 17281 | H189: 17282
A190: Compra | B190: El cliente informa que ya solicitó más productos del portafolio de Frasle, pero la empresa no ha respondido a su demanda. El cliente no entiende por qué Frasle no está habilitando otras líneas de productos. Por este motivo, ha estado utilizando actualmente más productos de otras marcas competidoras, ya que los clientes los buscan. El cliente clasifica esto como 'falta de flexibilidad' de Frasle, ya que no cambia su postura. | D190: Aftermarket | E190: Latam | F190: ARAY | G190: 17281 | H190: 17282
A191: Compra | B191: El cliente informa que ya solicitó más productos del portafolio de Frasle, pero la empresa no ha respondido a su demanda. El cliente no entiende por qué Frasle no está habilitando otras líneas de productos. Por este motivo, ha estado utilizando actualmente más productos de otras marcas competidoras, ya que los clientes los buscan. El cliente clasifica esto como 'falta de flexibilidad' de Frasle, ya que no cambia su postura. | D191: Aftermarket | E191: Latam | F191: ARAY | G191: 17281 | H191: 17282
A192: Compra | B192: El cliente informa que ya solicitó más productos del portafolio de Frasle, pero la empresa no ha respondido a su demanda. El cliente no entiende por qué Frasle no está habilitando otras líneas de productos. Por este motivo, ha estado utilizando actualmente más productos de otras marcas competidoras, ya que los clientes los buscan. El cliente clasifica esto como 'falta de flexibilidad' de Frasle, ya que no cambia su postura. | D192: Aftermarket | E192: Latam | F192: ARAY | G192: 17281 | H192: 17282
A193: Compra | B193: El cliente informa que ya solicitó más productos del portafolio de Frasle, pero la empresa no ha respondido a su demanda. El cliente no entiende por qué Frasle no está habilitando otras líneas de productos. Por este motivo, ha estado utilizando actualmente más productos de otras marcas competidoras, ya que los clientes los buscan. El cliente clasifica esto como 'falta de flexibilidad' de Frasle, ya que no cambia su postura. | D193: Aftermarket | E193: Latam | F193: ARAY | G193: 17281 | H193: 17282
A194: Compra | B194: Atencion super buena del representante. | D194: Aftermarket | E194: Latam | F194: SSC | G194: 17281 | H194: 17284
A195: Compra | B195: SOLAMENTE ELOGIOS POR LA ATENCION EN GENERAL.. | D195: Aftermarket | E195: Latam | F195: ARAY | G195: 17281 | H195: 17282
A196: Compra | B196: NO HAY MUCHA INFORMACION DE MERCADERIA EXISTENTE | D196: Aftermarket | E196: Latam | F196: ARAY | G196: 17281 | H196: 17282
A197: Compra | B197: EL PRODUCTO ES EXELENTE PERO HAY MUCHOS FALTANTES | D197: Aftermarket | E197: Latam | F197: ARAY | G197: 17281 | H197: 17282
A198: Compra | B198: EL PRODUCTO ES EXELENTE PERO HAY MUCHOS FANTANTES | D198: Aftermarket | E198: Latam | F198: ARAY | G198: 17281 | H198: 17282
A199: Compra | B199: Mejorar la fecha en las entregas | D199: Aftermarket | E199: Latam | F199: SSC | G199: 17281 | H199: 17284
A200: Compra | B200: el representante en peru muy sevicial | D200: Aftermarket | E200: Latam | F200: FAPAN | G200: 17281 | H200: 17283
... 881 more rows
